Workbook

Sheet Main
B10: 2021-03-23
B12: Sheet No. | C12: Template Name | D12: Summary
B13: 1 | C13: Future Intra | D13: For Intraday trading in F&O segment
B14: 2 | C14: Cash Intra | D14: For Intraday trading in cash market segment
B15: 3 | C15: Mid-cap Intra | D15: For Intraday trading in Mid-cap stocks
B16: 4 | C16: Bulk Deals | D16: Reveals Bulk Deals carried on NSE & BSE
B17: 5 | C17: Call Tracker
K27: `

Sheet Future Intra
M5: Back to Main Page
A6: FOR INTRA DAY TRADING | L6: =Main!B10 -> 2021-03-23
A9: Sr.no | B9: Sector | C9: Scrip | D9: Expiry Date | E9: CLOSE RATE | F9: Pivot Point | G9: Supports | J9: Resistances
B10: Sector | E10: Point | F10: Point | G10: S1 | H10: S2 | I10: S3 | J10: R1 | K10: R2 | L10: R3 | M10: HIGH | N10: LOW | O10: OI | P10: % Change in OI
A11: 1 | B11: Index | C11: BANKNIFTY | D11: 2021-03-25 | E11: 33685.20 | F11: 33762.70 | G11: 33335.50 | H11: 32985.80 | I11: 32558.60 | J11: 34112.40 | K11: 34539.60 | L11: 34889.30 | M11: 34189.9 | N11: 33413 | O11: 3499000 | P11: 5.05%
A12: 2 | B12: Index | C12: NIFTY | D12: 2021-03-25 | E12: 14741.60 | F12: 14707.17 | G12: 14634.43 | H12: 14527.27 | I12: 14454.53 | J12: 14814.33 | K12: 14887.07 | L12: 14994.23 | M12: 14779.9 | N12: 14600 | O12: 12816525 | P12: 4.71%
A13: 3 | B13: Index | C13: FINNIFTY | D13: 2021-03-25 | E13: 15829.50 | F13: 15836.28 | G13: 15678.22 | H13: 15526.93 | I13: 15368.87 | J13: 15987.57 | K13: 16145.63 | L13: 16296.92 | M13: 15994.35 | N13: 15685 | O13: 20440 | P13: -0.58%
A14: 4 | B14: Chemical | C14: AARTIIND | D14: 2021-03-25 | E14: 1280.05 | F14: 1269.80 | G14: 1252.60 | H14: 1225.15 | I14: 1207.95 | J14: 1297.25 | K14: 1314.45 | L14: 1341.90 | M14: 1287 | N14: 1242.35 | O14: 356575 | P14: -3.12%
A15: 5 | B15: Cement | C15: ACC | D15: 2021-03-25 | E15: 1858.55 | F15: 1825.87 | G15: 1782.83 | H15: 1707.12 | I15: 1664.08 | J15: 1901.58 | K15: 1944.62 | L15: 2020.33 | M15: 1868.9 | N15: 1750.15 | O15: 3196000 | P15: 1.98%
A16: 6 | B16: Others | C16: ADANIENT | D16: 2021-03-25 | E16: 991.80 | F16: 960.08 | G16: 917.27 | H16: 842.73 | I16: 799.92 | J16: 1034.62 | K16: 1077.43 | L16: 1151.97 | M16: 1002.9 | N16: 885.55 | O16: 19064000 | P16: 1.10%
A17: 7 | B17: Others | C17: ADANIPORTS | D17: 2021-03-25 | E17: 723.55 | F17: 711.60 | G17: 695.45 | H17: 667.35 | I17: 651.20 | J17: 739.70 | K17: 755.85 | L17: 783.95 | M17: 727.75 | N17: 683.5 | O17: 59670000 | P17: 4.07%
A18: 8 | B18: Pharma | C18: ALKEM | D18: 2021-03-25 | E18: 2629.10 | F18: 2631.52 | G18: 2595.53 | H18: 2561.97 | I18: 2525.98 | J18: 2665.08 | K18: 2701.07 | L18: 2734.63 | M18: 2667.5 | N18: 2597.95 | O18: 244000 | P18: 6.74%
A19: 9 | B19: Automobile | C19: AMARAJABAT | D19: 2021-03-25 | E19: 875.65 | F19: 872.88 | G19: 868.32 | H19: 860.98 | I19: 856.42 | J19: 880.22 | K19: 884.78 | L19: 892.12 | M19: 877.45 | N19: 865.55 | O19: 2846000 | P19: -14.10%
A20: 10 | B20: Cement | C20: AMBUJACEM | D20: 2021-03-25 | E20: 296.60 | F20: 292.22 | G20: 286.08 | H20: 275.57 | I20: 269.43 | J20: 302.73 | K20: 308.87 | L20: 319.38 | M20: 298.35 | N20: 281.7 | O20: 13887000 | P20: 1.05%
A21: 11 | B21: Pharma | C21: APLLTD | D21: 2021-03-25 | E21: 918.15 | F21: 912.62 | G21: 896.03 | H21: 873.92 | I21: 857.33 | J21: 934.73 | K21: 951.32 | L21: 973.43 | M21: 929.2 | N21: 890.5 | O21: 306900 | P21: 2.57%
A22: 12 | B22: Others | C22: APOLLOHOSP | D22: 2021-03-25 | E22: 2906.85 | F22: 2908.43 | G22: 2873.87 | H22: 2840.88 | I22: 2806.32 | J22: 2941.42 | K22: 2975.98 | L22: 3008.97 | M22: 2943 | N22: 2875.45 | O22: 1692000 | P22: -0.68%
A23: 13 | B23: Automobile | C23: APOLLOTYRE | D23: 2021-03-25 | E23: 224.80 | F23: 224.22 | G23: 221.48 | H23: 218.17 | I23: 215.43 | J23: 227.53 | K23: 230.27 | L23: 233.58 | M23: 226.95 | N23: 220.9 | O23: 12055000 | P23: 0.67%
A24: 14 | B24: Automobile | C24: ASHOKLEY | D24: 2021-03-25 | E24: 114.05 | F24: 114.42 | G24: 112.18 | H24: 110.32 | I24: 108.08 | J24: 116.28 | K24: 118.52 | L24: 120.38 | M24: 116.65 | N24: 112.55 | O24: 47133000 | P24: 0.69%
A25: 15 | B25: FMCG | C25: ASIANPAINT | D25: 2021-03-25 | E25: 2428.80 | F25: 2423.20 | G25: 2404.60 | H25: 2380.40 | I25: 2361.80 | J25: 2447.40 | K25: 2466.00 | L25: 2490.20 | M25: 2441.8 | N25: 2399 | O25: 5547300 | P25: 1.30%
A26: 16 | B26: Banking | C26: AUBANK | D26: 2021-03-25 | E26: 1225.80 | F26: 1218.13 | G26: 1200.27 | H26: 1174.73 | I26: 1156.87 | J26: 1243.67 | K26: 1261.53 | L26: 1287.07 | M26: 1236 | N26: 1192.6 | O26: 768000 | P26: -1.41%
A27: 17 | B27: Pharma | C27: AUROPHARMA | D27: 2021-03-25 | E27: 839.40 | F27: 839.48 | G27: 826.67 | H27: 813.93 | I27: 801.12 | J27: 852.22 | K27: 865.03 | L27: 877.77 | M27: 852.3 | N27: 826.75 | O27: 8953100 | P27: 1.71%
A28: 18 | B28: Banking | C28: AXISBANK | D28: 2021-03-25 | E28: 718.20 | F28: 720.43 | G28: 709.22 | H28: 700.23 | I28: 689.02 | J28: 729.42 | K28: 740.63 | L28: 749.62 | M28: 731.65 | N28: 711.45 | O28: 34923600 | P28: -0.74%
A29: 19 | B29: Automobile | C29: BAJAJ-AUTO | D29: 2021-03-25 | E29: 3670.05 | F29: 3667.30 | G29: 3646.45 | H29: 3622.85 | I29: 3602.00 | J29: 3690.90 | K29: 3711.75 | L29: 3735.35 | M29: 3688.15 | N29: 3643.7 | O29: 2335000 | P29: -2.27%
A30: 20 | B30: Finance | C30: BAJAJFINSV | D30: 2021-03-25 | E30: 9414.70 | F30: 9416.35 | G30: 9316.50 | H30: 9218.30 | I30: 9118.45 | J30: 9514.55 | K30: 9614.40 | L30: 9712.60 | M30: 9516.2 | N30: 9318.15 | O30: 588500 | P30: -0.51%
A31: 21 | B31: Finance | C31: BAJFINANCE | D31: 2021-03-25 | E31: 5400.25 | F31: 5415.22 | G31: 5326.38 | H31: 5252.52 | I31: 5163.68 | J31: 5489.08 | K31: 5577.92 | L31: 5651.78 | M31: 5504.05 | N31: 5341.35 | O31: 4076250 | P31: 6.65%
A32: 22 | B32: Automobile | C32: BALKRISIND | D32: 2021-03-25 | E32: 1625.15 | F32: 1622.40 | G32: 1614.80 | H32: 1604.45 | I32: 1596.85 | J32: 1632.75 | K32: 1640.35 | L32: 1650.70 | M32: 1630 | N32: 1612.05 | O32: 1930800 | P32: 1.22%
A33: 23 | B33: Banking | C33: BANDHANBNK | D33: 2021-03-25 | E33: 353.90 | F33: 351.77 | G33: 346.63 | H33: 339.37 | I33: 334.23 | J33: 359.03 | K33: 364.17 | L33: 371.43 | M33: 356.9 | N33: 344.5 | O33: 18835200 | P33: 2.78%
A34: 24 | B34: Banking | C34: BANKBARODA | D34: 2021-03-25 | E34: 72.55 | F34: 72.93 | G34: 71.12 | H34: 69.68 | I34: 67.87 | J34: 74.37 | K34: 76.18 | L34: 77.62 | M34: 74.75 | N34: 71.5 | O34: 118965600 | P34: 6.84%
A35: 25 | B35: FMCG | C35: BATAINDIA | D35: 2021-03-25 | E35: 1481.80 | F35: 1481.92 | G35: 1471.73 | H35: 1461.67 | I35: 1451.48 | J35: 1491.98 | K35: 1502.17 | L35: 1512.23 | M35: 1492.1 | N35: 1471.85 | O35: 1291950 | P35: 0.73%
A36: 26 | B36: Capital_Goods | C36: BEL | D36: 2021-03-25 | E36: 126.90 | F36: 127.97 | G36: 125.23 | H36: 123.57 | I36: 120.83 | J36: 129.63 | K36: 132.37 | L36: 134.03 | M36: 130.7 | N36: 126.3 | O36: 44900800 | P36: 0.61%
A37: 27 | B37: FMCG | C37: BERGEPAINT | D37: 2021-03-25 | E37: 733.80 | F37: 729.60 | G37: 723.70 | H37: 713.60 | I37: 707.70 | J37: 739.70 | K37: 745.60 | L37: 755.70 | M37: 735.5 | N37: 719.5 | O37: 2891900 | P37: -2.45%
A38: 28 | B38: Automobile | C38: BHARATFORG | D38: 2021-03-25 | E38: 596.00 | F38: 598.72 | G38: 589.93 | H38: 583.87 | I38: 575.08 | J38: 604.78 | K38: 613.57 | L38: 619.63 | M38: 607.5 | N38: 592.65 | O38: 5439000 | P38: -3.72%
A39: 29 | B39: Telecom | C39: BHARTIARTL | D39: 2021-03-25 | E39: 529.30 | F39: 529.33 | G39: 524.12 | H39: 518.93 | I39: 513.72 | J39: 534.52 | K39: 539.73 | L39: 544.92 | M39: 534.55 | N39: 524.15 | O39: 101271912 | P39: 2.03%
A40: 30 | B40: Capital_Goods | C40: BHEL | D40: 2021-03-25 | E40: 52.30 | F40: 52.22 | G40: 51.58 | H40: 50.87 | I40: 50.23 | J40: 52.93 | K40: 53.57 | L40: 54.28 | M40: 52.85 | N40: 51.5 | O40: 104853000 | P40: 0.48%
A41: 31 | B41: Pharma | C41: BIOCON | D41: 2021-03-25 | E41: 402.65 | F41: 401.08 | G41: 397.77 | H41: 392.88 | I41: 389.57 | J41: 405.97 | K41: 409.28 | L41: 414.17 | M41: 404.4 | N41: 396.2 | O41: 14248500 | P41: -5.23%
A42: 32 | B42: Automobile | C42: BOSCHLTD | D42: 2021-03-25 | E42: 14380.00 | F42: 14418.67 | G42: 14255.73 | H42: 14131.47 | I42: 13968.53 | J42: 14542.93 | K42: 14705.87 | L42: 14830.13 | M42: 14581.6 | N42: 14294.4 | O42: 92750 | P42: 4.39%
A43: 33 | B43: Oil_Gas | C43: BPCL | D43: 2021-03-25 | E43: 435.75 | F43: 431.82 | G43: 424.73 | H43: 413.72 | I43: 406.63 | J43: 442.83 | K43: 449.92 | L43: 460.93 | M43: 438.9 | N43: 420.8 | O43: 49059000 | P43: -2.07%
A44: 34 | B44: FMCG | C44: BRITANNIA | D44: 2021-03-25 | E44: 3563.25 | F44: 3533.45 | G44: 3496.90 | H44: 3430.55 | I44: 3394.00 | J44: 3599.80 | K44: 3636.35 | L44: 3702.70 | M44: 3570 | N44: 3467.1 | O44: 2305000 | P44: -0.52%
A45: 35 | B45: Pharma | C45: CADILAHC | D45: 2021-03-25 | E45: 433.05 | F45: 432.55 | G45: 426.75 | H45: 420.45 | I45: 414.65 | J45: 438.85 | K45: 444.65 | L45: 450.95 | M45: 438.35 | N45: 426.25 | O45: 10953800 | P45: 4.84%
A46: 36 | B46: Banking | C46: CANBK | D46: 2021-03-25 | E46: 150.35 | F46: 150.80 | G46: 147.30 | H46: 144.25 | I46: 140.75 | J46: 153.85 | K46: 157.35 | L46: 160.40 | M46: 154.3 | N46: 147.75 | O46: 55938600 | P46: -1.05%
A47: 37 | B47: Finance | C47: CHOLAFIN | D47: 2021-03-25 | E47: 569.95 | F47: 563.88 | G47: 549.17 | H47: 528.38 | I47: 513.67 | J47: 584.67 | K47: 599.38 | L47: 620.17 | M47: 578.6 | N47: 543.1 | O47: 5960000 | P47: 10.52%
A48: 38 | B48: Pharma | C48: CIPLA | D48: 2021-03-25 | E48: 773.60 | F48: 771.42 | G48: 760.93 | H48: 748.27 | I48: 737.78 | J48: 784.08 | K48: 794.57 | L48: 807.23 | M48: 781.9 | N48: 758.75 | O48: 11195600 | P48: -0.53%
A49: 39 | B49: Others | C49: COALINDIA | D49: 2021-03-25 | E49: 136.05 | F49: 136.42 | G49: 135.23 | H49: 134.42 | I49: 133.23 | J49: 137.23 | K49: 138.42 | L49: 139.23 | M49: 137.6 | N49: 135.6 | O49: 44851800 | P49: 3.51%
A50: 40 | B50: Technology | C50: COFORGE | D50: 2021-03-25 | E50: 2930.25 | F50: 2953.82 | G50: 2884.43 | H50: 2838.62 | I50: 2769.23 | J50: 2999.63 | K50: 3069.02 | L50: 3114.83 | M50: 3023.2 | N50: 2908 | O50: 565125 | P50: 12.30%
A51: 41 | B51: FMCG | C51: COLPAL | D51: 2021-03-25 | E51: 1584.75 | F51: 1581.47 | G51: 1569.13 | H51: 1553.52 | I51: 1541.18 | J51: 1597.08 | K51: 1609.42 | L51: 1625.03 | M51: 1593.8 | N51: 1565.85 | O51: 3399200 | P51: 0.02%
A52: 42 | B52: Others | C52: CONCOR | D52: 2021-03-25 | E52: 561.70 | F52: 559.87 | G52: 553.23 | H52: 544.77 | I52: 538.13 | J52: 568.33 | K52: 574.97 | L52: 583.43 | M52: 566.5 | N52: 551.4 | O52: 6583356 | P52: -2.61%
A53: 43 | B53: Banking | C53: CUB | D53: 2021-03-25 | E53: 169.85 | F53: 169.67 | G53: 168.23 | H53: 166.62 | I53: 165.18 | J53: 171.28 | K53: 172.72 | L53: 174.33 | M53: 171.1 | N53: 168.05 | O53: 7886400 | P53: -0.43%
A54: 44 | B54: Capital_Goods | C54: CUMMINSIND | D54: 2021-03-25 | E54: 890.80 | F54: 892.33 | G54: 880.77 | H54: 870.73 | I54: 859.17 | J54: 902.37 | K54: 913.93 | L54: 923.97 | M54: 903.9 | N54: 882.3 | O54: 1934400 | P54: -5.12%
A55: 45 | B55: FMCG | C55: DABUR | D55: 2021-03-25 | E55: 534.75 | F55: 531.87 | G55: 527.93 | H55: 521.12 | I55: 517.18 | J55: 538.68 | K55: 542.62 | L55: 549.43 | M55: 535.8 | N55: 525.05 | O55: 8800000 | P55: 3.23%
A56: 46 | B56: Chemical | C56: DEEPAKNTR | D56: 2021-03-25 | E56: 1534.15 | F56: 1517.43 | G56: 1487.87 | H56: 1441.58 | I56: 1412.02 | J56: 1563.72 | K56: 1593.28 | L56: 1639.57 | M56: 1547 | N56: 1471.15 | O56: 745000 | P56: 3.40%
A57: 47 | B57: Pharma | C57: DIVISLAB | D57: 2021-03-25 | E57: 3409.20 | F57: 3402.65 | G57: 3364.30 | H57: 3319.40 | I57: 3281.05 | J57: 3447.55 | K57: 3485.90 | L57: 3530.80 | M57: 3441 | N57: 3357.75 | O57: 2922800 | P57: -3.59%
A58: 48 | B58: Realty | C58: DLF | D58: 2021-03-25 | E58: 292.95 | F58: 290.55 | G58: 286.95 | H58: 280.95 | I58: 277.35 | J58: 296.55 | K58: 300.15 | L58: 306.15 | M58: 294.15 | N58: 284.55 | O58: 25591500 | P58: 0.88%
A59: 49 | B59: Pharma | C59: DRREDDY | D59: 2021-03-25 | E59: 4357.80 | F59: 4338.38 | G59: 4301.97 | H59: 4246.13 | I59: 4209.72 | J59: 4394.22 | K59: 4430.63 | L59: 4486.47 | M59: 4374.8 | N59: 4282.55 | O59: 3428875 | P59: -4.43%
A60: 50 | B60: Automobile | C60: EICHERMOT | D60: 2021-03-25 | E60: 2677.80 | F60: 2673.27 | G60: 2654.53 | H60: 2631.27 | I60: 2612.53 | J60: 2696.53 | K60: 2715.27 | L60: 2738.53 | M60: 2692 | N60: 2650 | O60: 2162650 | P60: -0.79%
A61: 51 | B61: Automobile | C61: ESCORTS | D61: 2021-03-25 | E61: 1365.05 | F61: 1361.58 | G61: 1346.22 | H61: 1327.38 | I61: 1312.02 | J61: 1380.42 | K61: 1395.78 | L61: 1414.62 | M61: 1376.95 | N61: 1342.75 | O61: 1936550 | P61: -1.21%
A62: 52 | B62: Automobile | C62: EXIDEIND | D62: 2021-03-25 | E62: 189.25 | F62: 189.22 | G62: 187.53 | H62: 185.82 | I62: 184.13 | J62: 190.93 | K62: 192.62 | L62: 194.33 | M62: 190.9 | N62: 187.5 | O62: 14385600 | P62: -4.68%
A63: 53 | B63: Banking | C63: FEDERALBNK | D63: 2021-03-25 | E63: 77.20 | F63: 77.50 | G63: 76.35 | H63: 75.50 | I63: 74.35 | J63: 78.35 | K63: 79.50 | L63: 80.35 | M63: 78.65 | N63: 76.65 | O63: 75940000 | P63: -2.04%
A64: 54 | B64: Oil_Gas | C64: GAIL | D64: 2021-03-25 | E64: 136.80 | F64: 137.37 | G64: 134.68 | H64: 132.57 | I64: 129.88 | J64: 139.48 | K64: 142.17 | L64: 144.28 | M64: 140.05 | N64: 135.25 | O64: 26132400 | P64: -3.45%
A65: 55 | B65: Pharma | C65: GLENMARK | D65: 2021-03-25 | E65: 462.15 | F65: 461.93 | G65: 455.47 | H65: 448.78 | I65: 442.32 | J65: 468.62 | K65: 475.08 | L65: 481.77 | M65: 468.4 | N65: 455.25 | O65: 5861550 | P65: 3.68%
A66: 56 | B66: Infrastructure | C66: GMRINFRA | D66: 2021-03-25 | E66: 25.55 | F66: 25.35 | G66: 24.90 | H66: 24.25 | I66: 23.80 | J66: 26.00 | K66: 26.45 | L66: 27.10 | M66: 25.8 | N66: 24.7 | O66: 167602500 | P66: 3.13%
A67: 57 | B67: FMCG | C67: GODREJCP | D67: 2021-03-25 | E67: 695.75 | F67: 688.38 | G67: 679.37 | H67: 662.98 | I67: 653.97 | J67: 704.77 | K67: 713.78 | L67: 730.17 | M67: 697.4 | N67: 672 | O67: 6523000 | P67: 4.12%
A68: 58 | B68: Realty | C68: GODREJPROP | D68: 2021-03-25 | E68: 1410.90 | F68: 1385.07 | G68: 1345.33 | H68: 1279.77 | I68: 1240.03 | J68: 1450.63 | K68: 1490.37 | L68: 1555.93 | M68: 1424.8 | N68: 1319.5 | O68: 2377050 | P68: -4.07%
A69: 59 | B69: Pharma | C69: GRANULES | D69: 2021-03-25 | E69: 311.85 | F69: 314.02 | G69: 308.38 | H69: 304.92 | I69: 299.28 | J69: 317.48 | K69: 323.12 | L69: 326.58 | M69: 319.65 | N69: 310.55 | O69: 5722600 | P69: -0.32%
A70: 60 | B70: Cement | C70: GRASIM | D70: 2021-03-25 | E70: 1418.20 | F70: 1417.48 | G70: 1405.27 | H70: 1392.33 | I70: 1380.12 | J70: 1430.42 | K70: 1442.63 | L70: 1455.57 | M70: 1429.7 | N70: 1404.55 | O70: 17884700 | P70: 0.87%
A71: 61 | B71: Oil_Gas | C71: GUJGASLTD | D71: 2021-03-25 | E71: 512.00 | F71: 513.73 | G71: 507.52 | H71: 503.03 | I71: 496.82 | J71: 518.22 | K71: 524.43 | L71: 528.92 | M71: 519.95 | N71: 509.25 | O71: 1147500 | P71: 4.08%
A72: 62 | B72: Capital_Goods | C72: HAVELLS | D72: 2021-03-25 | E72: 1038.65 | F72: 1041.15 | G72: 1025.50 | H72: 1012.35 | I72: 996.70 | J72: 1054.30 | K72: 1069.95 | L72: 1083.10 | M72: 1056.8 | N72: 1028 | O72: 5319000 | P72: 0.76%
A73: 63 | B73: Technology | C73: HCLTECH | D73: 2021-03-25 | E73: 978.30 | F73: 969.53 | G73: 956.82 | H73: 935.33 | I73: 922.62 | J73: 991.02 | K73: 1003.73 | L73: 1025.22 | M73: 982.25 | N73: 948.05 | O73: 17798200 | P73: 1.20%
A74: 64 | B74: Finance | C74: HDFC | D74: 2021-03-25 | E74: 2530.85 | F74: 2521.58 | G74: 2494.47 | H74: 2458.08 | I74: 2430.97 | J74: 2557.97 | K74: 2585.08 | L74: 2621.47 | M74: 2548.7 | N74: 2485.2 | O74: 14850300 | P74: -2.73%
A75: 65 | B75: Finance | C75: HDFCAMC | D75: 2021-03-25 | E75: 2889.25 | F75: 2880.85 | G75: 2866.45 | H75: 2843.65 | I75: 2829.25 | J75: 2903.65 | K75: 2918.05 | L75: 2940.85 | M75: 2895.25 | N75: 2858.05 | O75: 518200 | P75: 0.97%
A76: 66 | B76: Banking | C76: HDFCBANK | D76: 2021-03-25 | E76: 1472.80 | F76: 1475.90 | G76: 1459.40 | H76: 1446.00 | I76: 1429.50 | J76: 1489.30 | K76: 1505.80 | L76: 1519.20 | M76: 1492.4 | N76: 1462.5 | O76: 24995850 | P76: 1.62%
A77: 67 | B77: Finance | C77: HDFCLIFE | D77: 2021-03-25 | E77: 681.80 | F77: 685.25 | G77: 675.65 | H77: 669.50 | I77: 659.90 | J77: 691.40 | K77: 701.00 | L77: 707.15 | M77: 694.85 | N77: 679.1 | O77: 8835200 | P77: -0.07%
A78: 68 | B78: Automobile | C78: HEROMOTOCO | D78: 2021-03-25 | E78: 3102.10 | F78: 3112.52 | G78: 3079.08 | H78: 3056.07 | I78: 3022.63 | J78: 3135.53 | K78: 3168.97 | L78: 3191.98 | M78: 3145.95 | N78: 3089.5 | O78: 3775200 | P78: -8.51%
A79: 69 | B79: Metals | C79: HINDALCO | D79: 2021-03-25 | E79: 340.35 | F79: 338.28 | G79: 333.82 | H79: 327.28 | I79: 322.82 | J79: 344.82 | K79: 349.28 | L79: 355.82 | M79: 342.75 | N79: 331.75 | O79: 30177400 | P79: -0.38%
A80: 70 | B80: Oil_Gas | C80: HINDPETRO | D80: 2021-03-25 | E80: 236.60 | F80: 236.27 | G80: 234.93 | H80: 233.27 | I80: 231.93 | J80: 237.93 | K80: 239.27 | L80: 240.93 | M80: 237.6 | N80: 234.6 | O80: 33369300 | P80: 3.02%
A81: 71 | B81: FMCG | C81: HINDUNILVR | D81: 2021-03-25 | E81: 2352.60 | F81: 2337.68 | G81: 2319.17 | H81: 2285.73 | I81: 2267.22 | J81: 2371.12 | K81: 2389.63 | L81: 2423.07 | M81: 2356.2 | N81: 2304.25 | O81: 6482400 | P81: 0.61%
A82: 72 | B82: Finance | C82: IBULHSGFIN | D82: 2021-03-25 | E82: 213.75 | F82: 214.92 | G82: 211.03 | H82: 208.32 | I82: 204.43 | J82: 217.63 | K82: 221.52 | L82: 224.23 | M82: 218.8 | N82: 212.2 | O82: 31006200 | P82: -1.61%
A83: 73 | B83: Banking | C83: ICICIBANK | D83: 2021-03-25 | E83: 574.65 | F83: 577.85 | G83: 567.40 | H83: 560.15 | I83: 549.70 | J83: 585.10 | K83: 595.55 | L83: 602.80 | M83: 588.3 | N83: 570.6 | O83: 94969875 | P83: 0.70%
A84: 74 | B84: Finance | C84: ICICIGI | D84: 2021-03-25 | E84: 1439.50 | F84: 1445.90 | G84: 1428.70 | H84: 1417.90 | I84: 1400.70 | J84: 1456.70 | K84: 1473.90 | L84: 1484.70 | M84: 1463.1 | N84: 1435.1 | O84: 995775 | P84: 2.40%
A85: 75 | B85: Finance | C85: ICICIPRULI | D85: 2021-03-25 | E85: 437.95 | F85: 435.55 | G85: 431.80 | H85: 425.65 | I85: 421.90 | J85: 441.70 | K85: 445.45 | L85: 451.60 | M85: 439.3 | N85: 429.4 | O85: 9189000 | P85: -6.52%
A86: 76 | B86: Telecom | C86: IDEA | D86: 2021-03-25 | E86: 10.10 | F86: 9.98 | G86: 9.77 | H86: 9.43 | I86: 9.22 | J86: 10.32 | K86: 10.53 | L86: 10.87 | M86: 10.2 | N86: 9.65 | O86: 965090000 | P86: -4.25%
A87: 77 | B87: Banking | C87: IDFCFIRSTB | D87: 2021-03-25 | E87: 59.70 | F87: 59.88 | G87: 58.67 | H87: 57.63 | I87: 56.42 | J87: 60.92 | K87: 62.13 | L87: 63.17 | M87: 61.1 | N87: 58.85 | O87: 184262000 | P87: 0.06%
A88: 78 | B88: Oil_Gas | C88: IGL | D88: 2021-03-25 | E88: 515.60 | F88: 513.88 | G88: 509.12 | H88: 502.63 | I88: 497.87 | J88: 520.37 | K88: 525.13 | L88: 531.62 | M88: 518.65 | N88: 507.4 | O88: 5775000 | P88: -0.78%
A89: 79 | B89: Others | C89: INDIGO | D89: 2021-03-25 | E89: 1708.90 | F89: 1687.47 | G89: 1652.98 | H89: 1597.07 | I89: 1562.58 | J89: 1743.38 | K89: 1777.87 | L89: 1833.78 | M89: 1721.95 | N89: 1631.55 | O89: 3350000 | P89: -0.03%
A90: 80 | B90: Banking | C90: INDUSINDBK | D90: 2021-03-25 | E90: 970.75 | F90: 981.22 | G90: 950.83 | H90: 930.92 | I90: 900.53 | J90: 1001.13 | K90: 1031.52 | L90: 1051.43 | M90: 1011.6 | N90: 961.3 | O90: 23907600 | P90: 6.26%
A91: 81 | B91: Telecom | C91: INDUSTOWER | D91: 2021-03-25 | E91: 258.85 | F91: 259.52 | G91: 257.08 | H91: 255.32 | I91: 252.88 | J91: 261.28 | K91: 263.72 | L91: 265.48 | M91: 261.95 | N91: 257.75 | O91: 12185600 | P91: 2.18%
A92: 82 | B92: Technology | C92: INFY | D92: 2021-03-25 | E92: 1373.15 | F92: 1364.28 | G92: 1349.97 | H92: 1326.78 | I92: 1312.47 | J92: 1387.47 | K92: 1401.78 | L92: 1424.97 | M92: 1378.6 | N92: 1341.1 | O92: 30934800 | P92: 0.28%
A93: 83 | B93: Oil_Gas | C93: IOC | D93: 2021-03-25 | E93: 96.45 | F93: 96.27 | G93: 95.58 | H93: 94.72 | I93: 94.03 | J93: 97.13 | K93: 97.82 | L93: 98.68 | M93: 96.95 | N93: 95.4 | O93: 71337500 | P93: 5.20%
A94: 84 | B94: Others | C94: IRCTC | D94: 2021-03-25 | E94: 1839.00 | F94: 1843.10 | G94: 1805.25 | H94: 1771.50 | I94: 1733.65 | J94: 1876.85 | K94: 1914.70 | L94: 1948.45 | M94: 1880.95 | N94: 1809.35 | O94: 1974700 | P94: -1.44%
A95: 85 | B95: FMCG | C95: ITC | D95: 2021-03-25 | E95: 226.10 | F95: 224.80 | G95: 223.00 | H95: 219.90 | I95: 218.10 | J95: 227.90 | K95: 229.70 | L95: 232.80 | M95: 226.6 | N95: 221.7 | O95: 107824000 | P95: -3.54%
A96: 86 | B96: Metals | C96: JINDALSTEL | D96: 2021-03-25 | E96: 320.85 | F96: 317.92 | G96: 312.33 | H96: 303.82 | I96: 298.23 | J96: 326.43 | K96: 332.02 | L96: 340.53 | M96: 323.5 | N96: 309.4 | O96: 29040000 | P96: -1.44%
A97: 87 | B97: Metals | C97: JSWSTEEL | D97: 2021-03-25 | E97: 446.45 | F97: 444.80 | G97: 439.90 | H97: 433.35 | I97: 428.45 | J97: 451.35 | K97: 456.25 | L97: 462.80 | M97: 449.7 | N97: 438.25 | O97: 33050700 | P97: -0.02%
A98: 88 | B98: Others | C98: JUBLFOOD | D98: 2021-03-25 | E98: 2883.00 | F98: 2868.33 | G98: 2832.12 | H98: 2781.23 | I98: 2745.02 | J98: 2919.22 | K98: 2955.43 | L98: 3006.32 | M98: 2904.55 | N98: 2817.45 | O98: 1351500 | P98: -1.83%
A99: 89 | B99: Banking | C99: KOTAKBANK | D99: 2021-03-25 | E99: 1827.05 | F99: 1829.32 | G99: 1806.28 | H99: 1785.52 | I99: 1762.48 | J99: 1850.08 | K99: 1873.12 | L99: 1893.88 | M99: 1852.35 | N99: 1808.55 | O99: 12600400 | P99: -1.91%
A100: 90 | B100: Finance | C100: L&TFH | D100: 2021-03-25 | E100: 99.50 | F100: 100.25 | G100: 97.75 | H100: 96.00 | I100: 93.50 | J100: 102.00 | K100: 104.50 | L100: 106.25 | M100: 102.75 | N100: 98.5 | O100: 30671788 | P100: 3.52%
A101: 91 | B101: Others | C101: LALPATHLAB | D101: 2021-03-25 | E101: 2571.65 | F101: 2563.92 | G101: 2543.53 | H101: 2515.42 | I101: 2495.03 | J101: 2592.03 | K101: 2612.42 | L101: 2640.53 | M101: 2584.3 | N101: 2535.8 | O101: 188750 | P101: -3.94%
A102: 92 | B102: Finance | C102: LICHSGFIN | D102: 2021-03-25 | E102: 414.30 | F102: 416.32 | G102: 408.83 | H102: 403.37 | I102: 395.88 | J102: 421.78 | K102: 429.27 | L102: 434.73 | M102: 423.8 | N102: 410.85 | O102: 8072000 | P102: -1.68%
A103: 93 | B103: Capital_Goods | C103: LT | D103: 2021-03-25 | E103: 1401.95 | F103: 1405.87 | G103: 1391.83 | H103: 1381.72 | I103: 1367.68 | J103: 1415.98 | K103: 1430.02 | L103: 1440.13 | M103: 1419.9 | N103: 1395.75 | O103: 13513650 | P103: 0.56%
A104: 94 | B104: Technology | C104: LTI | D104: 2021-03-25 | E104: 4105.15 | F104: 4123.68 | G104: 4047.37 | H104: 3989.58 | I104: 3913.27 | J104: 4181.47 | K104: 4257.78 | L104: 4315.57 | M104: 4200 | N104: 4065.9 | O104: 251250 | P104: 7.72%
A105: 95 | B105: Technology | C105: LTTS | D105: 2021-03-25 | E105: 2605.15 | F105: 2609.33 | G105: 2581.47 | H105: 2557.78 | I105: 2529.92 | J105: 2633.02 | K105: 2660.88 | L105: 2684.57 | M105: 2637.2 | N105: 2585.65 | O105: 545200 | P105: 4.17%
A106: 96 | B106: Pharma | C106: LUPIN | D106: 2021-03-25 | E106: 1016.25 | F106: 1013.28 | G106: 1004.07 | H106: 991.88 | I106: 982.67 | J106: 1025.47 | K106: 1034.68 | L106: 1046.87 | M106: 1022.5 | N106: 1001.1 | O106: 6539050 | P106: -1.07%
A107: 97 | B107: Automobile | C107: M&M | D107: 2021-03-25 | E107: 853.00 | F107: 849.08 | G107: 838.57 | H107: 824.13 | I107: 813.62 | J107: 863.52 | K107: 874.03 | L107: 888.47 | M107: 859.6 | N107: 834.65 | O107: 7820400 | P107: -1.12%
A108: 98 | B108: Finance | C108: M&MFIN | D108: 2021-03-25 | E108: 212.05 | F108: 214.20 | G108: 208.15 | H108: 204.25 | I108: 198.20 | J108: 218.10 | K108: 224.15 | L108: 228.05 | M108: 220.25 | N108: 210.3 | O108: 13924000 | P108: 8.75%
A109: 99 | B109: Finance | C109: MANAPPURAM | D109: 2021-03-25 | E109: 156.95 | F109: 157.98 | G109: 155.22 | H109: 153.48 | I109: 150.72 | J109: 159.72 | K109: 162.48 | L109: 164.22 | M109: 160.75 | N109: 156.25 | O109: 21246000 | P109: 3.93%
A110: 100 | B110: FMCG | C110: MARICO | D110: 2021-03-25 | E110: 402.60 | F110: 400.43 | G110: 397.07 | H110: 391.53 | I110: 388.17 | J110: 405.97 | K110: 409.33 | L110: 414.87 | M110: 403.8 | N110: 394.9 | O110: 7912000 | P110: -4.17%
A111: 101 | B111: Automobile | C111: MARUTI | D111: 2021-03-25 | E111: 7106.10 | F111: 7098.85 | G111: 7056.70 | H111: 7007.30 | I111: 6965.15 | J111: 7148.25 | K111: 7190.40 | L111: 7239.80 | M111: 7141 | N111: 7049.45 | O111: 2249100 | P111: -1.47%
A112: 102 | B112: FMCG | C112: MCDOWELL-N | D112: 2021-03-25 | E112: 543.85 | F112: 541.07 | G112: 537.38 | H112: 530.92 | I112: 527.23 | J112: 547.53 | K112: 551.22 | L112: 557.68 | M112: 544.75 | N112: 534.6 | O112: 13955000 | P112: -1.56%
A113: 103 | B113: Finance | C113: MFSL | D113: 2021-03-25 | E113: 847.80 | F113: 852.15 | G113: 839.45 | H113: 831.10 | I113: 818.40 | J113: 860.50 | K113: 873.20 | L113: 881.55 | M113: 864.85 | N113: 843.8 | O113: 2345200 | P113: 2.27%
A114: 104 | B114: Oil_Gas | C114: MGL | D114: 2021-03-25 | E114: 1125.10 | F114: 1128.97 | G114: 1115.63 | H114: 1106.17 | I114: 1092.83 | J114: 1138.43 | K114: 1151.77 | L114: 1161.23 | M114: 1142.3 | N114: 1119.5 | O114: 1152000 | P114: -7.38%
A115: 105 | B115: Technology | C115: MINDTREE | D115: 2021-03-25 | E115: 2008.50 | F115: 2005.43 | G115: 1988.07 | H115: 1967.63 | I115: 1950.27 | J115: 2025.87 | K115: 2043.23 | L115: 2063.67 | M115: 2022.8 | N115: 1985 | O115: 1668000 | P115: 7.92%
A116: 106 | B116: Automobile | C116: MOTHERSUMI | D116: 2021-03-25 | E116: 206.50 | F116: 208.57 | G116: 202.23 | H116: 197.97 | I116: 191.63 | J116: 212.83 | K116: 219.17 | L116: 223.43 | M116: 214.9 | N116: 204.3 | O116: 29393000 | P116: 0.14%
A117: 107 | B117: Technology | C117: MPHASIS | D117: 2021-03-25 | E117: 1670.55 | F117: 1663.62 | G117: 1642.88 | H117: 1615.22 | I117: 1594.48 | J117: 1691.28 | K117: 1712.02 | L117: 1739.68 | M117: 1684.35 | N117: 1635.95 | O117: 402350 | P117: -0.24%
A118: 108 | B118: Automobile | C118: MRF | D118: 2021-03-25 | E118: 83959.40 | F118: 84026.50 | G118: 82432.95 | H118: 80906.50 | I118: 79312.95 | J118: 85552.95 | K118: 87146.50 | L118: 88672.95 | M118: 85620.05 | N118: 82500.05 | O118: 49540 | P118: -2.29%
A119: 109 | B119: Finance | C119: MUTHOOTFIN | D119: 2021-03-25 | E119: 1239.65 | F119: 1237.67 | G119: 1225.33 | H119: 1211.02 | I119: 1198.68 | J119: 1251.98 | K119: 1264.32 | L119: 1278.63 | M119: 1250 | N119: 1223.35 | O119: 3465000 | P119: 10.58%
A120: 110 | B120: Others | C120: NAM-INDIA | D120: 2021-03-25 | E120: 335.90 | F120: 333.42 | G120: 329.88 | H120: 323.87 | I120: 320.33 | J120: 339.43 | K120: 342.97 | L120: 348.98 | M120: 336.95 | N120: 327.4 | O120: 1324800 | P120: -4.61%
A121: 111 | B121: Metals | C121: NATIONALUM | D121: 2021-03-25 | E121: 54.50 | F121: 54.57 | G121: 53.88 | H121: 53.27 | I121: 52.58 | J121: 55.18 | K121: 55.87 | L121: 56.48 | M121: 55.25 | N121: 53.95 | O121: 71281000 | P121: -3.36%
A122: 112 | B122: Others | C122: NAUKRI | D122: 2021-03-25 | E122: 4685.00 | F122: 4682.58 | G122: 4628.47 | H122: 4571.93 | I122: 4517.82 | J122: 4739.12 | K122: 4793.23 | L122: 4849.77 | M122: 4736.7 | N122: 4626.05 | O122: 880000 | P122: -5.38%
A123: 113 | B123: Chemical | C123: NAVINFLUOR | D123: 2021-03-25 | E123: 2545.95 | F123: 2540.12 | G123: 2499.23 | H123: 2452.52 | I123: 2411.63 | J123: 2586.83 | K123: 2627.72 | L123: 2674.43 | M123: 2581 | N123: 2493.4 | O123: 181800 | P123: 3.46%
A124: 114 | B124: FMCG | C124: NESTLEIND | D124: 2021-03-25 | E124: 16641.00 | F124: 16588.28 | G124: 16453.72 | H124: 16266.43 | I124: 16131.87 | J124: 16775.57 | K124: 16910.13 | L124: 17097.42 | M124: 16722.85 | N124: 16401 | O124: 323450 | P124: -0.42%
A125: 115 | B125: Metals | C125: NMDC | D125: 2021-03-25 | E125: 128.60 | F125: 128.38 | G125: 126.97 | H125: 125.33 | I125: 123.92 | J125: 130.02 | K125: 131.43 | L125: 133.07 | M125: 129.8 | N125: 126.75 | O125: 44508100 | P125: -0.63%
A126: 116 | B126: Power | C126: NTPC | D126: 2021-03-25 | E126: 109.95 | F126: 109.08 | G126: 107.77 | H126: 105.58 | I126: 104.27 | J126: 111.27 | K126: 112.58 | L126: 114.77 | M126: 110.4 | N126: 106.9 | O126: 77748000 | P126: -0.93%
A127: 117 | B127: Oil_Gas | C127: ONGC | D127: 2021-03-25 | E127: 109.85 | F127: 109.97 | G127: 108.58 | H127: 107.32 | I127: 105.93 | J127: 111.23 | K127: 112.62 | L127: 113.88 | M127: 111.35 | N127: 108.7 | O127: 43428000 | P127: 10.22%
A128: 118 | B128: Textile | C128: PAGEIND | D128: 2021-03-25 | E128: 29762.55 | F128: 29309.07 | G128: 28648.13 | H128: 27533.72 | I128: 26872.78 | J128: 30423.48 | K128: 31084.42 | L128: 32198.83 | M128: 29970 | N128: 28194.65 | O128: 63330 | P128: 6.62%
A129: 119 | B129: Pharma | C129: PEL | D129: 2021-03-25 | E129: 1899.90 | F129: 1895.50 | G129: 1869.00 | H129: 1838.10 | I129: 1811.60 | J129: 1926.40 | K129: 1952.90 | L129: 1983.80 | M129: 1922 | N129: 1864.6 | O129: 3006850 | P129: -1.74%
A130: 120 | B130: Oil_Gas | C130: PETRONET | D130: 2021-03-25 | E130: 229.05 | F130: 228.50 | G130: 226.20 | H130: 223.35 | I130: 221.05 | J130: 231.35 | K130: 233.65 | L130: 236.50 | M130: 230.8 | N130: 225.65 | O130: 19731000 | P130: -2.13%
A131: 121 | B131: Finance | C131: PFC | D131: 2021-03-25 | E131: 121.90 | F131: 122.75 | G131: 120.65 | H131: 119.40 | I131: 117.30 | J131: 124.00 | K131: 126.10 | L131: 127.35 | M131: 124.85 | N131: 121.5 | O131: 34180600 | P131: 2.00%
A132: 122 | B132: Pharma | C132: PFIZER | D132: 2021-03-25 | E132: 4421.80 | F132: 4417.53 | G132: 4394.02 | H132: 4366.23 | I132: 4342.72 | J132: 4445.32 | K132: 4468.83 | L132: 4496.62 | M132: 4441.05 | N132: 4389.75 | O132: 47875 | P132: 5.51%
A133: 123 | B133: FMCG | C133: PIDILITIND | D133: 2021-03-25 | E133: 1767.45 | F133: 1764.62 | G133: 1745.68 | H133: 1723.92 | I133: 1704.98 | J133: 1786.38 | K133: 1805.32 | L133: 1827.08 | M133: 1783.55 | N133: 1742.85 | O133: 1897500 | P133: -0.50%
A134: 124 | B134: Chemical | C134: PIIND | D134: 2021-03-25 | E134: 2301.00 | F134: 2288.37 | G134: 2256.13 | H134: 2211.27 | I134: 2179.03 | J134: 2333.23 | K134: 2365.47 | L134: 2410.33 | M134: 2320.6 | N134: 2243.5 | O134: 323000 | P134: 1.25%
A135: 125 | B135: Banking | C135: PNB | D135: 2021-03-25 | E135: 38.00 | F135: 37.98 | G135: 37.42 | H135: 36.83 | I135: 36.27 | J135: 38.57 | K135: 39.13 | L135: 39.72 | M135: 38.55 | N135: 37.4 | O135: 238224000 | P135: 3.84%
A136: 126 | B136: Power | C136: POWERGRID | D136: 2021-03-25 | E136: 224.20 | F136: 227.47 | G136: 219.93 | H136: 215.67 | I136: 208.13 | J136: 231.73 | K136: 239.27 | L136: 243.53 | M136: 235 | N136: 223.2 | O136: 13956000 | P136: 9.00%
A137: 127 | B137: Media | C137: PVR | D137: 2021-03-25 | E137: 1331.85 | F137: 1335.13 | G137: 1318.12 | H137: 1304.38 | I137: 1287.37 | J137: 1348.87 | K137: 1365.88 | L137: 1379.62 | M137: 1352.15 | N137: 1321.4 | O137: 1894585 | P137: 18.63%
A138: 128 | B138: Cement | C138: RAMCOCEM | D138: 2021-03-25 | E138: 974.30 | F138: 968.17 | G138: 956.73 | H138: 939.17 | I138: 927.73 | J138: 985.73 | K138: 997.17 | L138: 1014.73 | M138: 979.6 | N138: 950.6 | O138: 1895500 | P138: -6.46%
A139: 129 | B139: Banking | C139: RBLBANK | D139: 2021-03-25 | E139: 225.95 | F139: 226.67 | G139: 222.58 | H139: 219.22 | I139: 215.13 | J139: 230.03 | K139: 234.12 | L139: 237.48 | M139: 230.75 | N139: 223.3 | O139: 20804600 | P139: 2.74%
A140: 130 | B140: Power | C140: RECLTD | D140: 2021-03-25 | E140: 139.65 | F140: 140.82 | G140: 137.93 | H140: 136.22 | I140: 133.33 | J140: 142.53 | K140: 145.42 | L140: 147.13 | M140: 143.7 | N140: 139.1 | O140: 18234000 | P140: 4.18%
A141: 131 | B141: Oil_Gas | C141: RELIANCE | D141: 2021-03-25 | E141: 2066.65 | F141: 2061.33 | G141: 2043.72 | H141: 2020.78 | I141: 2003.17 | J141: 2084.27 | K141: 2101.88 | L141: 2124.82 | M141: 2078.95 | N141: 2038.4 | O141: 27080500 | P141: 0.31%
A142: 132 | B142: Metals | C142: SAIL | D142: 2021-03-25 | E142: 73.35 | F142: 72.78 | G142: 71.67 | H142: 69.98 | I142: 68.87 | J142: 74.47 | K142: 75.58 | L142: 77.27 | M142: 73.9 | N142: 71.1 | O142: 126635000 | P142: -1.27%
A143: 133 | B143: Finance | C143: SBILIFE | D143: 2021-03-25 | E143: 902.65 | F143: 903.17 | G143: 896.58 | H143: 890.52 | I143: 883.93 | J143: 909.23 | K143: 915.82 | L143: 921.88 | M143: 909.75 | N143: 897.1 | O143: 6429000 | P143: -3.88%
A144: 134 | B144: Banking | C144: SBIN | D144: 2021-03-25 | E144: 368.10 | F144: 368.30 | G144: 363.45 | H144: 358.80 | I144: 353.95 | J144: 372.95 | K144: 377.80 | L144: 382.45 | M144: 373.15 | N144: 363.65 | O144: 90087000 | P144: 0.59%
A145: 135 | B145: Cement | C145: SHREECEM | D145: 2021-03-25 | E145: 27050.75 | F145: 27031.48 | G145: 26742.97 | H145: 26435.18 | I145: 26146.67 | J145: 27339.27 | K145: 27627.78 | L145: 27935.57 | M145: 27320 | N145: 26723.7 | O145: 140100 | P145: 8.60%
A146: 136 | B146: Capital_Goods | C146: SIEMENS | D146: 2021-03-25 | E146: 1844.00 | F146: 1846.27 | G146: 1821.53 | H146: 1799.07 | I146: 1774.33 | J146: 1868.73 | K146: 1893.47 | L146: 1915.93 | M146: 1871 | N146: 1823.8 | O146: 693000 | P146: -2.55%
A147: 137 | B147: Textile | C147: SRF | D147: 2021-03-25 | E147: 5302.30 | F147: 5296.15 | G147: 5251.15 | H147: 5200.00 | I147: 5155.00 | J147: 5347.30 | K147: 5392.30 | L147: 5443.45 | M147: 5341.15 | N147: 5245 | O147: 317625 | P147: 4.78%
A148: 138 | B148: Finance | C148: SRTRANSFIN | D148: 2021-03-25 | E148: 1383.65 | F148: 1377.15 | G148: 1360.35 | H148: 1337.05 | I148: 1320.25 | J148: 1400.45 | K148: 1417.25 | L148: 1440.55 | M148: 1393.95 | N148: 1353.85 | O148: 3818400 | P148: -1.89%
A149: 139 | B149: Pharma | C149: SUNPHARMA | D149: 2021-03-25 | E149: 591.10 | F149: 587.88 | G149: 582.52 | H149: 573.93 | I149: 568.57 | J149: 596.47 | K149: 601.83 | L149: 610.42 | M149: 593.25 | N149: 579.3 | O149: 42397600 | P149: -1.40%
A150: 140 | B150: Media | C150: SUNTV | D150: 2021-03-25 | E150: 485.50 | F150: 482.88 | G150: 476.77 | H150: 468.03 | I150: 461.92 | J150: 491.62 | K150: 497.73 | L150: 506.47 | M150: 489 | N150: 474.15 | O150: 12090000 | P150: -1.52%
A151: 141 | B151: Chemical | C151: TATACHEM | D151: 2021-03-25 | E151: 765.55 | F151: 761.68 | G151: 750.77 | H151: 735.98 | I151: 725.07 | J151: 776.47 | K151: 787.38 | L151: 802.17 | M151: 772.6 | N151: 746.9 | O151: 9530000 | P151: 2.50%
A152: 142 | B152: FMCG | C152: TATACONSUM | D152: 2021-03-25 | E152: 620.10 | F152: 613.08 | G152: 603.52 | H152: 586.93 | I152: 577.37 | J152: 629.67 | K152: 639.23 | L152: 655.82 | M152: 622.65 | N152: 596.5 | O152: 12094650 | P152: -2.35%
A153: 143 | B153: Automobile | C153: TATAMOTORS | D153: 2021-03-25 | E153: 303.35 | F153: 303.80 | G153: 299.60 | H153: 295.85 | I153: 291.65 | J153: 307.55 | K153: 311.75 | L153: 315.50 | M153: 308 | N153: 300.05 | O153: 94545900 | P153: 0.44%
A154: 144 | B154: Power | C154: TATAPOWER | D154: 2021-03-25 | E154: 104.90 | F154: 105.07 | G154: 103.63 | H154: 102.37 | I154: 100.93 | J154: 106.33 | K154: 107.77 | L154: 109.03 | M154: 106.5 | N154: 103.8 | O154: 141588000 | P154: 1.06%
A155: 145 | B155: Metals | C155: TATASTEEL | D155: 2021-03-25 | E155: 744.15 | F155: 739.47 | G155: 731.63 | H155: 719.12 | I155: 711.28 | J155: 751.98 | K155: 759.82 | L155: 772.33 | M155: 747.3 | N155: 726.95 | O155: 40295100 | P155: 2.12%
A156: 146 | B156: Technology | C156: TCS | D156: 2021-03-25 | E156: 3128.70 | F156: 3097.42 | G156: 3056.63 | H156: 2984.57 | I156: 2943.78 | J156: 3169.48 | K156: 3210.27 | L156: 3282.33 | M156: 3138.2 | N156: 3025.35 | O156: 7538400 | P156: 0.67%
A157: 147 | B157: Technology | C157: TECHM | D157: 2021-03-25 | E157: 1013.95 | F157: 1003.85 | G157: 990.60 | H157: 967.25 | I157: 954.00 | J157: 1027.20 | K157: 1040.45 | L157: 1063.80 | M157: 1017.1 | N157: 980.5 | O157: 12039600 | P157: 0.48%
A158: 148 | B158: FMCG | C158: TITAN | D158: 2021-03-25 | E158: 1464.35 | F158: 1461.57 | G158: 1453.78 | H158: 1443.22 | I158: 1435.43 | J158: 1472.13 | K158: 1479.92 | L158: 1490.48 | M158: 1469.35 | N158: 1451 | O158: 5919750 | P158: 0.04%
A159: 149 | B159: Pharma | C159: TORNTPHARM | D159: 2021-03-25 | E159: 2455.75 | F159: 2440.05 | G159: 2417.70 | H159: 2379.65 | I159: 2357.30 | J159: 2478.10 | K159: 2500.45 | L159: 2538.50 | M159: 2462.4 | N159: 2402 | O159: 956500 | P159: -5.58%
A160: 150 | B160: Power | C160: TORNTPOWER | D160: 2021-03-25 | E160: 428.10 | F160: 425.68 | G160: 422.02 | H160: 415.93 | I160: 412.27 | J160: 431.77 | K160: 435.43 | L160: 441.52 | M160: 429.35 | N160: 419.6 | O160: 2766000 | P160: -0.75%
A161: 151 | B161: Others | C161: TRENT | D161: 2021-03-25 | E161: 803.10 | F161: 804.00 | G161: 791.90 | H161: 780.70 | I161: 768.60 | J161: 815.20 | K161: 827.30 | L161: 838.50 | M161: 816.1 | N161: 792.8 | O161: 748925 | P161: 11.08%
A162: 152 | B162: Automobile | C162: TVSMOTOR | D162: 2021-03-25 | E162: 580.65 | F162: 582.20 | G162: 574.80 | H162: 568.95 | I162: 561.55 | J162: 588.05 | K162: 595.45 | L162: 601.30 | M162: 589.6 | N162: 576.35 | O162: 3635800 | P162: 5.31%
A163: 153 | B163: FMCG | C163: UBL | D163: 2021-03-25 | E163: 1249.90 | F163: 1235.92 | G163: 1214.63 | H163: 1179.37 | I163: 1158.08 | J163: 1271.18 | K163: 1292.47 | L163: 1327.73 | M163: 1257.2 | N163: 1200.65 | O163: 1452500 | P163: 13.89%
A164: 154 | B164: Cement | C164: ULTRACEMCO | D164: 2021-03-25 | E164: 6745.55 | F164: 6732.18 | G164: 6659.32 | H164: 6573.08 | I164: 6500.22 | J164: 6818.42 | K164: 6891.28 | L164: 6977.52 | M164: 6805.05 | N164: 6645.95 | O164: 1603000 | P164: 1.34%
A165: 155 | B165: Chemical | C165: UPL | D165: 2021-03-25 | E165: 629.25 | F165: 629.08 | G165: 619.77 | H165: 610.28 | I165: 600.97 | J165: 638.57 | K165: 647.88 | L165: 657.37 | M165: 638.4 | N165: 619.6 | O165: 19331000 | P165: 3.72%
A166: 156 | B166: Metals | C166: VEDL | D166: 2021-03-25 | E166: 223.65 | F166: 222.80 | G166: 221.45 | H166: 219.25 | I166: 217.90 | J166: 225.00 | K166: 226.35 | L166: 228.55 | M166: 224.15 | N166: 220.6 | O166: 155483600 | P166: 0.35%
A167: 157 | B167: Capital_Goods | C167: VOLTAS | D167: 2021-03-25 | E167: 1001.95 | F167: 996.48 | G167: 979.47 | H167: 956.98 | I167: 939.97 | J167: 1018.97 | K167: 1035.98 | L167: 1058.47 | M167: 1013.5 | N167: 974 | O167: 3538000 | P167: 7.02%
A168: 158 | B168: Technology | C168: WIPRO | D168: 2021-03-25 | E168: 415.40 | F168: 414.52 | G168: 411.68 | H168: 407.97 | I168: 405.13 | J168: 418.23 | K168: 421.07 | L168: 424.78 | M168: 417.35 | N168: 410.8 | O168: 35148800 | P168: -1.60%
A169: 159 | B169: Media | C169: ZEEL | D169: 2021-03-25 | E169: 214.80 | F169: 215.37 | G169: 213.23 | H169: 211.67 | I169: 209.53 | J169: 216.93 | K169: 219.07 | L169: 220.63 | M169: 217.5 | N169: 213.8 | O169: 47169000 | P169: -0.12%
A175: Pivot Point: This is trigger point for intra day buy/sell based on the price range of the previous day
A176: As per the tool,the trader should take BUY position just above Pivot and keep the stop loss of pivot point and the first target would be Resistance 1(R1)
A177: If R1 is crossed then R2 becomes the next target with stop loss of at R1
A178: Similarly if price goes below pivot point then the trader should sell and keep a stop loss of pivot point and the first target would be S1
A179: If S1 is crossed then S2 becomes the next target with stop loss of at S1
A181: Disclaimer:
A182: This document has been prepared by the Retail Research Desk of Asit C Mehta
A183: Investment Intermediates Ltd. and is meant for use of the recipient only
A184: and is not for circulation. This document is not to be reported or
A185: copied or made available to others. It should not be considered to be
A186: taken as an offer to sell or a solicitation to buy any security. The
A187: information contained herein is from sources believed reliable. We do
A188: not represent that it is accurate or complete and it should not be
A189: relied upon as such. We may from time to time have positions in and buy
A190: and sell securities referred to herein

Sheet Cash Intra
M5: Back to Main Page
A6: FOR INTRA DAY TRADING | K6: =Main!B10 -> 2021-03-23
A8: Sr.no | B8: Scrip | C8: CLOSE RATE | D8: Pivot Point | E8: Supports | H8: Resistances
C9: Point | E9: S1 | F9: S2 | G9: S3 | H9: R1 | I9: R2 | J9: R3 | K9: HIGH | L9: LOW | M9: Total Trade Quanity in Lakhs
A10: 1 | B10: Nifty 50 | C10: 14736.4 | D10: 14699.38 | E10: 14634.87 | F10: 14533.33 | G10: 14468.82 | H10: 14800.92 | I10: 14865.43 | J10: 14966.97 | K10: 14763.9 | L10: 14597.85
A11: 2 | B11: Nifty Bank | C11: 33603.45 | D11: 33713.83 | E11: 33278.77 | F11: 32954.08 | G11: 32519.02 | H11: 34038.52 | I11: 34473.58 | J11: 34798.27 | K11: 34148.9 | L11: 33389.15
A12: 3 | B12: Nifty CPSE | C12: 1828.4 | D12: 1834.77 | E12: 1816.73 | F12: 1805.07 | G12: 1787.03 | H12: 1846.43 | I12: 1864.47 | J12: 1876.13 | K12: 1852.8 | L12: 1823.1
A13: 4 | B13: Nifty Infra | C13: 4133.75 | D13: 4125.02 | E13: 4109.93 | F13: 4086.12 | G13: 4071.03 | H13: 4148.83 | I13: 4163.92 | J13: 4187.73 | K13: 4140.1 | L13: 4101.2
A14: 5 | B14: Nifty IT | C14: 26035.35 | D14: 25852.20 | E14: 25601.60 | F14: 25167.85 | G14: 24917.25 | H14: 26285.95 | I14: 26536.55 | J14: 26970.30 | K14: 26102.8 | L14: 25418.45
A15: 6 | B15: Nifty PSE | C15: 3195.5 | D15: 3201.92 | E15: 3175.68 | F15: 3155.87 | G15: 3129.63 | H15: 3221.73 | I15: 3247.97 | J15: 3267.78 | K15: 3228.15 | L15: 3182.1
A16: 7 | B16: Nifty Midcap 50 | C16: 6797.1 | D16: 6775.55 | E16: 6735.50 | F16: 6673.90 | G16: 6633.85 | H16: 6837.15 | I16: 6877.20 | J16: 6938.80 | K16: 6815.6 | L16: 6713.95
A17: 8 | B17: ACC | C17: 1860 | D17: 1828.37 | E17: 1782.83 | F17: 1705.67 | G17: 1660.13 | H17: 1905.53 | I17: 1951.07 | J17: 2028.23 | K17: 1873.9 | L17: 1751.2 | M17: 46.27665
A18: 9 | B18: AUBANK | C18: 1222.9 | D18: 1217.55 | E18: 1200.35 | F18: 1177.80 | G18: 1160.60 | H18: 1240.10 | I18: 1257.30 | J18: 1279.85 | K18: 1234.75 | L18: 1195 | M18: 7.58035
A19: 10 | B19: AARTIIND | C19: 1282.75 | D19: 1270.93 | E19: 1251.82 | F19: 1220.88 | G19: 1201.77 | H19: 1301.87 | I19: 1320.98 | J19: 1351.92 | K19: 1290.05 | L19: 1240 | M19: 1.51246
A20: 11 | B20: ABBOTINDIA | C20: 14646.5 | D20: 14667.17 | E20: 14479.33 | F20: 14312.17 | G20: 14124.33 | H20: 14834.33 | I20: 15022.17 | J20: 15189.33 | K20: 14855 | L20: 14500 | M20: 0.12736
A21: 12 | B21: ADANIENT | C21: 991.05 | D21: 959.17 | E21: 915.33 | F21: 839.62 | G21: 795.78 | H21: 1034.88 | I21: 1078.72 | J21: 1154.43 | K21: 1003 | L21: 883.45 | M21: 225.96465
A22: 13 | B22: ADANIGREEN | C22: 1252.2 | D22: 1246.45 | E22: 1240.70 | F22: 1229.20 | G22: 1223.45 | H22: 1257.95 | I22: 1263.70 | J22: 1275.20 | K22: 1252.2 | L22: 1234.95 | M22: 3.82028
A23: 14 | B23: ADANIPORTS | C23: 721.9 | D23: 709.72 | E23: 693.18 | F23: 664.47 | G23: 647.93 | H23: 738.43 | I23: 754.97 | J23: 783.68 | K23: 726.25 | L23: 681 | M23: 228.6495
A24: 15 | B24: ATGL | C24: 819.1 | D24: 805.52 | E24: 759.03 | F24: 698.97 | G24: 652.48 | H24: 865.58 | I24: 912.07 | J24: 972.13 | K24: 852 | L24: 745.45 | M24: 43.23983
A25: 16 | B25: ADANITRANS | C25: 792.15 | D25: 785.77 | E25: 764.53 | F25: 736.92 | G25: 715.68 | H25: 813.38 | I25: 834.62 | J25: 862.23 | K25: 807 | L25: 758.15 | M25: 18.023
A26: 17 | B26: ABCAPITAL | C26: 120.8 | D26: 120.82 | E26: 119.03 | F26: 117.27 | G26: 115.48 | H26: 122.58 | I26: 124.37 | J26: 126.13 | K26: 122.6 | L26: 119.05 | M26: 20.94161
A27: 18 | B27: ABFRL | C27: 205.9 | D27: 205.27 | E27: 202.88 | F27: 199.87 | G27: 197.48 | H27: 208.28 | I27: 210.67 | J27: 213.68 | K27: 207.65 | L27: 202.25 | M27: 17.53377
A28: 19 | B28: AJANTPHARM | C28: 1778.8 | D28: 1792.73 | E28: 1760.07 | F28: 1741.33 | G28: 1708.67 | H28: 1811.47 | I28: 1844.13 | J28: 1862.87 | K28: 1825.4 | L28: 1774 | M28: 0.74856
A29: 20 | B29: APLLTD | C29: 916.2 | D29: 910.27 | E29: 894.58 | F29: 872.97 | G29: 857.28 | H29: 931.88 | I29: 947.57 | J29: 969.18 | K29: 925.95 | L29: 888.65 | M29: 5.55759
A30: 21 | B30: ALKEM | C30: 2620.55 | D30: 2628.68 | E30: 2598.07 | F30: 2575.58 | G30: 2544.97 | H30: 2651.17 | I30: 2681.78 | J30: 2704.27 | K30: 2659.3 | L30: 2606.2 | M30: 1.20147
A31: 22 | B31: AMARAJABAT | C31: 874.4 | D31: 871.98 | E31: 867.52 | F31: 860.63 | G31: 856.17 | H31: 878.87 | I31: 883.33 | J31: 890.22 | K31: 876.45 | L31: 865.1 | M31: 3.53785
A32: 23 | B32: AMBUJACEM | C32: 295.6 | D32: 290.47 | E32: 283.13 | F32: 270.67 | G32: 263.33 | H32: 302.93 | I32: 310.27 | J32: 322.73 | K32: 297.8 | L32: 278 | M32: 111.82565
A33: 24 | B33: APOLLOHOSP | C33: 2905.1 | D33: 2908.12 | E33: 2871.98 | F33: 2838.87 | G33: 2802.73 | H33: 2941.23 | I33: 2977.37 | J33: 3010.48 | K33: 2944.25 | L33: 2875 | M33: 4.88626
A34: 25 | B34: APOLLOTYRE | C34: 224.4 | D34: 223.95 | E34: 221.15 | F34: 217.90 | G34: 215.10 | H34: 227.20 | I34: 230.00 | J34: 233.25 | K34: 226.75 | L34: 220.7 | M34: 54.02029
A35: 26 | B35: ASHOKLEY | C35: 113.75 | D35: 114.33 | E35: 111.92 | F35: 110.08 | G35: 107.67 | H35: 116.17 | I35: 118.58 | J35: 120.42 | K35: 116.75 | L35: 112.5 | M35: 163.92169
A36: 27 | B36: ASIANPAINT | C36: 2425.7 | D36: 2417.93 | E36: 2397.77 | F36: 2369.83 | G36: 2349.67 | H36: 2445.87 | I36: 2466.03 | J36: 2493.97 | K36: 2438.1 | L36: 2390 | M36: 14.89853
A37: 28 | B37: AUROPHARMA | C37: 835.25 | D37: 836.92 | E37: 824.33 | F37: 813.42 | G37: 800.83 | H37: 847.83 | I37: 860.42 | J37: 871.33 | K37: 849.5 | L37: 826 | M37: 30.77093
A38: 29 | B38: DMART | C38: 2880.1 | D38: 2910.03 | E38: 2832.07 | F38: 2784.03 | G38: 2706.07 | H38: 2958.07 | I38: 3036.03 | J38: 3084.07 | K38: 2988 | L38: 2862 | M38: 6.52753
A39: 30 | B39: AXISBANK | C39: 716.2 | D39: 718.50 | E39: 707.00 | F39: 697.80 | G39: 686.30 | H39: 727.70 | I39: 739.20 | J39: 748.40 | K39: 730 | L39: 709.3 | M39: 148.0223
A40: 31 | B40: BAJAJ-AUTO | C40: 3664.75 | D40: 3661.35 | E40: 3637.70 | F40: 3610.65 | G40: 3587.00 | H40: 3688.40 | I40: 3712.05 | J40: 3739.10 | K40: 3685 | L40: 3634.3 | M40: 5.02724
A41: 32 | B41: BAJFINANCE | C41: 5389.35 | D41: 5407.78 | E41: 5318.57 | F41: 5247.78 | G41: 5158.57 | H41: 5478.57 | I41: 5567.78 | J41: 5638.57 | K41: 5497 | L41: 5337 | M41: 19.38461
A42: 33 | B42: BAJAJFINSV | C42: 9405.85 | D42: 9404.28 | E42: 9313.62 | F42: 9221.38 | G42: 9130.72 | H42: 9496.52 | I42: 9587.18 | J42: 9679.42 | K42: 9494.95 | L42: 9312.05 | M42: 2.93029
A43: 34 | B43: BAJAJHLDNG | C43: 3428.3 | D43: 3416.48 | E43: 3377.97 | F43: 3327.63 | G43: 3289.12 | H43: 3466.82 | I43: 3505.33 | J43: 3555.67 | K43: 3455 | L43: 3366.15 | M43: 0.2001
A44: 35 | B44: BALKRISIND | C44: 1622.35 | D44: 1617.62 | E44: 1606.28 | F44: 1590.22 | G44: 1578.88 | H44: 1633.68 | I44: 1645.02 | J44: 1661.08 | K44: 1628.95 | L44: 1601.55 | M44: 3.79095
A45: 36 | B45: BANDHANBNK | C45: 352.6 | D45: 350.45 | E45: 345.45 | F45: 338.30 | G45: 333.30 | H45: 357.60 | I45: 362.60 | J45: 369.75 | K45: 355.45 | L45: 343.3 | M45: 92.4705
A46: 37 | B46: BANKBARODA | C46: 72.45 | D46: 72.95 | E46: 71.25 | F46: 70.05 | G46: 68.35 | H46: 74.15 | I46: 75.85 | J46: 77.05 | K46: 74.65 | L46: 71.75 | M46: 432.15479
A47: 38 | B47: BANKINDIA | C47: 68.4 | D47: 68.00 | E47: 66.75 | F47: 65.10 | G47: 63.85 | H47: 69.65 | I47: 70.90 | J47: 72.55 | K47: 69.25 | L47: 66.35 | M47: 41.8286
A48: 39 | B48: BATAINDIA | C48: 1476.05 | D48: 1478.52 | E48: 1466.03 | F48: 1456.02 | G48: 1443.53 | H48: 1488.53 | I48: 1501.02 | J48: 1511.03 | K48: 1491 | L48: 1468.5 | M48: 2.64088
A49: 40 | B49: BERGEPAINT | C49: 732.05 | D49: 728.03 | E49: 721.62 | F49: 711.18 | G49: 704.77 | H49: 738.47 | I49: 744.88 | J49: 755.32 | K49: 734.45 | L49: 717.6 | M49: 7.67576
A50: 41 | B50: BEL | C50: 127.95 | D50: 129.08 | E50: 126.22 | F50: 124.48 | G50: 121.62 | H50: 130.82 | I50: 133.68 | J50: 135.42 | K50: 131.95 | L50: 127.35 | M50: 129.81794
A51: 42 | B51: BHARATFORG | C51: 596.85 | D51: 598.60 | E51: 589.25 | F51: 581.65 | G51: 572.30 | H51: 606.20 | I51: 615.55 | J51: 623.15 | K51: 607.95 | L51: 591 | M51: 15.12975
A52: 43 | B52: BHEL | C52: 52.2 | D52: 52.08 | E52: 51.37 | F52: 50.53 | G52: 49.82 | H52: 52.92 | I52: 53.63 | J52: 54.47 | K52: 52.8 | L52: 51.25 | M52: 483.22688
A53: 44 | B53: BPCL | C53: 439.35 | D53: 438.57 | E53: 435.13 | F53: 430.92 | G53: 427.48 | H53: 442.78 | I53: 446.22 | J53: 450.43 | K53: 442 | L53: 434.35 | M53: 136.71931
A54: 45 | B54: BHARTIARTL | C54: 528 | D54: 528.33 | E54: 522.67 | F54: 517.33 | G54: 511.67 | H54: 533.67 | I54: 539.33 | J54: 544.67 | K54: 534 | L54: 523 | M54: 133.31409
A55: 46 | B55: BIOCON | C55: 402.25 | D55: 399.90 | E55: 396.40 | F55: 390.55 | G55: 387.05 | H55: 405.75 | I55: 409.25 | J55: 415.10 | K55: 403.4 | L55: 394.05 | M55: 37.13607
A56: 47 | B56: BBTC | C56: 1170.1 | D56: 1169.88 | E56: 1154.77 | F56: 1139.43 | G56: 1124.32 | H56: 1185.22 | I56: 1200.33 | J56: 1215.67 | K56: 1185 | L56: 1154.55 | M56: 0.50376
A57: 48 | B57: BOSCHLTD | C57: 14349.8 | D57: 14394.85 | E57: 14239.70 | F57: 14129.60 | G57: 13974.45 | H57: 14504.95 | I57: 14660.10 | J57: 14770.20 | K57: 14550 | L57: 14284.75 | M57: 0.22321
A58: 49 | B58: BRITANNIA | C58: 3564.4 | D58: 3524.83 | E58: 3479.67 | F58: 3394.93 | G58: 3349.77 | H58: 3609.57 | I58: 3654.73 | J58: 3739.47 | K58: 3570 | L58: 3440.1 | M58: 8.20046
A59: 50 | B59: CESC | C59: 597.75 | D59: 601.88 | E59: 591.57 | F59: 585.38 | G59: 575.07 | H59: 608.07 | I59: 618.38 | J59: 624.57 | K59: 612.2 | L59: 595.7 | M59: 3.83117
A60: 51 | B60: CADILAHC | C60: 431.65 | D60: 431.80 | E60: 425.60 | F60: 419.55 | G60: 413.35 | H60: 437.85 | I60: 444.05 | J60: 450.10 | K60: 438 | L60: 425.75 | M60: 20.32262
A61: 52 | B61: CANBK | C61: 150 | D61: 150.58 | E61: 146.92 | F61: 143.83 | G61: 140.17 | H61: 153.67 | I61: 157.33 | J61: 160.42 | K61: 154.25 | L61: 147.5 | M61: 191.11354
A62: 53 | B62: CASTROLIND | C62: 118.8 | D62: 118.73 | E62: 117.87 | F62: 116.93 | G62: 116.07 | H62: 119.67 | I62: 120.53 | J62: 121.47 | K62: 119.6 | L62: 117.8 | M62: 14.3828
A63: 54 | B63: CHOLAFIN | C63: 570.4 | D63: 565.02 | E63: 550.43 | F63: 530.47 | G63: 515.88 | H63: 584.98 | I63: 599.57 | J63: 619.53 | K63: 579.6 | L63: 545.05 | M63: 90.87183
A64: 55 | B64: CIPLA | C64: 772.85 | D64: 772.05 | E64: 759.50 | F64: 746.15 | G64: 733.60 | H64: 785.40 | I64: 797.95 | J64: 811.30 | K64: 784.6 | L64: 758.7 | M64: 35.63266
A65: 56 | B65: CUB | C65: 169.65 | D65: 169.27 | E65: 167.78 | F65: 165.92 | G65: 164.43 | H65: 171.13 | I65: 172.62 | J65: 174.48 | K65: 170.75 | L65: 167.4 | M65: 9.86324
A66: 57 | B66: COALINDIA | C66: 135.65 | D66: 136.18 | E66: 134.77 | F66: 133.88 | G66: 132.47 | H66: 137.07 | I66: 138.48 | J66: 139.37 | K66: 137.6 | L66: 135.3 | M66: 114.14253
A67: 58 | B67: COFORGE | C67: 2921.2 | D67: 2943.07 | E67: 2873.33 | F67: 2825.47 | G67: 2755.73 | H67: 2990.93 | I67: 3060.67 | J67: 3108.53 | K67: 3012.8 | L67: 2895.2 | M67: 3.25777
A68: 59 | B68: COLPAL | C68: 1578.1 | D68: 1575.78 | E68: 1562.57 | F68: 1547.03 | G68: 1533.82 | H68: 1591.32 | I68: 1604.53 | J68: 1620.07 | K68: 1589 | L68: 1560.25 | M68: 8.7192
A69: 60 | B69: CONCOR | C69: 560.75 | D69: 559.58 | E69: 552.02 | F69: 543.28 | G69: 535.72 | H69: 568.32 | I69: 575.88 | J69: 584.62 | K69: 567.15 | L69: 550.85 | M69: 19.62206
A70: 61 | B70: COROMANDEL | C70: 757.05 | D70: 753.23 | E70: 747.07 | F70: 737.08 | G70: 730.92 | H70: 763.22 | I70: 769.38 | J70: 779.37 | K70: 759.4 | L70: 743.25 | M70: 1.9864
A71: 62 | B71: CROMPTON | C71: 391.15 | D71: 392.20 | E71: 383.15 | F71: 375.15 | G71: 366.10 | H71: 400.20 | I71: 409.25 | J71: 417.25 | K71: 401.25 | L71: 384.2 | M71: 13.55742
A72: 63 | B72: CUMMINSIND | C72: 894.35 | D72: 897.45 | E72: 884.90 | F72: 875.45 | G72: 862.90 | H72: 906.90 | I72: 919.45 | J72: 928.90 | K72: 910 | L72: 888 | M72: 8.68118
A73: 64 | B73: DLF | C73: 292.3 | D73: 290.15 | E73: 286.40 | F73: 280.50 | G73: 276.75 | H73: 296.05 | I73: 299.80 | J73: 305.70 | K73: 293.9 | L73: 284.25 | M73: 82.12537
A74: 65 | B74: DABUR | C74: 533.5 | D74: 530.63 | E74: 526.57 | F74: 519.63 | G74: 515.57 | H74: 537.57 | I74: 541.63 | J74: 548.57 | K74: 534.7 | L74: 523.7 | M74: 17.2062
A75: 66 | B75: DALBHARAT | C75: 1583.9 | D75: 1582.97 | E75: 1565.93 | F75: 1547.97 | G75: 1530.93 | H75: 1600.93 | I75: 1617.97 | J75: 1635.93 | K75: 1600 | L75: 1565 | M75: 0.6891
A76: 67 | B76: DHANI | C76: 268.2 | D76: 269.32 | E76: 263.88 | F76: 259.57 | G76: 254.13 | H76: 273.63 | I76: 279.07 | J76: 283.38 | K76: 274.75 | L76: 265 | M76: 15.07666
A77: 68 | B77: DIVISLAB | C77: 3405.95 | D77: 3400.17 | E77: 3356.33 | F77: 3306.72 | G77: 3262.88 | H77: 3449.78 | I77: 3493.62 | J77: 3543.23 | K77: 3444 | L77: 3350.55 | M77: 7.48535
A78: 69 | B78: LALPATHLAB | C78: 2568.85 | D78: 2561.75 | E78: 2537.15 | F78: 2505.45 | G78: 2480.85 | H78: 2593.45 | I78: 2618.05 | J78: 2649.75 | K78: 2586.35 | L78: 2530.05 | M78: 3.07901
A79: 70 | B79: DRREDDY | C79: 4353.95 | D79: 4330.05 | E79: 4292.15 | F79: 4230.35 | G79: 4192.45 | H79: 4391.85 | I79: 4429.75 | J79: 4491.55 | K79: 4367.95 | L79: 4268.25 | M79: 8.67303
A80: 71 | B80: EDELWEISS | C80: 81.3 | D80: 82.47 | E80: 79.23 | F80: 77.17 | G80: 73.93 | H80: 84.53 | I80: 87.77 | J80: 89.83 | K80: 85.7 | L80: 80.4 | M80: 24.62425
A81: 72 | B81: EICHERMOT | C81: 2676.85 | D81: 2672.97 | E81: 2653.93 | F81: 2631.02 | G81: 2611.98 | H81: 2695.88 | I81: 2714.92 | J81: 2737.83 | K81: 2692 | L81: 2650.05 | M81: 6.94227
A82: 73 | B82: EMAMILTD | C82: 485.4 | D82: 481.77 | E82: 475.63 | F82: 465.87 | G82: 459.73 | H82: 491.53 | I82: 497.67 | J82: 507.43 | K82: 487.9 | L82: 472 | M82: 1.83674
A83: 74 | B83: ENDURANCE | C83: 1489.25 | D83: 1468.08 | E83: 1416.22 | F83: 1343.18 | G83: 1291.32 | H83: 1541.12 | I83: 1592.98 | J83: 1666.02 | K83: 1519.95 | L83: 1395.05 | M83: 1.84891
A84: 75 | B84: ESCORTS | C84: 1362.3 | D84: 1359.23 | E84: 1343.47 | F84: 1324.63 | G84: 1308.87 | H84: 1378.07 | I84: 1393.83 | J84: 1412.67 | K84: 1375 | L84: 1340.4 | M84: 7.90865
A85: 76 | B85: EXIDEIND | C85: 189.4 | D85: 188.90 | E85: 187.20 | F85: 185.00 | G85: 183.30 | H85: 191.10 | I85: 192.80 | J85: 195.00 | K85: 190.6 | L85: 186.7 | M85: 32.11914
A86: 77 | B86: FEDERALBNK | C86: 77.15 | D86: 77.43 | E86: 76.32 | F86: 75.48 | G86: 74.37 | H86: 78.27 | I86: 79.38 | J86: 80.22 | K86: 78.55 | L86: 76.6 | M86: 163.27873
A87: 78 | B87: FORTIS | C87: 202.15 | D87: 199.23 | E87: 193.97 | F87: 185.78 | G87: 180.52 | H87: 207.42 | I87: 212.68 | J87: 220.87 | K87: 204.5 | L87: 191.05 | M87: 88.68991
A88: 79 | B88: FRETAIL | C88: 59.4 | D88: 57.17 | E88: 52.88 | F88: 46.37 | G88: 42.08 | H88: 63.68 | I88: 67.97 | J88: 74.48 | K88: 61.45 | L88: 50.65 | M88: 221.46864
A89: 80 | B89: GAIL | C89: 136.8 | D89: 137.38 | E89: 134.77 | F89: 132.73 | G89: 130.12 | H89: 139.42 | I89: 142.03 | J89: 144.07 | K89: 140 | L89: 135.35 | M89: 171.16629
A90: 81 | B90: GMRINFRA | C90: 25.6 | D90: 25.40 | E90: 24.90 | F90: 24.20 | G90: 23.70 | H90: 26.10 | I90: 26.60 | J90: 27.30 | K90: 25.9 | L90: 24.7 | M90: 192.9742
A91: 82 | B91: GICRE | C91: 219.65 | D91: 218.85 | E91: 214.80 | F91: 209.95 | G91: 205.90 | H91: 223.70 | I91: 227.75 | J91: 232.60 | K91: 222.9 | L91: 214 | M91: 14.79677
A92: 83 | B92: GLENMARK | C92: 460.45 | D92: 461.43 | E92: 455.07 | F92: 449.68 | G92: 443.32 | H92: 466.82 | I92: 473.18 | J92: 478.57 | K92: 467.8 | L92: 456.05 | M92: 11.13661
A93: 84 | B93: GODREJAGRO | C93: 495.9 | D93: 493.08 | E93: 489.17 | F93: 482.43 | G93: 478.52 | H93: 499.82 | I93: 503.73 | J93: 510.47 | K93: 497 | L93: 486.35 | M93: 0.85037
A94: 85 | B94: GODREJCP | C94: 694.35 | D94: 687.12 | E94: 678.23 | F94: 662.12 | G94: 653.23 | H94: 703.23 | I94: 712.12 | J94: 728.23 | K94: 696 | L94: 671 | M94: 20.05221
A95: 86 | B95: GODREJIND | C95: 521.25 | D95: 516.72 | E95: 508.63 | F95: 496.02 | G95: 487.93 | H95: 529.33 | I95: 537.42 | J95: 550.03 | K95: 524.8 | L95: 504.1 | M95: 2.80008
A96: 87 | B96: GODREJPROP | C96: 1412 | D96: 1387.20 | E96: 1344.80 | F96: 1277.60 | G96: 1235.20 | H96: 1454.40 | I96: 1496.80 | J96: 1564.00 | K96: 1429.6 | L96: 1320 | M96: 23.94826
A97: 88 | B97: GRASIM | C97: 1413.9 | D97: 1414.38 | E97: 1400.77 | F97: 1387.63 | G97: 1374.02 | H97: 1427.52 | I97: 1441.13 | J97: 1454.27 | K97: 1428 | L97: 1401.25 | M97: 15.87634
A98: 89 | B98: GUJGASLTD | C98: 510.4 | D98: 514.33 | E98: 504.17 | F98: 497.93 | G98: 487.77 | H98: 520.57 | I98: 530.73 | J98: 536.97 | K98: 524.5 | L98: 508.1 | M98: 6.72263
A99: 90 | B99: GSPL | C99: 258.4 | D99: 259.65 | E99: 255.05 | F99: 251.70 | G99: 247.10 | H99: 263.00 | I99: 267.60 | J99: 270.95 | K99: 264.25 | L99: 256.3 | M99: 11.3339
A100: 91 | B100: HCLTECH | C100: 978.75 | D100: 968.60 | E100: 954.75 | F100: 930.75 | G100: 916.90 | H100: 992.60 | I100: 1006.45 | J100: 1030.45 | K100: 982.45 | L100: 944.6 | M100: 47.45254
A101: 92 | B101: HDFCAMC | C101: 2882.55 | D101: 2874.40 | E101: 2858.80 | F101: 2835.05 | G101: 2819.45 | H101: 2898.15 | I101: 2913.75 | J101: 2937.50 | K101: 2890 | L101: 2850.65 | M101: 1.58775
A102: 93 | B102: HDFCBANK | C102: 1469.15 | D102: 1474.82 | E102: 1454.73 | F102: 1440.32 | G102: 1420.23 | H102: 1489.23 | I102: 1509.32 | J102: 1523.73 | K102: 1494.9 | L102: 1460.4 | M102: 70.07816
A103: 94 | B103: HDFCLIFE | C103: 679.85 | D103: 684.28 | E103: 673.82 | F103: 667.78 | G103: 657.32 | H103: 690.32 | I103: 700.78 | J103: 706.82 | K103: 694.75 | L103: 678.25 | M103: 25.8588
A104: 95 | B104: HAVELLS | C104: 1037.2 | D104: 1039.62 | E104: 1024.58 | F104: 1011.97 | G104: 996.93 | H104: 1052.23 | I104: 1067.27 | J104: 1079.88 | K104: 1054.65 | L104: 1027 | M104: 13.47171
A105: 96 | B105: HEROMOTOCO | C105: 3095.85 | D105: 3106.98 | E105: 3070.02 | F105: 3044.18 | G105: 3007.22 | H105: 3132.82 | I105: 3169.78 | J105: 3195.62 | K105: 3143.95 | L105: 3081.15 | M105: 6.19756
A106: 97 | B106: HINDALCO | C106: 339.75 | D106: 337.83 | E106: 333.02 | F106: 326.28 | G106: 321.47 | H106: 344.57 | I106: 349.38 | J106: 356.12 | K106: 342.65 | L106: 331.1 | M106: 84.70164
A107: 98 | B107: HINDPETRO | C107: 236.55 | D107: 236.17 | E107: 234.83 | F107: 233.12 | G107: 231.78 | H107: 237.88 | I107: 239.22 | J107: 240.93 | K107: 237.5 | L107: 234.45 | M107: 33.37228
A108: 99 | B108: HINDUNILVR | C108: 2353.2 | D108: 2337.23 | E108: 2317.97 | F108: 2282.73 | G108: 2263.47 | H108: 2372.47 | I108: 2391.73 | J108: 2426.97 | K108: 2356.5 | L108: 2302 | M108: 24.71516
A109: 100 | B109: HINDZINC | C109: 278.25 | D109: 281.77 | E109: 273.83 | F109: 269.42 | G109: 261.48 | H109: 286.18 | I109: 294.12 | J109: 298.53 | K109: 289.7 | L109: 277.35 | M109: 11.28743
A110: 101 | B110: HUDCO | C110: 47.65 | D110: 47.10 | E110: 46.15 | F110: 44.65 | G110: 43.70 | H110: 48.60 | I110: 49.55 | J110: 51.05 | K110: 48.05 | L110: 45.6 | M110: 39.2136
A111: 102 | B111: HDFC | C111: 2531.85 | D111: 2521.40 | E111: 2495.45 | F111: 2459.05 | G111: 2433.10 | H111: 2557.80 | I111: 2583.75 | J111: 2620.15 | K111: 2547.35 | L111: 2485 | M111: 33.67784
A112: 103 | B112: ICICIBANK | C112: 573.45 | D112: 576.60 | E112: 566.35 | F112: 559.25 | G112: 549.00 | H112: 583.70 | I112: 593.95 | J112: 601.05 | K112: 586.85 | L112: 569.5 | M112: 217.55401
A113: 104 | B113: ICICIGI | C113: 1434.6 | D113: 1441.53 | E113: 1423.07 | F113: 1411.53 | G113: 1393.07 | H113: 1453.07 | I113: 1471.53 | J113: 1483.07 | K113: 1460 | L113: 1430 | M113: 4.66422
A114: 105 | B114: ICICIPRULI | C114: 437.75 | D114: 435.62 | E114: 432.13 | F114: 426.52 | G114: 423.03 | H114: 441.23 | I114: 444.72 | J114: 450.33 | K114: 439.1 | L114: 430 | M114: 33.93413
A115: 106 | B115: ISEC | C115: 413.05 | D115: 411.72 | E115: 406.43 | F115: 399.82 | G115: 394.53 | H115: 418.33 | I115: 423.62 | J115: 430.23 | K115: 417 | L115: 405.1 | M115: 4.73161
A116: 107 | B116: IDFCFIRSTB | C116: 59.45 | D116: 59.77 | E116: 58.43 | F116: 57.42 | G116: 56.08 | H116: 60.78 | I116: 62.12 | J116: 63.13 | K116: 61.1 | L116: 58.75 | M116: 371.93196
A117: 108 | B117: ITC | C117: 226 | D117: 224.63 | E117: 222.87 | F117: 219.73 | G117: 217.97 | H117: 227.77 | I117: 229.53 | J117: 232.67 | K117: 226.4 | L117: 221.5 | M117: 460.50245
A118: 109 | B118: IBULHSGFIN | C118: 213.25 | D118: 214.57 | E118: 210.88 | F118: 208.52 | G118: 204.83 | H118: 216.93 | I118: 220.62 | J118: 222.98 | K118: 218.25 | L118: 212.2 | M118: 157.74618
A119: 110 | B119: INDHOTEL | C119: 114.9 | D119: 114.98 | E119: 113.02 | F119: 111.13 | G119: 109.17 | H119: 116.87 | I119: 118.83 | J119: 120.72 | K119: 116.95 | L119: 113.1 | M119: 11.05525
A120: 111 | B120: IOC | C120: 99.15 | D120: 99.07 | E120: 98.33 | F120: 97.52 | G120: 96.78 | H120: 99.88 | I120: 100.62 | J120: 101.43 | K120: 99.8 | L120: 98.25 | M120: 212.52461
A121: 112 | B121: IRCTC | C121: 1838.05 | D121: 1840.40 | E121: 1801.80 | F121: 1765.55 | G121: 1726.95 | H121: 1876.65 | I121: 1915.25 | J121: 1951.50 | K121: 1879 | L121: 1804.15 | M121: 22.5019
A122: 113 | B122: IGL | C122: 515.15 | D122: 513.30 | E122: 508.10 | F122: 501.05 | G122: 495.85 | H122: 520.35 | I122: 525.55 | J122: 532.60 | K122: 518.5 | L122: 506.25 | M122: 24.80501
A123: 114 | B123: INDUSTOWER | C123: 257.85 | D123: 258.52 | E123: 256.03 | F123: 254.22 | G123: 251.73 | H123: 260.33 | I123: 262.82 | J123: 264.63 | K123: 261 | L123: 256.7 | M123: 31.51619
A124: 115 | B124: INDUSINDBK | C124: 968.15 | D124: 980.35 | E124: 948.85 | F124: 929.55 | G124: 898.05 | H124: 999.65 | I124: 1031.15 | J124: 1050.45 | K124: 1011.85 | L124: 961.05 | M124: 126.92489
A125: 116 | B125: NAUKRI | C125: 4678.3 | D125: 4675.77 | E125: 4622.53 | F125: 4566.77 | G125: 4513.53 | H125: 4731.53 | I125: 4784.77 | J125: 4840.53 | K125: 4729 | L125: 4620 | M125: 4.68117
A126: 117 | B126: INFY | C126: 1370.8 | D126: 1360.97 | E126: 1345.93 | F126: 1321.07 | G126: 1306.03 | H126: 1385.83 | I126: 1400.87 | J126: 1425.73 | K126: 1376 | L126: 1336.1 | M126: 48.62758
A127: 118 | B127: INDIGO | C127: 1713.85 | D127: 1689.32 | E127: 1650.78 | F127: 1587.72 | G127: 1549.18 | H127: 1752.38 | I127: 1790.92 | J127: 1853.98 | K127: 1727.85 | L127: 1626.25 | M127: 22.26951
A128: 119 | B128: IPCALAB | C128: 1832.4 | D128: 1847.85 | E128: 1800.70 | F128: 1769.00 | G128: 1721.85 | H128: 1879.55 | I128: 1926.70 | J128: 1958.40 | K128: 1895 | L128: 1816.15 | M128: 2.37581
A129: 120 | B129: JSWENERGY | C129: 86.25 | D129: 86.23 | E129: 85.07 | F129: 83.88 | G129: 82.72 | H129: 87.42 | I129: 88.58 | J129: 89.77 | K129: 87.4 | L129: 85.05 | M129: 54.97499
A130: 121 | B130: JSWSTEEL | C130: 445.3 | D130: 443.70 | E130: 438.40 | F130: 431.50 | G130: 426.20 | H130: 450.60 | I130: 455.90 | J130: 462.80 | K130: 449 | L130: 436.8 | M130: 70.10923
A131: 122 | B131: JINDALSTEL | C131: 320.95 | D131: 317.92 | E131: 312.03 | F131: 303.12 | G131: 297.23 | H131: 326.83 | I131: 332.72 | J131: 341.63 | K131: 323.8 | L131: 309 | M131: 78.24327
A132: 123 | B132: JUBLFOOD | C132: 2879.3 | D132: 2866.08 | E132: 2832.07 | F132: 2784.83 | G132: 2750.82 | H132: 2913.32 | I132: 2947.33 | J132: 2994.57 | K132: 2900.1 | L132: 2818.85 | M132: 4.90688
A133: 124 | B133: KOTAKBANK | C133: 1822.65 | D133: 1825.87 | E133: 1801.78 | F133: 1780.92 | G133: 1756.83 | H133: 1846.73 | I133: 1870.82 | J133: 1891.68 | K133: 1849.95 | L133: 1805 | M133: 24.34097
A134: 125 | B134: L&TFH | C134: 99.35 | D134: 100.12 | E134: 97.73 | F134: 96.12 | G134: 93.73 | H134: 101.73 | I134: 104.12 | J134: 105.73 | K134: 102.5 | L134: 98.5 | M134: 96.06705
A135: 126 | B135: LTTS | C135: 2596.35 | D135: 2603.85 | E135: 2575.70 | F135: 2555.05 | G135: 2526.90 | H135: 2624.50 | I135: 2652.65 | J135: 2673.30 | K135: 2632 | L135: 2583.2 | M135: 2.05762
A136: 127 | B136: LICHSGFIN | C136: 414.5 | D136: 416.37 | E136: 409.13 | F136: 403.77 | G136: 396.53 | H136: 421.73 | I136: 428.97 | J136: 434.33 | K136: 423.6 | L136: 411 | M136: 31.71767
A137: 128 | B137: LTI | C137: 4093.1 | D137: 4120.05 | E137: 4048.15 | F137: 4003.20 | G137: 3931.30 | H137: 4165.00 | I137: 4236.90 | J137: 4281.85 | K137: 4191.95 | L137: 4075.1 | M137: 2.51199
A138: 129 | B138: LT | C138: 1400.05 | D138: 1403.23 | E138: 1389.07 | F138: 1378.08 | G138: 1363.92 | H138: 1414.22 | I138: 1428.38 | J138: 1439.37 | K138: 1417.4 | L138: 1392.25 | M138: 29.64175
A139: 130 | B139: LUPIN | C139: 1015.7 | D139: 1011.77 | E139: 1003.93 | F139: 992.17 | G139: 984.33 | H139: 1023.53 | I139: 1031.37 | J139: 1043.13 | K139: 1019.6 | L139: 1000 | M139: 17.36883
A140: 131 | B140: MRF | C140: 83722.8 | D140: 83880.97 | E140: 82262.93 | F140: 80803.07 | G140: 79185.03 | H140: 85340.83 | I140: 86958.87 | J140: 88418.73 | K140: 85499 | L140: 82421.1 | M140: 0.27406
A141: 132 | B141: MGL | C141: 1123.6 | D141: 1125.12 | E141: 1111.28 | F141: 1098.97 | G141: 1085.13 | H141: 1137.43 | I141: 1151.27 | J141: 1163.58 | K141: 1138.95 | L141: 1112.8 | M141: 4.04991
A142: 133 | B142: M&MFIN | C142: 211.5 | D142: 213.92 | E142: 207.13 | F142: 202.77 | G142: 195.98 | H142: 218.28 | I142: 225.07 | J142: 229.43 | K142: 220.7 | L142: 209.55 | M142: 146.90082
A143: 134 | B143: M&M | C143: 853.05 | D143: 848.18 | E143: 837.02 | F143: 820.98 | G143: 809.82 | H143: 864.22 | I143: 875.38 | J143: 891.42 | K143: 859.35 | L143: 832.15 | M143: 29.063
A144: 135 | B144: MANAPPURAM | C144: 156.65 | D144: 157.77 | E144: 154.73 | F144: 152.82 | G144: 149.78 | H144: 159.68 | I144: 162.72 | J144: 164.63 | K144: 160.8 | L144: 155.85 | M144: 41.84243
A145: 136 | B145: MARICO | C145: 401.7 | D145: 399.55 | E145: 396.15 | F145: 390.60 | G145: 387.20 | H145: 405.10 | I145: 408.50 | J145: 414.05 | K145: 402.95 | L145: 394 | M145: 16.2566
A146: 137 | B146: MARUTI | C146: 7101.25 | D146: 7097.98 | E146: 7053.47 | F146: 7005.68 | G146: 6961.17 | H146: 7145.77 | I146: 7190.28 | J146: 7238.07 | K146: 7142.5 | L146: 7050.2 | M146: 5.33767
A147: 138 | B147: MFSL | C147: 845.05 | D147: 850.03 | E147: 835.92 | F147: 826.78 | G147: 812.67 | H147: 859.17 | I147: 873.28 | J147: 882.42 | K147: 864.15 | L147: 840.9 | M147: 6.50232
A148: 139 | B148: MINDTREE | C148: 2002.15 | D148: 1999.70 | E148: 1976.75 | F148: 1951.35 | G148: 1928.40 | H148: 2025.10 | I148: 2048.05 | J148: 2073.45 | K148: 2022.65 | L148: 1974.3 | M148: 8.73412
A149: 140 | B149: MOTHERSUMI | C149: 206 | D149: 208.15 | E149: 201.85 | F149: 197.70 | G149: 191.40 | H149: 212.30 | I149: 218.60 | J149: 222.75 | K149: 214.45 | L149: 204 | M149: 126.83478
A150: 141 | B150: MPHASIS | C150: 1670.05 | D150: 1660.93 | E150: 1641.12 | F150: 1612.18 | G150: 1592.37 | H150: 1689.87 | I150: 1709.68 | J150: 1738.62 | K150: 1680.75 | L150: 1632 | M150: 2.85987
A151: 142 | B151: MUTHOOTFIN | C151: 1238.3 | D151: 1235.80 | E151: 1224.10 | F151: 1209.90 | G151: 1198.20 | H151: 1250.00 | I151: 1261.70 | J151: 1275.90 | K151: 1247.5 | L151: 1221.6 | M151: 6.15189
A152: 143 | B152: NATCOPHARM | C152: 814.45 | D152: 812.97 | E152: 807.13 | F152: 799.82 | G152: 793.98 | H152: 820.28 | I152: 826.12 | J152: 833.43 | K152: 818.8 | L152: 805.65 | M152: 1.32287
A153: 144 | B153: NMDC | C153: 128.2 | D153: 127.93 | E153: 126.52 | F153: 124.83 | G153: 123.42 | H153: 129.62 | I153: 131.03 | J153: 132.72 | K153: 129.35 | L153: 126.25 | M153: 123.64505
A154: 145 | B154: NTPC | C154: 109.85 | D154: 109.08 | E154: 107.62 | F154: 105.38 | G154: 103.92 | H154: 111.32 | I154: 112.78 | J154: 115.02 | K154: 110.55 | L154: 106.85 | M154: 319.80425
A155: 146 | B155: NATIONALUM | C155: 54.45 | D155: 54.63 | E155: 53.87 | F155: 53.28 | G155: 52.52 | H155: 55.22 | I155: 55.98 | J155: 56.57 | K155: 55.4 | L155: 54.05 | M155: 114.91902
A156: 147 | B156: NAVINFLUOR | C156: 2539.85 | D156: 2537.75 | E156: 2495.55 | F156: 2451.25 | G156: 2409.05 | H156: 2582.05 | I156: 2624.25 | J156: 2668.55 | K156: 2579.95 | L156: 2493.45 | M156: 1.39196
A157: 148 | B157: NESTLEIND | C157: 16588.05 | D157: 16538.02 | E157: 16401.03 | F157: 16214.02 | G157: 16077.03 | H157: 16725.03 | I157: 16862.02 | J157: 17049.03 | K157: 16675 | L157: 16351 | M157: 1.08786
A158: 149 | B158: NAM-INDIA | C158: 336.05 | D158: 333.32 | E158: 329.93 | F158: 323.82 | G158: 320.43 | H158: 339.43 | I158: 342.82 | J158: 348.93 | K158: 336.7 | L158: 327.2 | M158: 10.56084
A159: 150 | B159: OBEROIRLTY | C159: 600.15 | D159: 594.30 | E159: 580.90 | F159: 561.65 | G159: 548.25 | H159: 613.55 | I159: 626.95 | J159: 646.20 | K159: 607.7 | L159: 575.05 | M159: 4.08006
A160: 151 | B160: ONGC | C160: 109.6 | D160: 109.80 | E160: 108.35 | F160: 107.10 | G160: 105.65 | H160: 111.05 | I160: 112.50 | J160: 113.75 | K160: 111.25 | L160: 108.55 | M160: 158.25065
A161: 152 | B161: OIL | C161: 118.85 | D161: 119.30 | E161: 117.70 | F161: 116.55 | G161: 114.95 | H161: 120.45 | I161: 122.05 | J161: 123.20 | K161: 120.9 | L161: 118.15 | M161: 11.08722
A162: 153 | B162: OFSS | C162: 3222.55 | D162: 3220.17 | E162: 3184.78 | F162: 3147.02 | G162: 3111.63 | H162: 3257.93 | I162: 3293.32 | J162: 3331.08 | K162: 3255.55 | L162: 3182.4 | M162: 0.57361
A163: 154 | B163: PIIND | C163: 2297.95 | D163: 2284.57 | E163: 2258.38 | F163: 2218.82 | G163: 2192.63 | H163: 2324.13 | I163: 2350.32 | J163: 2389.88 | K163: 2310.75 | L163: 2245 | M163: 2.54354
A164: 155 | B164: PAGEIND | C164: 29721.3 | D164: 29240.07 | E164: 28529.13 | F164: 27336.97 | G164: 26626.03 | H164: 30432.23 | I164: 31143.17 | J164: 32335.33 | K164: 29951 | L164: 28047.9 | M164: 0.55943
A165: 156 | B165: PETRONET | C165: 228.75 | D165: 228.50 | E165: 225.50 | F165: 222.25 | G165: 219.25 | H165: 231.75 | I165: 234.75 | J165: 238.00 | K165: 231.5 | L165: 225.25 | M165: 50.12225
A166: 157 | B166: PFIZER | C166: 4413.65 | D166: 4408.05 | E166: 4381.90 | F166: 4350.15 | G166: 4324.00 | H166: 4439.80 | I166: 4465.95 | J166: 4497.70 | K166: 4434.2 | L166: 4376.3 | M166: 0.30877
A167: 158 | B167: PIDILITIND | C167: 1761.9 | D167: 1761.28 | E167: 1738.77 | F167: 1715.63 | G167: 1693.12 | H167: 1784.42 | I167: 1806.93 | J167: 1830.07 | K167: 1783.8 | L167: 1738.15 | M167: 6.17685
A168: 159 | B168: PEL | C168: 1896.25 | D168: 1893.67 | E168: 1868.28 | F168: 1840.32 | G168: 1814.93 | H168: 1921.63 | I168: 1947.02 | J168: 1974.98 | K168: 1919.05 | L168: 1865.7 | M168: 7.48612
A169: 160 | B169: POLYCAB | C169: 1352.7 | D169: 1358.23 | E169: 1339.47 | F169: 1326.23 | G169: 1307.47 | H169: 1371.47 | I169: 1390.23 | J169: 1403.47 | K169: 1377 | L169: 1345 | M169: 3.26202
A170: 161 | B170: PFC | C170: 121.45 | D170: 122.32 | E170: 120.18 | F170: 118.92 | G170: 116.78 | H170: 123.58 | I170: 125.72 | J170: 126.98 | K170: 124.45 | L170: 121.05 | M170: 50.71374
A171: 162 | B171: POWERGRID | C171: 223.55 | D171: 226.72 | E171: 219.03 | F171: 214.52 | G171: 206.83 | H171: 231.23 | I171: 238.92 | J171: 243.43 | K171: 234.4 | L171: 222.2 | M171: 164.1425
A172: 163 | B172: PRESTIGE | C172: 299.4 | D172: 294.50 | E172: 288.50 | F172: 277.60 | G172: 271.60 | H172: 305.40 | I172: 311.40 | J172: 322.30 | K172: 300.5 | L172: 283.6 | M172: 8.83644
A173: 164 | B173: PGHH | C173: 13018.95 | D173: 13009.98 | E173: 12829.97 | F173: 12640.98 | G173: 12460.97 | H173: 13198.97 | I173: 13378.98 | J173: 13567.97 | K173: 13190 | L173: 12821 | M173: 0.06132
A174: 165 | B174: PNB | C174: 37.95 | D174: 38.00 | E174: 37.45 | F174: 36.95 | G174: 36.40 | H174: 38.50 | I174: 39.05 | J174: 39.55 | K174: 38.55 | L174: 37.5 | M174: 943.89245
A175: 166 | B175: RBLBANK | C175: 225.25 | D175: 226.32 | E175: 222.03 | F175: 218.82 | G175: 214.53 | H175: 229.53 | I175: 233.82 | J175: 237.03 | K175: 230.6 | L175: 223.1 | M175: 113.32389
A176: 167 | B176: RECLTD | C176: 139.2 | D176: 140.23 | E176: 137.72 | F176: 136.23 | G176: 133.72 | H176: 141.72 | I176: 144.23 | J176: 145.72 | K176: 142.75 | L176: 138.75 | M176: 49.6223
A177: 168 | B177: RAJESHEXPO | C177: 475.15 | D177: 476.10 | E177: 470.20 | F177: 465.25 | G177: 459.35 | H177: 481.05 | I177: 486.95 | J177: 491.90 | K177: 482 | L177: 471.15 | M177: 4.89176
A178: 169 | B178: RELIANCE | C178: 2062.4 | D178: 2056.53 | E178: 2039.07 | F178: 2015.73 | G178: 1998.27 | H178: 2079.87 | I178: 2097.33 | J178: 2120.67 | K178: 2074 | L178: 2033.2 | M178: 85.71196
A179: 170 | B179: SBICARD | C179: 973.1 | D179: 976.87 | E179: 962.48 | F179: 951.87 | G179: 937.48 | H179: 987.48 | I179: 1001.87 | J179: 1012.48 | K179: 991.25 | L179: 966.25 | M179: 33.55126
A180: 171 | B180: SBILIFE | C180: 900.2 | D180: 901.60 | E180: 893.95 | F180: 887.70 | G180: 880.05 | H180: 907.85 | I180: 915.50 | J180: 921.75 | K180: 909.25 | L180: 895.35 | M180: 16.60688
A181: 172 | B181: SRF | C181: 5281 | D181: 5279.27 | E181: 5235.78 | F181: 5190.57 | G181: 5147.08 | H181: 5324.48 | I181: 5367.97 | J181: 5413.18 | K181: 5322.75 | L181: 5234.05 | M181: 0.91631
A182: 173 | B182: SANOFI | C182: 7658.35 | D182: 7700.78 | E182: 7577.57 | F182: 7496.78 | G182: 7373.57 | H182: 7781.57 | I182: 7904.78 | J182: 7985.57 | K182: 7824 | L182: 7620 | M182: 0.29508
A183: 174 | B183: SHREECEM | C183: 26954.5 | D183: 26928.88 | E183: 26643.62 | F183: 26332.73 | G183: 26047.47 | H183: 27239.77 | I183: 27525.03 | J183: 27835.92 | K183: 27214.15 | L183: 26618 | M183: 0.45373
A184: 175 | B184: SRTRANSFIN | C184: 1381.4 | D184: 1372.80 | E184: 1355.65 | F184: 1329.90 | G184: 1312.75 | H184: 1398.55 | I184: 1415.70 | J184: 1441.45 | K184: 1389.95 | L184: 1347.05 | M184: 18.67037
A185: 176 | B185: SIEMENS | C185: 1838.8 | D185: 1842.88 | E185: 1814.92 | F185: 1791.03 | G185: 1763.07 | H185: 1866.77 | I185: 1894.73 | J185: 1918.62 | K185: 1870.85 | L185: 1819 | M185: 4.57971
A186: 177 | B186: SBIN | C186: 367 | D186: 367.77 | E186: 362.73 | F186: 358.47 | G186: 353.43 | H186: 372.03 | I186: 377.07 | J186: 381.33 | K186: 372.8 | L186: 363.5 | M186: 284.61974
A187: 178 | B187: SAIL | C187: 73.35 | D187: 73.22 | E187: 72.33 | F187: 71.32 | G187: 70.43 | H187: 74.23 | I187: 75.12 | J187: 76.13 | K187: 74.1 | L187: 72.2 | M187: 215.60723
A188: 179 | B188: SUNPHARMA | C188: 591 | D188: 587.73 | E188: 581.87 | F188: 572.73 | G188: 566.87 | H188: 596.87 | I188: 602.73 | J188: 611.87 | K188: 593.6 | L188: 578.6 | M188: 70.33955
A189: 180 | B189: SUNTV | C189: 484.25 | D189: 481.53 | E189: 476.07 | F189: 467.88 | G189: 462.42 | H189: 489.72 | I189: 495.18 | J189: 503.37 | K189: 487 | L189: 473.35 | M189: 25.54609
A190: 181 | B190: SYNGENE | C190: 500.7 | D190: 503.02 | E190: 489.13 | F190: 477.57 | G190: 463.68 | H190: 514.58 | I190: 528.47 | J190: 540.03 | K190: 516.9 | L190: 491.45 | M190: 9.59051
A191: 182 | B191: TVSMOTOR | C191: 580.2 | D191: 582.20 | E191: 574.00 | F191: 567.80 | G191: 559.60 | H191: 588.40 | I191: 596.60 | J191: 602.80 | K191: 590.4 | L191: 576 | M191: 15.37729
A192: 183 | B192: TATACHEM | C192: 763.75 | D192: 759.38 | E192: 747.77 | F192: 731.78 | G192: 720.17 | H192: 775.37 | I192: 786.98 | J192: 802.97 | K192: 771 | L192: 743.4 | M192: 92.38739
A193: 184 | B193: TCS | C193: 3129.65 | D193: 3095.92 | E193: 3052.38 | F193: 2975.12 | G193: 2931.58 | H193: 3173.18 | I193: 3216.72 | J193: 3293.98 | K193: 3139.45 | L193: 3018.65 | M193: 28.21646
A194: 185 | B194: TATACONSUM | C194: 620.55 | D194: 613.28 | E194: 603.52 | F194: 586.48 | G194: 576.72 | H194: 630.32 | I194: 640.08 | J194: 657.12 | K194: 623.05 | L194: 596.25 | M194: 31.54483
A195: 186 | B195: TATAMOTORS | C195: 303.05 | D195: 303.55 | E195: 299.60 | F195: 296.15 | G195: 292.20 | H195: 307.00 | I195: 310.95 | J195: 314.40 | K195: 307.5 | L195: 300.1 | M195: 563.85019
A196: 187 | B196: TATAPOWER | C196: 104.75 | D196: 105.02 | E196: 103.53 | F196: 102.32 | G196: 100.83 | H196: 106.23 | I196: 107.72 | J196: 108.93 | K196: 106.5 | L196: 103.8 | M196: 749.13152
A197: 188 | B197: TATASTEEL | C197: 743.5 | D197: 738.05 | E197: 730.45 | F197: 717.40 | G197: 709.80 | H197: 751.10 | I197: 758.70 | J197: 771.75 | K197: 745.65 | L197: 725 | M197: 137.6037
A198: 189 | B198: TECHM | C198: 1013.55 | D198: 1003.08 | E198: 988.77 | F198: 963.98 | G198: 949.67 | H198: 1027.87 | I198: 1042.18 | J198: 1066.97 | K198: 1017.4 | L198: 978.3 | M198: 38.73143
A199: 190 | B199: RAMCOCEM | C199: 974.6 | D199: 958.83 | E199: 937.02 | F199: 899.43 | G199: 877.62 | H199: 996.42 | I199: 1018.23 | J199: 1055.82 | K199: 980.65 | L199: 921.25 | M199: 5.29188
A200: 191 | B200: TITAN | C200: 1460.3 | D200: 1458.98 | E200: 1449.32 | F200: 1438.33 | G200: 1428.67 | H200: 1469.97 | I200: 1479.63 | J200: 1490.62 | K200: 1468.65 | L200: 1448 | M200: 13.31121
A201: 192 | B201: TORNTPHARM | C201: 2449.1 | D201: 2432.63 | E201: 2409.27 | F201: 2369.43 | G201: 2346.07 | H201: 2472.47 | I201: 2495.83 | J201: 2535.67 | K201: 2456 | L201: 2392.8 | M201: 3.45093
A202: 193 | B202: TORNTPOWER | C202: 427.45 | D202: 425.10 | E202: 421.05 | F202: 414.65 | G202: 410.60 | H202: 431.50 | I202: 435.55 | J202: 441.95 | K202: 429.15 | L202: 418.7 | M202: 17.51625
A203: 194 | B203: TRENT | C203: 800 | D203: 802.45 | E203: 788.05 | F203: 776.10 | G203: 761.70 | H203: 814.40 | I203: 828.80 | J203: 840.75 | K203: 816.85 | L203: 790.5 | M203: 6.55786
A204: 195 | B204: UPL | C204: 628.15 | D204: 627.57 | E204: 618.23 | F204: 608.32 | G204: 598.98 | H204: 637.48 | I204: 646.82 | J204: 656.73 | K204: 636.9 | L204: 617.65 | M204: 61.96079
A205: 196 | B205: ULTRACEMCO | C205: 6728 | D205: 6714.77 | E205: 6644.53 | F205: 6561.07 | G205: 6490.83 | H205: 6798.23 | I205: 6868.47 | J205: 6951.93 | K205: 6785 | L205: 6631.3 | M205: 4.67719
... 29 more rows

Sheet MidCap Intra
L5: Back To Main Page
A6: FOR INTRA DAY TRADING | K6: =Main!B10 -> 2021-03-23
A9: Sr.no | B9: Scrip | C9: CLOSE RATE | D9: Pivot Point | E9: Supports | H9: Resistances
C10: Point | E10: S1 | F10: S2 | G10: S3 | H10: R1 | I10: R2 | J10: R3 | K10: HIGH | L10: LOW | M10: Total Trade Quanity in Lakhs
A11: 1 | B11: 3MINDIA | C11: 27435.85 | D11: 27305.92 | E11: 26730.93 | F11: 26026.02 | G11: 25451.03 | H11: 28010.83 | I11: 28585.82 | J11: 29290.73 | K11: 27880.9 | L11: 26601 | M11: 0.11794
A12: 2 | B12: ABB | C12: 1388.6 | D12: 1400.53 | E12: 1373.07 | F12: 1357.53 | G12: 1330.07 | H12: 1416.07 | I12: 1443.53 | J12: 1459.07 | K12: 1428 | L12: 1385 | M12: 0.77105
A13: 3 | B13: POWERINDIA | C13: 1389.95 | D13: 1364.37 | E13: 1320.73 | F13: 1251.52 | G13: 1207.88 | H13: 1433.58 | I13: 1477.22 | J13: 1546.43 | K13: 1408 | L13: 1295.15 | M13: 0.99345
A14: 4 | B14: ACC | C14: 1860 | D14: 1828.37 | E14: 1782.83 | F14: 1705.67 | G14: 1660.13 | H14: 1905.53 | I14: 1951.07 | J14: 2028.23 | K14: 1873.9 | L14: 1751.2 | M14: 46.27665
A15: 5 | B15: AIAENG | C15: 1913.2 | D15: 1903.77 | E15: 1882.53 | F15: 1851.87 | G15: 1830.63 | H15: 1934.43 | I15: 1955.67 | J15: 1986.33 | K15: 1925 | L15: 1873.1 | M15: 0.52126
A16: 6 | B16: APLAPOLLO | C16: 1283.8 | D16: 1275.23 | E16: 1253.57 | F16: 1223.33 | G16: 1201.67 | H16: 1305.47 | I16: 1327.13 | J16: 1357.37 | K16: 1296.9 | L16: 1245 | M16: 5.38272
A17: 7 | B17: AUBANK | C17: 1222.9 | D17: 1217.55 | E17: 1200.35 | F17: 1177.80 | G17: 1160.60 | H17: 1240.10 | I17: 1257.30 | J17: 1279.85 | K17: 1234.75 | L17: 1195 | M17: 7.58035
A18: 8 | B18: AARTIDRUGS | C18: 733.95 | D18: 743.32 | E18: 716.63 | F18: 699.32 | G18: 672.63 | H18: 760.63 | I18: 787.32 | J18: 804.63 | K18: 770 | L18: 726 | M18: 30.72899
A19: 9 | B19: AARTIIND | C19: 1282.75 | D19: 1270.93 | E19: 1251.82 | F19: 1220.88 | G19: 1201.77 | H19: 1301.87 | I19: 1320.98 | J19: 1351.92 | K19: 1290.05 | L19: 1240 | M19: 1.51246
A20: 10 | B20: AAVAS | C20: 2351.95 | D20: 2340.30 | E20: 2305.65 | F20: 2259.35 | G20: 2224.70 | H20: 2386.60 | I20: 2421.25 | J20: 2467.55 | K20: 2374.95 | L20: 2294 | M20: 1.31891
A21: 11 | B21: ABBOTINDIA | C21: 14646.5 | D21: 14667.17 | E21: 14479.33 | F21: 14312.17 | G21: 14124.33 | H21: 14834.33 | I21: 15022.17 | J21: 15189.33 | K21: 14855 | L21: 14500 | M21: 0.12736
A22: 12 | B22: ADANIENT | C22: 991.05 | D22: 959.17 | E22: 915.33 | F22: 839.62 | G22: 795.78 | H22: 1034.88 | I22: 1078.72 | J22: 1154.43 | K22: 1003 | L22: 883.45 | M22: 225.96465
A23: 13 | B23: ADANIGREEN | C23: 1252.2 | D23: 1246.45 | E23: 1240.70 | F23: 1229.20 | G23: 1223.45 | H23: 1257.95 | I23: 1263.70 | J23: 1275.20 | K23: 1252.2 | L23: 1234.95 | M23: 3.82028
A24: 14 | B24: ADANIPORTS | C24: 721.9 | D24: 709.72 | E24: 693.18 | F24: 664.47 | G24: 647.93 | H24: 738.43 | I24: 754.97 | J24: 783.68 | K24: 726.25 | L24: 681 | M24: 228.6495
A25: 15 | B25: ATGL | C25: 819.1 | D25: 805.52 | E25: 759.03 | F25: 698.97 | G25: 652.48 | H25: 865.58 | I25: 912.07 | J25: 972.13 | K25: 852 | L25: 745.45 | M25: 43.23983
A26: 16 | B26: ADANITRANS | C26: 792.15 | D26: 785.77 | E26: 764.53 | F26: 736.92 | G26: 715.68 | H26: 813.38 | I26: 834.62 | J26: 862.23 | K26: 807 | L26: 758.15 | M26: 18.023
A27: 17 | B27: ABCAPITAL | C27: 120.8 | D27: 120.82 | E27: 119.03 | F27: 117.27 | G27: 115.48 | H27: 122.58 | I27: 124.37 | J27: 126.13 | K27: 122.6 | L27: 119.05 | M27: 20.94161
A28: 18 | B28: ABFRL | C28: 205.9 | D28: 205.27 | E28: 202.88 | F28: 199.87 | G28: 197.48 | H28: 208.28 | I28: 210.67 | J28: 213.68 | K28: 207.65 | L28: 202.25 | M28: 17.53377
A29: 19 | B29: ADVENZYMES | C29: 355.15 | D29: 355.72 | E29: 351.43 | F29: 347.72 | G29: 343.43 | H29: 359.43 | I29: 363.72 | J29: 367.43 | K29: 360 | L29: 352 | M29: 1.04517
A30: 20 | B30: AEGISCHEM | C30: 294.8 | D30: 295.77 | E30: 290.53 | F30: 286.27 | G30: 281.03 | H30: 300.03 | I30: 305.27 | J30: 309.53 | K30: 301 | L30: 291.5 | M30: 1.32798
A31: 21 | B31: AFFLE | C31: 5299.05 | D31: 5331.45 | E31: 5222.90 | F31: 5146.75 | G31: 5038.20 | H31: 5407.60 | I31: 5516.15 | J31: 5592.30 | K31: 5440 | L31: 5255.3 | M31: 0.59204
A32: 22 | B32: AJANTPHARM | C32: 1778.8 | D32: 1792.73 | E32: 1760.07 | F32: 1741.33 | G32: 1708.67 | H32: 1811.47 | I32: 1844.13 | J32: 1862.87 | K32: 1825.4 | L32: 1774 | M32: 0.74856
A33: 23 | B33: AKZOINDIA | C33: 2213.6 | D33: 2207.48 | E33: 2184.97 | F33: 2156.33 | G33: 2133.82 | H33: 2236.12 | I33: 2258.63 | J33: 2287.27 | K33: 2230 | L33: 2178.85 | M33: 0.10866
A34: 24 | B34: ALEMBICLTD | C34: 101.1 | D34: 100.82 | E34: 99.98 | F34: 98.87 | G34: 98.03 | H34: 101.93 | I34: 102.77 | J34: 103.88 | K34: 101.65 | L34: 99.7 | M34: 2.28365
A35: 25 | B35: APLLTD | C35: 916.2 | D35: 910.27 | E35: 894.58 | F35: 872.97 | G35: 857.28 | H35: 931.88 | I35: 947.57 | J35: 969.18 | K35: 925.95 | L35: 888.65 | M35: 5.55759
A36: 26 | B36: ALKEM | C36: 2620.55 | D36: 2628.68 | E36: 2598.07 | F36: 2575.58 | G36: 2544.97 | H36: 2651.17 | I36: 2681.78 | J36: 2704.27 | K36: 2659.3 | L36: 2606.2 | M36: 1.20147
A37: 27 | B37: ALKYLAMINE | C37: 5330.15 | D37: 5354.25 | E37: 5284.90 | F37: 5239.65 | G37: 5170.30 | H37: 5399.50 | I37: 5468.85 | J37: 5514.10 | K37: 5423.6 | L37: 5309 | M37: 0.26834
A38: 28 | B38: ALOKINDS | C38: 20.9 | D38: 21.15 | E38: 20.35 | F38: 19.80 | G38: 19.00 | H38: 21.70 | I38: 22.50 | J38: 23.05 | K38: 21.95 | L38: 20.6 | M38: 167.43394
A39: 29 | B39: AMARAJABAT | C39: 874.4 | D39: 871.98 | E39: 867.52 | F39: 860.63 | G39: 856.17 | H39: 878.87 | I39: 883.33 | J39: 890.22 | K39: 876.45 | L39: 865.1 | M39: 3.53785
A40: 30 | B40: AMBER | C40: 3335.85 | D40: 3321.97 | E40: 3249.93 | F40: 3164.02 | G40: 3091.98 | H40: 3407.88 | I40: 3479.92 | J40: 3565.83 | K40: 3394 | L40: 3236.05 | M40: 0.63904
A41: 31 | B41: AMBUJACEM | C41: 295.6 | D41: 290.47 | E41: 283.13 | F41: 270.67 | G41: 263.33 | H41: 302.93 | I41: 310.27 | J41: 322.73 | K41: 297.8 | L41: 278 | M41: 111.82565
A42: 32 | B42: APOLLOHOSP | C42: 2905.1 | D42: 2908.12 | E42: 2871.98 | F42: 2838.87 | G42: 2802.73 | H42: 2941.23 | I42: 2977.37 | J42: 3010.48 | K42: 2944.25 | L42: 2875 | M42: 4.88626
A43: 33 | B43: APOLLOTYRE | C43: 224.4 | D43: 223.95 | E43: 221.15 | F43: 217.90 | G43: 215.10 | H43: 227.20 | I43: 230.00 | J43: 233.25 | K43: 226.75 | L43: 220.7 | M43: 54.02029
A44: 34 | B44: ASHOKLEY | C44: 113.75 | D44: 114.33 | E44: 111.92 | F44: 110.08 | G44: 107.67 | H44: 116.17 | I44: 118.58 | J44: 120.42 | K44: 116.75 | L44: 112.5 | M44: 163.92169
A45: 35 | B45: ASHOKA | C45: 102.7 | D45: 103.20 | E45: 101.80 | F45: 100.90 | G45: 99.50 | H45: 104.10 | I45: 105.50 | J45: 106.40 | K45: 104.6 | L45: 102.3 | M45: 7.71374
A46: 36 | B46: ASIANPAINT | C46: 2425.7 | D46: 2417.93 | E46: 2397.77 | F46: 2369.83 | G46: 2349.67 | H46: 2445.87 | I46: 2466.03 | J46: 2493.97 | K46: 2438.1 | L46: 2390 | M46: 14.89853
A47: 37 | B47: ASTERDM | C47: 143.4 | D47: 142.17 | E47: 140.38 | F47: 137.37 | G47: 135.58 | H47: 145.18 | I47: 146.97 | J47: 149.98 | K47: 143.95 | L47: 139.15 | M47: 1.78862
A48: 38 | B48: ASTRAZEN | C48: 3292 | D48: 3296.65 | E48: 3208.45 | F48: 3124.90 | G48: 3036.70 | H48: 3380.20 | I48: 3468.40 | J48: 3551.95 | K48: 3384.85 | L48: 3213.1 | M48: 1.18907
A49: 39 | B49: ASTRAL | C49: 1705.45 | D49: 1698.83 | E49: 1667.67 | F49: 1629.88 | G49: 1598.72 | H49: 1736.62 | I49: 1767.78 | J49: 1805.57 | K49: 1730 | L49: 1661.05 | M49: 1.75632
A50: 40 | B50: ATUL | C50: 6920.45 | D50: 6876.30 | E50: 6714.20 | F50: 6507.95 | G50: 6345.85 | H50: 7082.55 | I50: 7244.65 | J50: 7450.90 | K50: 7038.4 | L50: 6670.05 | M50: 0.66938
A51: 41 | B51: AUROPHARMA | C51: 835.25 | D51: 836.92 | E51: 824.33 | F51: 813.42 | G51: 800.83 | H51: 847.83 | I51: 860.42 | J51: 871.33 | K51: 849.5 | L51: 826 | M51: 30.77093
A52: 42 | B52: AVANTIFEED | C52: 455.95 | D52: 453.55 | E52: 445.40 | F52: 434.85 | G52: 426.70 | H52: 464.10 | I52: 472.25 | J52: 482.80 | K52: 461.7 | L52: 443 | M52: 3.69985
A53: 43 | B53: DMART | C53: 2880.1 | D53: 2910.03 | E53: 2832.07 | F53: 2784.03 | G53: 2706.07 | H53: 2958.07 | I53: 3036.03 | J53: 3084.07 | K53: 2988 | L53: 2862 | M53: 6.52753
A54: 44 | B54: AXISBANK | C54: 716.2 | D54: 718.50 | E54: 707.00 | F54: 697.80 | G54: 686.30 | H54: 727.70 | I54: 739.20 | J54: 748.40 | K54: 730 | L54: 709.3 | M54: 148.0223
A55: 45 | B55: BASF | C55: 2087.75 | D55: 2085.93 | E55: 2054.07 | F55: 2020.38 | G55: 1988.52 | H55: 2119.62 | I55: 2151.48 | J55: 2185.17 | K55: 2117.8 | L55: 2052.25 | M55: 0.31548
A56: 46 | B56: BEML | C56: 1387.1 | D56: 1389.05 | E56: 1358.15 | F56: 1329.20 | G56: 1298.30 | H56: 1418.00 | I56: 1448.90 | J56: 1477.85 | K56: 1419.95 | L56: 1360.1 | M56: 15.63755
A57: 47 | B57: BSE | C57: 568.55 | D57: 567.65 | E57: 563.30 | F57: 558.05 | G57: 553.70 | H57: 572.90 | I57: 577.25 | J57: 582.50 | K57: 572 | L57: 562.4 | M57: 1.53531
A58: 48 | B58: BAJAJ-AUTO | C58: 3664.75 | D58: 3661.35 | E58: 3637.70 | F58: 3610.65 | G58: 3587.00 | H58: 3688.40 | I58: 3712.05 | J58: 3739.10 | K58: 3685 | L58: 3634.3 | M58: 5.02724
A59: 49 | B59: BAJAJCON | C59: 269.2 | D59: 269.25 | E59: 265.60 | F59: 262.00 | G59: 258.35 | H59: 272.85 | I59: 276.50 | J59: 280.10 | K59: 272.9 | L59: 265.65 | M59: 3.45872
A60: 50 | B60: BAJAJELEC | C60: 934 | D60: 935.45 | E60: 921.20 | F60: 908.40 | G60: 894.15 | H60: 948.25 | I60: 962.50 | J60: 975.30 | K60: 949.7 | L60: 922.65 | M60: 0.87412
A61: 51 | B61: BAJFINANCE | C61: 5389.35 | D61: 5407.78 | E61: 5318.57 | F61: 5247.78 | G61: 5158.57 | H61: 5478.57 | I61: 5567.78 | J61: 5638.57 | K61: 5497 | L61: 5337 | M61: 19.38461
A62: 52 | B62: BAJAJFINSV | C62: 9405.85 | D62: 9404.28 | E62: 9313.62 | F62: 9221.38 | G62: 9130.72 | H62: 9496.52 | I62: 9587.18 | J62: 9679.42 | K62: 9494.95 | L62: 9312.05 | M62: 2.93029
A63: 53 | B63: BAJAJHLDNG | C63: 3428.3 | D63: 3416.48 | E63: 3377.97 | F63: 3327.63 | G63: 3289.12 | H63: 3466.82 | I63: 3505.33 | J63: 3555.67 | K63: 3455 | L63: 3366.15 | M63: 0.2001
A64: 54 | B64: BALKRISIND | C64: 1622.35 | D64: 1617.62 | E64: 1606.28 | F64: 1590.22 | G64: 1578.88 | H64: 1633.68 | I64: 1645.02 | J64: 1661.08 | K64: 1628.95 | L64: 1601.55 | M64: 3.79095
A65: 55 | B65: BALMLAWRIE | C65: 137.75 | D65: 137.53 | E65: 134.27 | F65: 130.78 | G65: 127.52 | H65: 141.02 | I65: 144.28 | J65: 147.77 | K65: 140.8 | L65: 134.05 | M65: 9.16718
A66: 56 | B66: BALRAMCHIN | C66: 204.2 | D66: 203.20 | E66: 199.10 | F66: 194.00 | G66: 189.90 | H66: 208.30 | I66: 212.40 | J66: 217.50 | K66: 207.3 | L66: 198.1 | M66: 15.80377
A67: 57 | B67: BANDHANBNK | C67: 352.6 | D67: 350.45 | E67: 345.45 | F67: 338.30 | G67: 333.30 | H67: 357.60 | I67: 362.60 | J67: 369.75 | K67: 355.45 | L67: 343.3 | M67: 92.4705
A68: 58 | B68: BANKBARODA | C68: 72.45 | D68: 72.95 | E68: 71.25 | F68: 70.05 | G68: 68.35 | H68: 74.15 | I68: 75.85 | J68: 77.05 | K68: 74.65 | L68: 71.75 | M68: 432.15479
A69: 59 | B69: BANKINDIA | C69: 68.4 | D69: 68.00 | E69: 66.75 | F69: 65.10 | G69: 63.85 | H69: 69.65 | I69: 70.90 | J69: 72.55 | K69: 69.25 | L69: 66.35 | M69: 41.8286
A70: 60 | B70: MAHABANK | C70: 19.05 | D70: 19.27 | E70: 18.58 | F70: 18.12 | G70: 17.43 | H70: 19.73 | I70: 20.42 | J70: 20.88 | K70: 19.95 | L70: 18.8 | M70: 60.58094
A71: 61 | B71: BATAINDIA | C71: 1476.05 | D71: 1478.52 | E71: 1466.03 | F71: 1456.02 | G71: 1443.53 | H71: 1488.53 | I71: 1501.02 | J71: 1511.03 | K71: 1491 | L71: 1468.5 | M71: 2.64088
A72: 62 | B72: BAYERCROP | C72: 5093.8 | D72: 5099.58 | E72: 5049.22 | F72: 5004.63 | G72: 4954.27 | H72: 5144.17 | I72: 5194.53 | J72: 5239.12 | K72: 5149.95 | L72: 5055 | M72: 0.07366
A73: 63 | B73: BERGEPAINT | C73: 732.05 | D73: 728.03 | E73: 721.62 | F73: 711.18 | G73: 704.77 | H73: 738.47 | I73: 744.88 | J73: 755.32 | K73: 734.45 | L73: 717.6 | M73: 7.67576
A74: 64 | B74: BDL | C74: 358.35 | D74: 358.53 | E74: 350.07 | F74: 341.78 | G74: 333.32 | H74: 366.82 | I74: 375.28 | J74: 383.57 | K74: 367 | L74: 350.25 | M74: 16.95839
A75: 65 | B75: BEL | C75: 127.95 | D75: 129.08 | E75: 126.22 | F75: 124.48 | G75: 121.62 | H75: 130.82 | I75: 133.68 | J75: 135.42 | K75: 131.95 | L75: 127.35 | M75: 129.81794
A76: 66 | B76: BHARATFORG | C76: 596.85 | D76: 598.60 | E76: 589.25 | F76: 581.65 | G76: 572.30 | H76: 606.20 | I76: 615.55 | J76: 623.15 | K76: 607.95 | L76: 591 | M76: 15.12975
A77: 67 | B77: BHEL | C77: 52.2 | D77: 52.08 | E77: 51.37 | F77: 50.53 | G77: 49.82 | H77: 52.92 | I77: 53.63 | J77: 54.47 | K77: 52.8 | L77: 51.25 | M77: 483.22688
A78: 68 | B78: BPCL | C78: 439.35 | D78: 438.57 | E78: 435.13 | F78: 430.92 | G78: 427.48 | H78: 442.78 | I78: 446.22 | J78: 450.43 | K78: 442 | L78: 434.35 | M78: 136.71931
A79: 69 | B79: BHARATRAS | C79: 9642.55 | D79: 9627.17 | E79: 9554.33 | F79: 9466.12 | G79: 9393.28 | H79: 9715.38 | I79: 9788.22 | J79: 9876.43 | K79: 9700 | L79: 9538.95 | M79: 0.00958
A80: 70 | B80: BHARTIARTL | C80: 528 | D80: 528.33 | E80: 522.67 | F80: 517.33 | G80: 511.67 | H80: 533.67 | I80: 539.33 | J80: 544.67 | K80: 534 | L80: 523 | M80: 133.31409
A81: 71 | B81: BIOCON | C81: 402.25 | D81: 399.90 | E81: 396.40 | F81: 390.55 | G81: 387.05 | H81: 405.75 | I81: 409.25 | J81: 415.10 | K81: 403.4 | L81: 394.05 | M81: 37.13607
A82: 72 | B82: BIRLACORPN | C82: 831.7 | D82: 820.50 | E82: 801.30 | F82: 770.90 | G82: 751.70 | H82: 850.90 | I82: 870.10 | J82: 900.50 | K82: 839.7 | L82: 790.1 | M82: 1.87752
A83: 73 | B83: BSOFT | C83: 248.2 | D83: 246.47 | E83: 242.18 | F83: 236.17 | G83: 231.88 | H83: 252.48 | I83: 256.77 | J83: 262.78 | K83: 250.75 | L83: 240.45 | M83: 11.41179
A84: 74 | B84: BLISSGVS | C84: 102.3 | D84: 103.32 | E84: 100.63 | F84: 98.97 | G84: 96.28 | H84: 104.98 | I84: 107.67 | J84: 109.33 | K84: 106 | L84: 101.65 | M84: 7.45114
A85: 75 | B85: BLUEDART | C85: 5244.15 | D85: 5309.70 | E85: 5137.40 | F85: 5030.65 | G85: 4858.35 | H85: 5416.45 | I85: 5588.75 | J85: 5695.50 | K85: 5482 | L85: 5202.95 | M85: 0.15924
A86: 76 | B86: BLUESTARCO | C86: 895.4 | D86: 898.95 | E86: 878.20 | F86: 861.00 | G86: 840.25 | H86: 916.15 | I86: 936.90 | J86: 954.10 | K86: 919.7 | L86: 881.75 | M86: 0.99756
A87: 77 | B87: BBTC | C87: 1170.1 | D87: 1169.88 | E87: 1154.77 | F87: 1139.43 | G87: 1124.32 | H87: 1185.22 | I87: 1200.33 | J87: 1215.67 | K87: 1185 | L87: 1154.55 | M87: 0.50376
A88: 78 | B88: BOMDYEING | C88: 74.95 | D88: 74.88 | E88: 73.72 | F88: 72.48 | G88: 71.32 | H88: 76.12 | I88: 77.28 | J88: 78.52 | K88: 76.05 | L88: 73.65 | M88: 14.69203
A89: 79 | B89: BOSCHLTD | C89: 14349.8 | D89: 14394.85 | E89: 14239.70 | F89: 14129.60 | G89: 13974.45 | H89: 14504.95 | I89: 14660.10 | J89: 14770.20 | K89: 14550 | L89: 14284.75 | M89: 0.22321
A90: 80 | B90: BRIGADE | C90: 251.5 | D90: 249.55 | E90: 244.95 | F90: 238.40 | G90: 233.80 | H90: 256.10 | I90: 260.70 | J90: 267.25 | K90: 254.15 | L90: 243 | M90: 1.82657
A91: 81 | B91: BRITANNIA | C91: 3564.4 | D91: 3524.83 | E91: 3479.67 | F91: 3394.93 | G91: 3349.77 | H91: 3609.57 | I91: 3654.73 | J91: 3739.47 | K91: 3570 | L91: 3440.1 | M91: 8.20046
A92: 82 | B92: CARERATING | C92: 438.2 | D92: 443.00 | E92: 431.20 | F92: 424.20 | G92: 412.40 | H92: 450.00 | I92: 461.80 | J92: 468.80 | K92: 454.8 | L92: 436 | M92: 1.56424
A93: 83 | B93: CCL | C93: 239.9 | D93: 241.05 | E93: 237.10 | F93: 234.30 | G93: 230.35 | H93: 243.85 | I93: 247.80 | J93: 250.60 | K93: 245 | L93: 238.25 | M93: 0.60075
A94: 84 | B94: CESC | C94: 597.75 | D94: 601.88 | E94: 591.57 | F94: 585.38 | G94: 575.07 | H94: 608.07 | I94: 618.38 | J94: 624.57 | K94: 612.2 | L94: 595.7 | M94: 3.83117
A95: 85 | B95: CRISIL | C95: 1958.3 | D95: 1946.88 | E95: 1926.67 | F95: 1895.03 | G95: 1874.82 | H95: 1978.52 | I95: 1998.73 | J95: 2030.37 | K95: 1967.1 | L95: 1915.25 | M95: 0.13845
A96: 86 | B96: CSBBANK | C96: 246.1 | D96: 247.08 | E96: 242.07 | F96: 238.03 | G96: 233.02 | H96: 251.12 | I96: 256.13 | J96: 260.17 | K96: 252.1 | L96: 243.05 | M96: 1.51586
A97: 87 | B97: CADILAHC | C97: 431.65 | D97: 431.80 | E97: 425.60 | F97: 419.55 | G97: 413.35 | H97: 437.85 | I97: 444.05 | J97: 450.10 | K97: 438 | L97: 425.75 | M97: 20.32262
A98: 88 | B98: CANFINHOME | C98: 602.4 | D98: 597.45 | E98: 582.90 | F98: 563.40 | G98: 548.85 | H98: 616.95 | I98: 631.50 | J98: 651.00 | K98: 612 | L98: 577.95 | M98: 13.78357
A99: 89 | B99: CANBK | C99: 150 | D99: 150.58 | E99: 146.92 | F99: 143.83 | G99: 140.17 | H99: 153.67 | I99: 157.33 | J99: 160.42 | K99: 154.25 | L99: 147.5 | M99: 191.11354
A100: 90 | B100: CAPLIPOINT | C100: 428.4 | D100: 430.72 | E100: 423.73 | F100: 419.07 | G100: 412.08 | H100: 435.38 | I100: 442.37 | J100: 447.03 | K100: 437.7 | L100: 426.05 | M100: 0.76533
A101: 91 | B101: CGCL | C101: 361.5 | D101: 357.58 | E101: 350.37 | F101: 339.23 | G101: 332.02 | H101: 368.72 | I101: 375.93 | J101: 387.07 | K101: 364.8 | L101: 346.45 | M101: 0.94622
A102: 92 | B102: CARBORUNIV | C102: 468.85 | D102: 471.60 | E102: 463.25 | F102: 457.65 | G102: 449.30 | H102: 477.20 | I102: 485.55 | J102: 491.15 | K102: 479.95 | L102: 466 | M102: 1.96549
A103: 93 | B103: CASTROLIND | C103: 118.8 | D103: 118.73 | E103: 117.87 | F103: 116.93 | G103: 116.07 | H103: 119.67 | I103: 120.53 | J103: 121.47 | K103: 119.6 | L103: 117.8 | M103: 14.3828
A104: 94 | B104: CEATLTD | C104: 1548.3 | D104: 1558.07 | E104: 1529.18 | F104: 1510.07 | G104: 1481.18 | H104: 1577.18 | I104: 1606.07 | J104: 1625.18 | K104: 1586.95 | L104: 1538.95 | M104: 1.25465
A105: 95 | B105: CENTRALBK | C105: 15.9 | D105: 16.15 | E105: 15.55 | F105: 15.20 | G105: 14.60 | H105: 16.50 | I105: 17.10 | J105: 17.45 | K105: 16.75 | L105: 15.8 | M105: 116.43707
A106: 96 | B106: CDSL | C106: 609.5 | D106: 610.22 | E106: 603.68 | F106: 597.87 | G106: 591.33 | H106: 616.03 | I106: 622.57 | J106: 628.38 | K106: 616.75 | L106: 604.4 | M106: 5.43384
A107: 97 | B107: CENTURYPLY | C107: 298.9 | D107: 296.80 | E107: 292.60 | F107: 286.30 | G107: 282.10 | H107: 303.10 | I107: 307.30 | J107: 313.60 | K107: 301 | L107: 290.5 | M107: 0.99196
A108: 98 | B108: CENTURYTEX | C108: 483.65 | D108: 479.82 | E108: 472.58 | F108: 461.52 | G108: 454.28 | H108: 490.88 | I108: 498.12 | J108: 509.18 | K108: 487.05 | L108: 468.75 | M108: 4.13517
A109: 99 | B109: CERA | C109: 3859.75 | D109: 3865.80 | E109: 3810.40 | F109: 3761.05 | G109: 3705.65 | H109: 3915.15 | I109: 3970.55 | J109: 4019.90 | K109: 3921.2 | L109: 3816.45 | M109: 0.13076
A110: 100 | B110: CHALET | C110: 156.3 | D110: 156.53 | E110: 154.97 | F110: 153.63 | G110: 152.07 | H110: 157.87 | I110: 159.43 | J110: 160.77 | K110: 158.1 | L110: 155.2 | M110: 1.23045
A111: 101 | B111: CHAMBLFERT | C111: 221.05 | D111: 220.33 | E111: 217.82 | F111: 214.58 | G111: 212.07 | H111: 223.57 | I111: 226.08 | J111: 229.32 | K111: 222.85 | L111: 217.1 | M111: 6.39503
A112: 102 | B112: CHENNPETRO | C112: 104.15 | D112: 104.70 | E112: 102.90 | F112: 101.65 | G112: 99.85 | H112: 105.95 | I112: 107.75 | J112: 109.00 | K112: 106.5 | L112: 103.45 | M112: 5.06764
A113: 103 | B113: CHOLAHLDNG | C113: 599.6 | D113: 599.10 | E113: 591.65 | F113: 583.70 | G113: 576.25 | H113: 607.05 | I113: 614.50 | J113: 622.45 | K113: 606.55 | L113: 591.15 | M113: 1.16287
A114: 104 | B114: CHOLAFIN | C114: 570.4 | D114: 565.02 | E114: 550.43 | F114: 530.47 | G114: 515.88 | H114: 584.98 | I114: 599.57 | J114: 619.53 | K114: 579.6 | L114: 545.05 | M114: 90.87183
A115: 105 | B115: CIPLA | C115: 772.85 | D115: 772.05 | E115: 759.50 | F115: 746.15 | G115: 733.60 | H115: 785.40 | I115: 797.95 | J115: 811.30 | K115: 784.6 | L115: 758.7 | M115: 35.63266
A116: 106 | B116: CUB | C116: 169.65 | D116: 169.27 | E116: 167.78 | F116: 165.92 | G116: 164.43 | H116: 171.13 | I116: 172.62 | J116: 174.48 | K116: 170.75 | L116: 167.4 | M116: 9.86324
A117: 107 | B117: COALINDIA | C117: 135.65 | D117: 136.18 | E117: 134.77 | F117: 133.88 | G117: 132.47 | H117: 137.07 | I117: 138.48 | J117: 139.37 | K117: 137.6 | L117: 135.3 | M117: 114.14253
A118: 108 | B118: COCHINSHIP | C118: 361.3 | D118: 363.12 | E118: 357.23 | F118: 353.17 | G118: 347.28 | H118: 367.18 | I118: 373.07 | J118: 377.13 | K118: 369 | L118: 359.05 | M118: 1.42487
A119: 109 | B119: COFORGE | C119: 2921.2 | D119: 2943.07 | E119: 2873.33 | F119: 2825.47 | G119: 2755.73 | H119: 2990.93 | I119: 3060.67 | J119: 3108.53 | K119: 3012.8 | L119: 2895.2 | M119: 3.25777
A120: 110 | B120: COLPAL | C120: 1578.1 | D120: 1575.78 | E120: 1562.57 | F120: 1547.03 | G120: 1533.82 | H120: 1591.32 | I120: 1604.53 | J120: 1620.07 | K120: 1589 | L120: 1560.25 | M120: 8.7192
A121: 111 | B121: CONCOR | C121: 560.75 | D121: 559.58 | E121: 552.02 | F121: 543.28 | G121: 535.72 | H121: 568.32 | I121: 575.88 | J121: 584.62 | K121: 567.15 | L121: 550.85 | M121: 19.62206
A122: 112 | B122: COROMANDEL | C122: 757.05 | D122: 753.23 | E122: 747.07 | F122: 737.08 | G122: 730.92 | H122: 763.22 | I122: 769.38 | J122: 779.37 | K122: 759.4 | L122: 743.25 | M122: 1.9864
A123: 113 | B123: CREDITACC | C123: 690.45 | D123: 697.27 | E123: 675.53 | F123: 660.62 | G123: 638.88 | H123: 712.18 | I123: 733.92 | J123: 748.83 | K123: 719 | L123: 682.35 | M123: 0.79513
A124: 114 | B124: CROMPTON | C124: 391.15 | D124: 392.20 | E124: 383.15 | F124: 375.15 | G124: 366.10 | H124: 400.20 | I124: 409.25 | J124: 417.25 | K124: 401.25 | L124: 384.2 | M124: 13.55742
A125: 115 | B125: CUMMINSIND | C125: 894.35 | D125: 897.45 | E125: 884.90 | F125: 875.45 | G125: 862.90 | H125: 906.90 | I125: 919.45 | J125: 928.90 | K125: 910 | L125: 888 | M125: 8.68118
A126: 116 | B126: CYIENT | C126: 675.95 | D126: 671.93 | E126: 659.07 | F126: 642.18 | G126: 629.32 | H126: 688.82 | I126: 701.68 | J126: 718.57 | K126: 684.8 | L126: 655.05 | M126: 6.09156
A127: 117 | B127: DBCORP | C127: 92.3 | D127: 92.73 | E127: 90.67 | F127: 89.03 | G127: 86.97 | H127: 94.37 | I127: 96.43 | J127: 98.07 | K127: 94.8 | L127: 91.1 | M127: 1.68289
A128: 118 | B128: DCBBANK | C128: 105.55 | D128: 106.03 | E128: 103.37 | F128: 101.18 | G128: 98.52 | H128: 108.22 | I128: 110.88 | J128: 113.07 | K128: 108.7 | L128: 103.85 | M128: 12.62228
A129: 119 | B129: DCMSHRIRAM | C129: 526.75 | D129: 525.58 | E129: 513.17 | F129: 499.58 | G129: 487.17 | H129: 539.17 | I129: 551.58 | J129: 565.17 | K129: 538 | L129: 512 | M129: 0.51961
A130: 120 | B130: DLF | C130: 292.3 | D130: 290.15 | E130: 286.40 | F130: 280.50 | G130: 276.75 | H130: 296.05 | I130: 299.80 | J130: 305.70 | K130: 293.9 | L130: 284.25 | M130: 82.12537
A131: 121 | B131: DABUR | C131: 533.5 | D131: 530.63 | E131: 526.57 | F131: 519.63 | G131: 515.57 | H131: 537.57 | I131: 541.63 | J131: 548.57 | K131: 534.7 | L131: 523.7 | M131: 17.2062
A132: 122 | B132: DALBHARAT | C132: 1583.9 | D132: 1582.97 | E132: 1565.93 | F132: 1547.97 | G132: 1530.93 | H132: 1600.93 | I132: 1617.97 | J132: 1635.93 | K132: 1600 | L132: 1565 | M132: 0.6891
A133: 123 | B133: DEEPAKNTR | C133: 1530.5 | D133: 1516.68 | E133: 1488.37 | F133: 1446.23 | G133: 1417.92 | H133: 1558.82 | I133: 1587.13 | J133: 1629.27 | K133: 1545 | L133: 1474.55 | M133: 6.98562
A134: 124 | B134: DELTACORP | C134: 175.5 | D134: 174.40 | E134: 170.10 | F134: 164.70 | G134: 160.40 | H134: 179.80 | I134: 184.10 | J134: 189.50 | K134: 178.7 | L134: 169 | M134: 41.02046
A135: 125 | B135: DHANI | C135: 268.2 | D135: 269.32 | E135: 263.88 | F135: 259.57 | G135: 254.13 | H135: 273.63 | I135: 279.07 | J135: 283.38 | K135: 274.75 | L135: 265 | M135: 15.07666
A136: 126 | B136: DHANUKA | C136: 704.3 | D136: 705.77 | E136: 698.53 | F136: 692.77 | G136: 685.53 | H136: 711.53 | I136: 718.77 | J136: 724.53 | K136: 713 | L136: 700 | M136: 0.3027
A137: 127 | B137: DBL | C137: 603.6 | D137: 603.92 | E137: 593.18 | F137: 582.77 | G137: 572.03 | H137: 614.33 | I137: 625.07 | J137: 635.48 | K137: 614.65 | L137: 593.5 | M137: 2.55533
A138: 128 | B138: DISHTV | C138: 9.85 | D138: 9.95 | E138: 9.60 | F138: 9.35 | G138: 9.00 | H138: 10.20 | I138: 10.55 | J138: 10.80 | K138: 10.3 | L138: 9.7 | M138: 118.68757
A139: 129 | B139: DCAL | C139: 114.2 | D139: 115.05 | E139: 112.65 | F139: 111.10 | G139: 108.70 | H139: 116.60 | I139: 119.00 | J139: 120.55 | K139: 117.45 | L139: 113.5 | M139: 3.76636
A140: 130 | B140: DIVISLAB | C140: 3405.95 | D140: 3400.17 | E140: 3356.33 | F140: 3306.72 | G140: 3262.88 | H140: 3449.78 | I140: 3493.62 | J140: 3543.23 | K140: 3444 | L140: 3350.55 | M140: 7.48535
A141: 131 | B141: DIXON | C141: 4053.65 | D141: 4126.02 | E141: 3966.63 | F141: 3879.62 | G141: 3720.23 | H141: 4213.03 | I141: 4372.42 | J141: 4459.43 | K141: 4285.4 | L141: 4039 | M141: 4.30794
A142: 132 | B142: LALPATHLAB | C142: 2568.85 | D142: 2561.75 | E142: 2537.15 | F142: 2505.45 | G142: 2480.85 | H142: 2593.45 | I142: 2618.05 | J142: 2649.75 | K142: 2586.35 | L142: 2530.05 | M142: 3.07901
A143: 133 | B143: DRREDDY | C143: 4353.95 | D143: 4330.05 | E143: 4292.15 | F143: 4230.35 | G143: 4192.45 | H143: 4391.85 | I143: 4429.75 | J143: 4491.55 | K143: 4367.95 | L143: 4268.25 | M143: 8.67303
A144: 134 | B144: EIDPARRY | C144: 334.15 | D144: 332.80 | E144: 321.90 | F144: 309.65 | G144: 298.75 | H144: 345.05 | I144: 355.95 | J144: 368.20 | K144: 343.7 | L144: 320.55 | M144: 1.17805
A145: 135 | B145: EIHOTEL | C145: 98.3 | D145: 97.55 | E145: 96.30 | F145: 94.30 | G145: 93.05 | H145: 99.55 | I145: 100.80 | J145: 102.80 | K145: 98.8 | L145: 95.55 | M145: 6.29808
A146: 136 | B146: EPL | C146: 213.7 | D146: 212.92 | E146: 210.88 | F146: 208.07 | G146: 206.03 | H146: 215.73 | I146: 217.77 | J146: 220.58 | K146: 214.95 | L146: 210.1 | M146: 4.80823
A147: 137 | B147: ESABINDIA | C147: 1858.2 | D147: 1865.75 | E147: 1832.50 | F147: 1806.80 | G147: 1773.55 | H147: 1891.45 | I147: 1924.70 | J147: 1950.40 | K147: 1899 | L147: 1840.05 | M147: 0.04173
A148: 138 | B148: EDELWEISS | C148: 81.3 | D148: 82.47 | E148: 79.23 | F148: 77.17 | G148: 73.93 | H148: 84.53 | I148: 87.77 | J148: 89.83 | K148: 85.7 | L148: 80.4 | M148: 24.62425
A149: 139 | B149: EICHERMOT | C149: 2676.85 | D149: 2672.97 | E149: 2653.93 | F149: 2631.02 | G149: 2611.98 | H149: 2695.88 | I149: 2714.92 | J149: 2737.83 | K149: 2692 | L149: 2650.05 | M149: 6.94227
A150: 140 | B150: ELGIEQUIP | C150: 193 | D150: 192.02 | E150: 190.03 | F150: 187.07 | G150: 185.08 | H150: 194.98 | I150: 196.97 | J150: 199.93 | K150: 194 | L150: 189.05 | M150: 0.39491
A151: 141 | B151: EMAMILTD | C151: 485.4 | D151: 481.77 | E151: 475.63 | F151: 465.87 | G151: 459.73 | H151: 491.53 | I151: 497.67 | J151: 507.43 | K151: 487.9 | L151: 472 | M151: 1.83674
A152: 142 | B152: ENDURANCE | C152: 1489.25 | D152: 1468.08 | E152: 1416.22 | F152: 1343.18 | G152: 1291.32 | H152: 1541.12 | I152: 1592.98 | J152: 1666.02 | K152: 1519.95 | L152: 1395.05 | M152: 1.84891
A153: 143 | B153: ENGINERSIN | C153: 75.35 | D153: 74.92 | E153: 73.93 | F153: 72.52 | G153: 71.53 | H153: 76.33 | I153: 77.32 | J153: 78.73 | K153: 75.9 | L153: 73.5 | M153: 26.78626
A154: 144 | B154: EQUITAS | C154: 86.4 | D154: 86.12 | E154: 83.83 | F154: 81.27 | G154: 78.98 | H154: 88.68 | I154: 90.97 | J154: 93.53 | K154: 88.4 | L154: 83.55 | M154: 13.12104
A155: 145 | B155: ERIS | C155: 572.5 | D155: 576.75 | E155: 565.55 | F155: 558.60 | G155: 547.40 | H155: 583.70 | I155: 594.90 | J155: 601.85 | K155: 587.95 | L155: 569.8 | M155: 0.81972
A156: 146 | B156: ESCORTS | C156: 1362.3 | D156: 1359.23 | E156: 1343.47 | F156: 1324.63 | G156: 1308.87 | H156: 1378.07 | I156: 1393.83 | J156: 1412.67 | K156: 1375 | L156: 1340.4 | M156: 7.90865
A157: 147 | B157: EXIDEIND | C157: 189.4 | D157: 188.90 | E157: 187.20 | F157: 185.00 | G157: 183.30 | H157: 191.10 | I157: 192.80 | J157: 195.00 | K157: 190.6 | L157: 186.7 | M157: 32.11914
A158: 148 | B158: FDC | C158: 275.15 | D158: 275.48 | E158: 272.02 | F158: 268.88 | G158: 265.42 | H158: 278.62 | I158: 282.08 | J158: 285.22 | K158: 278.95 | L158: 272.35 | M158: 0.92629
A159: 149 | B159: FEDERALBNK | C159: 77.15 | D159: 77.43 | E159: 76.32 | F159: 75.48 | G159: 74.37 | H159: 78.27 | I159: 79.38 | J159: 80.22 | K159: 78.55 | L159: 76.6 | M159: 163.27873
A160: 150 | B160: FINEORG | C160: 2212.4 | D160: 2217.80 | E160: 2182.60 | F160: 2152.80 | G160: 2117.60 | H160: 2247.60 | I160: 2282.80 | J160: 2312.60 | K160: 2253 | L160: 2188 | M160: 0.19012
A161: 151 | B161: FINCABLES | C161: 367.35 | D161: 369.27 | E161: 362.93 | F161: 358.52 | G161: 352.18 | H161: 373.68 | I161: 380.02 | J161: 384.43 | K161: 375.6 | L161: 364.85 | M161: 1.28271
A162: 152 | B162: FINPIPE | C162: 612.2 | D162: 616.42 | E162: 600.83 | F162: 589.47 | G162: 573.88 | H162: 627.78 | I162: 643.37 | J162: 654.73 | K162: 632 | L162: 605.05 | M162: 0.8362
A163: 153 | B163: FSL | C163: 111.6 | D163: 111.50 | E163: 108.40 | F163: 105.20 | G163: 102.10 | H163: 114.70 | I163: 117.80 | J163: 121.00 | K163: 114.6 | L163: 108.3 | M163: 41.94167
A164: 154 | B164: FORTIS | C164: 202.15 | D164: 199.23 | E164: 193.97 | F164: 185.78 | G164: 180.52 | H164: 207.42 | I164: 212.68 | J164: 220.87 | K164: 204.5 | L164: 191.05 | M164: 88.68991
A165: 155 | B165: FCONSUMER | C165: 7 | D165: 6.82 | E165: 6.63 | F165: 6.27 | G165: 6.08 | H165: 7.18 | I165: 7.37 | J165: 7.73 | K165: 7 | L165: 6.45 | M165: 94.00995
A166: 156 | B166: FRETAIL | C166: 59.4 | D166: 57.17 | E166: 52.88 | F166: 46.37 | G166: 42.08 | H166: 63.68 | I166: 67.97 | J166: 74.48 | K166: 61.45 | L166: 50.65 | M166: 221.46864
A167: 157 | B167: GAIL | C167: 136.8 | D167: 137.38 | E167: 134.77 | F167: 132.73 | G167: 130.12 | H167: 139.42 | I167: 142.03 | J167: 144.07 | K167: 140 | L167: 135.35 | M167: 171.16629
A168: 158 | B168: GEPIL | C168: 270.45 | D168: 269.73 | E168: 266.87 | F168: 263.28 | G168: 260.42 | H168: 273.32 | I168: 276.18 | J168: 279.77 | K168: 272.6 | L168: 266.15 | M168: 0.46412
A169: 159 | B169: GHCL | C169: 231.45 | D169: 231.13 | E169: 228.32 | F169: 225.18 | G169: 222.37 | H169: 234.27 | I169: 237.08 | J169: 240.22 | K169: 233.95 | L169: 228 | M169: 1.00967
A170: 160 | B170: GMMPFAUDLR | C170: 4246.75 | D170: 4228.70 | E170: 4168.05 | F170: 4089.35 | G170: 4028.70 | H170: 4307.40 | I170: 4368.05 | J170: 4446.75 | K170: 4289.35 | L170: 4150 | M170: 0.4168
A171: 161 | B171: GMRINFRA | C171: 25.6 | D171: 25.40 | E171: 24.90 | F171: 24.20 | G171: 23.70 | H171: 26.10 | I171: 26.60 | J171: 27.30 | K171: 25.9 | L171: 24.7 | M171: 192.9742
A172: 162 | B172: GALAXYSURF | C172: 2396.85 | D172: 2388.48 | E172: 2350.37 | F172: 2303.88 | G172: 2265.77 | H172: 2434.97 | I172: 2473.08 | J172: 2519.57 | K172: 2426.6 | L172: 2342 | M172: 0.13553
A173: 163 | B173: GRSE | C173: 191.4 | D173: 193.13 | E173: 188.27 | F173: 185.13 | G173: 180.27 | H173: 196.27 | I173: 201.13 | J173: 204.27 | K173: 198 | L173: 190 | M173: 2.13865
A174: 164 | B174: GARFIBRES | C174: 2395.75 | D174: 2381.92 | E174: 2333.83 | F174: 2271.92 | G174: 2223.83 | H174: 2443.83 | I174: 2491.92 | J174: 2553.83 | K174: 2430 | L174: 2320 | M174: 0.17224
A175: 165 | B175: GICRE | C175: 219.65 | D175: 218.85 | E175: 214.80 | F175: 209.95 | G175: 205.90 | H175: 223.70 | I175: 227.75 | J175: 232.60 | K175: 222.9 | L175: 214 | M175: 14.79677
A176: 166 | B176: GILLETTE | C176: 5471.3 | D176: 5483.78 | E176: 5417.52 | F176: 5363.73 | G176: 5297.47 | H176: 5537.57 | I176: 5603.83 | J176: 5657.62 | K176: 5550.05 | L176: 5430 | M176: 0.09229
A177: 167 | B177: GLAXO | C177: 1425.45 | D177: 1430.15 | E177: 1417.30 | F177: 1409.15 | G177: 1396.30 | H177: 1438.30 | I177: 1451.15 | J177: 1459.30 | K177: 1443 | L177: 1422 | M177: 0.13543
A178: 168 | B178: GLENMARK | C178: 460.45 | D178: 461.43 | E178: 455.07 | F178: 449.68 | G178: 443.32 | H178: 466.82 | I178: 473.18 | J178: 478.57 | K178: 467.8 | L178: 456.05 | M178: 11.13661
A179: 169 | B179: GODFRYPHLP | C179: 886.65 | D179: 885.22 | E179: 876.43 | F179: 866.22 | G179: 857.43 | H179: 895.43 | I179: 904.22 | J179: 914.43 | K179: 894 | L179: 875 | M179: 0.26985
A180: 170 | B180: GODREJAGRO | C180: 495.9 | D180: 493.08 | E180: 489.17 | F180: 482.43 | G180: 478.52 | H180: 499.82 | I180: 503.73 | J180: 510.47 | K180: 497 | L180: 486.35 | M180: 0.85037
A181: 171 | B181: GODREJCP | C181: 694.35 | D181: 687.12 | E181: 678.23 | F181: 662.12 | G181: 653.23 | H181: 703.23 | I181: 712.12 | J181: 728.23 | K181: 696 | L181: 671 | M181: 20.05221
A182: 172 | B182: GODREJIND | C182: 521.25 | D182: 516.72 | E182: 508.63 | F182: 496.02 | G182: 487.93 | H182: 529.33 | I182: 537.42 | J182: 550.03 | K182: 524.8 | L182: 504.1 | M182: 2.80008
A183: 173 | B183: GODREJPROP | C183: 1412 | D183: 1387.20 | E183: 1344.80 | F183: 1277.60 | G183: 1235.20 | H183: 1454.40 | I183: 1496.80 | J183: 1564.00 | K183: 1429.6 | L183: 1320 | M183: 23.94826
A184: 174 | B184: GRANULES | C184: 311.2 | D184: 313.32 | E184: 307.63 | F184: 304.07 | G184: 298.38 | H184: 316.88 | I184: 322.57 | J184: 326.13 | K184: 319 | L184: 309.75 | M184: 16.80817
A185: 175 | B185: GRAPHITE | C185: 499.15 | D185: 502.55 | E185: 492.60 | F185: 486.05 | G185: 476.10 | H185: 509.10 | I185: 519.05 | J185: 525.60 | K185: 512.5 | L185: 496 | M185: 9.09236
A186: 176 | B186: GRASIM | C186: 1413.9 | D186: 1414.38 | E186: 1400.77 | F186: 1387.63 | G186: 1374.02 | H186: 1427.52 | I186: 1441.13 | J186: 1454.27 | K186: 1428 | L186: 1401.25 | M186: 15.87634
A187: 177 | B187: GESHIP | C187: 305.6 | D187: 305.28 | E187: 301.72 | F187: 297.83 | G187: 294.27 | H187: 309.17 | I187: 312.73 | J187: 316.62 | K187: 308.85 | L187: 301.4 | M187: 1.66957
A188: 178 | B188: GREAVESCOT | C188: 136.35 | D188: 134.52 | E188: 131.03 | F188: 125.72 | G188: 122.23 | H188: 139.83 | I188: 143.32 | J188: 148.63 | K188: 138 | L188: 129.2 | M188: 17.58243
A189: 179 | B189: GRINDWELL | C189: 889.15 | D189: 880.48 | E189: 865.97 | F189: 842.78 | G189: 828.27 | H189: 903.67 | I189: 918.18 | J189: 941.37 | K189: 895 | L189: 857.3 | M189: 1.2352
A190: 180 | B190: GUJALKALI | C190: 349.95 | D190: 352.67 | E190: 344.33 | F190: 338.72 | G190: 330.38 | H190: 358.28 | I190: 366.62 | J190: 372.23 | K190: 361 | L190: 347.05 | M190: 1.42457
A191: 181 | B191: GAEL | C191: 136.25 | D191: 135.28 | E191: 132.32 | F191: 128.38 | G191: 125.42 | H191: 139.22 | I191: 142.18 | J191: 146.12 | K191: 138.25 | L191: 131.35 | M191: 2.73043
A192: 182 | B192: FLUOROCHEM | C192: 590.4 | D192: 594.68 | E192: 574.72 | F192: 559.03 | G192: 539.07 | H192: 610.37 | I192: 630.33 | J192: 646.02 | K192: 614.65 | L192: 579 | M192: 0.44911
A193: 183 | B193: GUJGASLTD | C193: 510.4 | D193: 514.33 | E193: 504.17 | F193: 497.93 | G193: 487.77 | H193: 520.57 | I193: 530.73 | J193: 536.97 | K193: 524.5 | L193: 508.1 | M193: 6.72263
A194: 184 | B194: GMDCLTD | C194: 57.5 | D194: 58.05 | E194: 56.60 | F194: 55.70 | G194: 54.25 | H194: 58.95 | I194: 60.40 | J194: 61.30 | K194: 59.5 | L194: 57.15 | M194: 10.65011
A195: 185 | B195: GNFC | C195: 301.7 | D195: 305.48 | E195: 296.67 | F195: 291.63 | G195: 282.82 | H195: 310.52 | I195: 319.33 | J195: 324.37 | K195: 314.3 | L195: 300.45 | M195: 9.31892
A196: 186 | B196: GPPL | C196: 101.95 | D196: 100.15 | E196: 97.85 | F196: 93.75 | G196: 91.45 | H196: 104.25 | I196: 106.55 | J196: 110.65 | K196: 102.45 | L196: 96.05 | M196: 4.98381
A197: 187 | B197: GSFC | C197: 87.1 | D197: 86.72 | E197: 84.63 | F197: 82.17 | G197: 80.08 | H197: 89.18 | I197: 91.27 | J197: 93.73 | K197: 88.8 | L197: 84.25 | M197: 22.55446
A198: 188 | B198: GSPL | C198: 258.4 | D198: 259.65 | E198: 255.05 | F198: 251.70 | G198: 247.10 | H198: 263.00 | I198: 267.60 | J198: 270.95 | K198: 264.25 | L198: 256.3 | M198: 11.3339
A199: 189 | B199: GULFOILLUB | C199: 746.85 | D199: 740.50 | E199: 726.35 | F199: 705.85 | G199: 691.70 | H199: 761.00 | I199: 775.15 | J199: 795.65 | K199: 754.65 | L199: 720 | M199: 0.32956
A200: 190 | B200: HEG | C200: 1570.1 | D200: 1577.45 | E200: 1552.90 | F200: 1535.70 | G200: 1511.15 | H200: 1594.65 | I200: 1619.20 | J200: 1636.40 | K200: 1602 | L200: 1560.25 | M200: 2.09032
A201: 191 | B201: HCLTECH | C201: 978.75 | D201: 968.60 | E201: 954.75 | F201: 930.75 | G201: 916.90 | H201: 992.60 | I201: 1006.45 | J201: 1030.45 | K201: 982.45 | L201: 944.6 | M201: 47.45254
A202: 192 | B202: HDFCAMC | C202: 2882.55 | D202: 2874.40 | E202: 2858.80 | F202: 2835.05 | G202: 2819.45 | H202: 2898.15 | I202: 2913.75 | J202: 2937.50 | K202: 2890 | L202: 2850.65 | M202: 1.58775
A203: 193 | B203: HDFCBANK | C203: 1469.15 | D203: 1474.82 | E203: 1454.73 | F203: 1440.32 | G203: 1420.23 | H203: 1489.23 | I203: 1509.32 | J203: 1523.73 | K203: 1494.9 | L203: 1460.4 | M203: 70.07816
A204: 194 | B204: HDFCLIFE | C204: 679.85 | D204: 684.28 | E204: 673.82 | F204: 667.78 | G204: 657.32 | H204: 690.32 | I204: 700.78 | J204: 706.82 | K204: 694.75 | L204: 678.25 | M204: 25.8588
A205: 195 | B205: HFCL | C205: 26.65 | D205: 26.68 | E205: 26.07 | F205: 25.48 | G205: 24.87 | H205: 27.27 | I205: 27.88 | J205: 28.47 | K205: 27.3 | L205: 26.1 | M205: 39.56666
A206: 196 | B206: HATHWAY | C206: 29.85 | D206: 29.78 | E206: 29.22 | F206: 28.58 | G206: 28.02 | H206: 30.42 | I206: 30.98 | J206: 31.62 | K206: 30.35 | L206: 29.15 | M206: 4.11077
... 321 more rows

Sheet Bulk Deals
E6: Back To Main Page
A7: Subject : | B7: BULK DEAL | D7: =Main!B10 -> 2021-03-23
A9: Date | B9: Scrip code | C9: Scrip Name | D9: Client Name | E9: Buy / Sell | F9: Quantity Traded | G9: Trade Price / Wt.Avg.trade price | H9: Exchange
A10: 2021-03-22 | B10: 542579 | C10: AGOL | D10: RATHOD MANOJ CHHAGANLAL HUF | E10: SELL | F10: 312,000 | G10: 47.66 | H10: BSE
A11: 2021-03-22 | B11: 542579 | C11: AGOL | D11: SHREE GANESH BIO TECH INDIA LIMITED | E11: BUY | F11: 131,200 | G11: 49.43 | H11: BSE
A12: 2021-03-22 | B12: 542579 | C12: AGOL | D12: INDIACREDIT RISK MANAGEMENT LLP | E12: BUY | F12: 144,000 | G12: 48.13 | H12: BSE
A13: 2021-03-22 | B13: 542579 | C13: AGOL | D13: BEELINE BROKING LIMITED | E13: BUY | F13: 273,600 | G13: 49.64 | H13: BSE
A14: 2021-03-22 | B14: 542579 | C14: AGOL | D14: BEELINE BROKING LIMITED | E14: SELL | F14: 1,600 | G14: 47.6 | H14: BSE
A15: 2021-03-22 | B15: 541303 | C15: AKSHAR | D15: SELTRON RESOURCE SOLUTIONS LLP | E15: SELL | F15: 555,000 | G15: 9.8 | H15: BSE
A16: 2021-03-22 | B16: 541303 | C16: AKSHAR | D16: SWETSAM STOCK HOLDING PRIVATE LIMITED | E16: BUY | F16: 555,000 | G16: 9.8 | H16: BSE
A17: 2021-03-22 | B17: 530109 | C17: ANUPAM | D17: DINESH KHIMJIBHAI SAVLA | E17: BUY | F17: 309,125 | G17: 8.31 | H17: BSE
A18: 2021-03-22 | B18: 530109 | C18: ANUPAM | D18: REKHA KISHOR SHAH | E18: SELL | F18: 309,125 | G18: 8.31 | H18: BSE
A19: 2021-03-22 | B19: 539017 | C19: ASHFL | D19: AKME FINTRADE INDIA LIMITED | E19: SELL | F19: 101,977 | G19: 76.88 | H19: BSE
A20: 2021-03-22 | B20: 543236 | C20: ATAM | D20: RATTAN PAUL | E20: BUY | F20: 21,000 | G20: 40.09 | H20: BSE
A21: 2021-03-22 | B21: 543236 | C21: ATAM | D21: SHREYA JAIN | E21: BUY | F21: 30,000 | G21: 37.94 | H21: BSE
A22: 2021-03-22 | B22: 543236 | C22: ATAM | D22: RATTAN PAUL | E22: SELL | F22: 21,000 | G22: 37.91 | H22: BSE
A23: 2021-03-22 | B23: 543236 | C23: ATAM | D23: SHREYA JAIN | E23: SELL | F23: 30,000 | G23: 40.13 | H23: BSE
A24: 2021-03-22 | B24: 542285 | C24: AXITA | D24: A B & CO | E24: SELL | F24: 92,000 | G24: 32.8 | H24: BSE
A25: 2021-03-22 | B25: 539884 | C25: DARSHANORNA | D25: GIRISH RAMESH SHAH | E25: BUY | F25: 113,500 | G25: 12.22 | H25: BSE
A26: 2021-03-22 | B26: 500120 | C26: DIAMINESQ | D26: SURESH BHATIA ASSOCIATES | E26: BUY | F26: 101,000 | G26: 255.3 | H26: BSE
A27: 2021-03-22 | B27: 500120 | C27: DIAMINESQ | D27: AARTI BHATIA | E27: SELL | F27: 101,000 | G27: 255.3 | H27: BSE
A28: 2021-03-22 | B28: 540151 | C28: DIKSAT | D28: ANKUR TILAKCHANDRA KHONA | E28: BUY | F28: 243,000 | G28: 97.9 | H28: BSE
A29: 2021-03-22 | B29: 540151 | C29: DIKSAT | D29: ANKUR TILAKCHANDRA KHONA | E29: SELL | F29: 3,000 | G29: 97 | H29: BSE
A30: 2021-03-22 | B30: 540151 | C30: DIKSAT | D30: AMRISH VINOD MEHTA | E30: SELL | F30: 103,500 | G30: 97.9 | H30: BSE
A31: 2021-03-22 | B31: 540151 | C31: DIKSAT | D31: VINOD PRABHULAL MEHTA | E31: SELL | F31: 126,000 | G31: 97.9 | H31: BSE
A32: 2021-03-22 | B32: 540151 | C32: DIKSAT | D32: JYOTI VINODCHANDRA MEHTA | E32: SELL | F32: 138,000 | G32: 97.9 | H32: BSE
A33: 2021-03-22 | B33: 540614 | C33: GGENG | D33: RAMESH SAWALRAM SARAOGI | E33: BUY | F33: 100,000 | G33: 106 | H33: BSE
A34: 2021-03-22 | B34: 542666 | C34: GKP | D34: ANJANA ATUL PARIKH | E34: BUY | F34: 44,000 | G34: 25.36 | H34: BSE
A35: 2021-03-22 | B35: 542666 | C35: GKP | D35: NEMISH MAHENDRA SHAH | E35: SELL | F35: 40,000 | G35: 25 | H35: BSE
A36: 2021-03-22 | B36: 532980 | C36: GOKUL | D36: KANUBHAI JIVATRAM THAKKAR | E36: SELL | F36: 500,000 | G36: 20.2 | H36: BSE
A37: 2021-03-22 | B37: 539097 | C37: HKG | D37: NAVRATRI SHARE TRADING PRIVATE LIMITED . | E37: SELL | F37: 565,000 | G37: 41 | H37: BSE
A38: 2021-03-22 | B38: 539097 | C38: HKG | D38: SHAH VAISHALI YATIN | E38: BUY | F38: 150,000 | G38: 41 | H38: BSE
A39: 2021-03-22 | B39: 539807 | C39: INFIBEAM | D39: RAVI OMPRAKASH AGRAWAL | E39: BUY | F39: 4,987,007 | G39: 41.44 | H39: BSE
A40: 2021-03-22 | B40: 539807 | C40: INFIBEAM | D40: AMITA RAVI AGRAWAL | E40: BUY | F40: 5,000,000 | G40: 42.35 | H40: BSE
A41: 2021-03-22 | B41: 539807 | C41: INFIBEAM | D41: L7 HITECH PRIVATE LIMITED | E41: SELL | F41: 9,960,994 | G41: 41.89 | H41: BSE
A42: 2021-03-22 | B42: 507789 | C42: JAGSNPHARM | D42: ORION STOCKS LTD | E42: BUY | F42: 153,393 | G42: 78.49 | H42: BSE
A43: 2021-03-22 | B43: 507789 | C43: JAGSNPHARM | D43: ORION STOCKS LTD | E43: SELL | F43: 116,406 | G43: 80.08 | H43: BSE
A44: 2021-03-22 | B44: 523712 | C44: JMGCORP | D44: MDG ASSOCIATES PRIVATE LIMITED | E44: SELL | F44: 449,000 | G44: 0.82 | H44: BSE
A45: 2021-03-22 | B45: 523712 | C45: JMGCORP | D45: VIJAYKANT MISHRA | E45: BUY | F45: 197,100 | G45: 0.82 | H45: BSE
A46: 2021-03-22 | B46: 523712 | C46: JMGCORP | D46: NEELAM MISHRA | E46: BUY | F46: 200,000 | G46: 0.82 | H46: BSE
A47: 2021-03-22 | B47: 539679 | C47: KAPILRAJ | D47: AJEET SINGH BISEN | E47: BUY | F47: 50,000 | G47: 10 | H47: BSE
A48: 2021-03-22 | B48: 543273 | C48: KMEW | D48: KISHORE KUMAR GIRDHARILAL | E48: BUY | F48: 129,000 | G48: 38.1 | H48: BSE
A49: 2021-03-22 | B49: 543273 | C49: KMEW | D49: PARMANAND KARAMCHANDANI | E49: BUY | F49: 60,000 | G49: 38.01 | H49: BSE
A50: 2021-03-22 | B50: 543273 | C50: KMEW | D50: JAYA KARAMCHANDANI | E50: BUY | F50: 72,000 | G50: 37.85 | H50: BSE
A51: 2021-03-22 | B51: 543273 | C51: KMEW | D51: GAUTAM PRABHUDAS NANKANI | E51: BUY | F51: 108,000 | G51: 37.96 | H51: BSE
A52: 2021-03-22 | B52: 526869 | C52: KUMPFIN | D52: RAJESH KUMAR JAIN S | E52: BUY | F52: 27,550 | G52: 6.02 | H52: BSE
A53: 2021-03-22 | B53: 526869 | C53: KUMPFIN | D53: CHANDRIKA RAJESH JAIN . | E53: BUY | F53: 50,000 | G53: 6.02 | H53: BSE
A54: 2021-03-22 | B54: 526869 | C54: KUMPFIN | D54: SANJAY KOTHARI | E54: SELL | F54: 26,500 | G54: 6.02 | H54: BSE
A55: 2021-03-22 | B55: 526869 | C55: KUMPFIN | D55: KUSHAL KUMAR RANKA | E55: SELL | F55: 46,000 | G55: 6.02 | H55: BSE
A56: 2021-03-22 | B56: 539289 | C56: MJCO | D56: GEETA CHETAN SHAH | E56: BUY | F56: 336,020 | G56: 66.55 | H56: BSE
A57: 2021-03-22 | B57: 540198 | C57: OSIAJEE | D57: TURBOT TRADERS PRIVATE LIMITED | E57: SELL | F57: 55,000 | G57: 23.7 | H57: BSE
A58: 2021-03-22 | B58: 540198 | C58: OSIAJEE | D58: ACVC FOREX PRIVATE LIMITED | E58: BUY | F58: 60,000 | G58: 23.7 | H58: BSE
A59: 2021-03-22 | B59: 539291 | C59: OZONEWORLD | D59: KAMLESHKUMAR CHANDULAL PATEL | E59: SELL | F59: 22,000 | G59: 76 | H59: BSE
A60: 2021-03-22 | B60: 539291 | C60: OZONEWORLD | D60: SHRI SANJAY J SHAH HUF | E60: BUY | F60: 27,000 | G60: 75.25 | H60: BSE
A61: 2021-03-22 | B61: 539291 | C61: OZONEWORLD | D61: RUPAL SANJAY SHAH | E61: SELL | F61: 27,000 | G61: 75.25 | H61: BSE
A62: 2021-03-22 | B62: 539291 | C62: OZONEWORLD | D62: MANISH RAMESHBHAI PATEL | E62: BUY | F62: 35,254 | G62: 75.66 | H62: BSE
A63: 2021-03-22 | B63: 539291 | C63: OZONEWORLD | D63: MANISH RAMESHBHAI PATEL | E63: SELL | F63: 13,252 | G63: 75.83 | H63: BSE
A64: 2021-03-22 | B64: 523483 | C64: PACIFICI | D64: DURGA FASHIONS LIMITED | E64: SELL | F64: 28,000 | G64: 143.2 | H64: BSE
A65: 2021-03-22 | B65: 532911 | C65: PARLEIND | D65: PIL ENTERPRISE PRIVATE LIMITED | E65: SELL | F65: 255,000 | G65: 9.36 | H65: BSE
A66: 2021-03-22 | B66: 532911 | C66: PARLEIND | D66: NAVEEN GUPTA | E66: BUY | F66: 100,843 | G66: 9.33 | H66: BSE
A67: 2021-03-22 | B67: 532911 | C67: PARLEIND | D67: NAVEEN GUPTA | E67: SELL | F67: 105,843 | G67: 9.4 | H67: BSE
A68: 2021-03-22 | B68: 541634 | C68: RAWEDGE | D68: PREMKUMAR RAM KRISHNA PANDEY | E68: BUY | F68: 64,000 | G68: 66.65 | H68: BSE
A69: 2021-03-22 | B69: 541634 | C69: RAWEDGE | D69: NITU TRADING COMPANY LIMITED | E69: SELL | F69: 62,400 | G69: 67 | H69: BSE
A70: 2021-03-22 | B70: 533285 | C70: RDBRIL | D70: FAITHFUL VANIJYA PRIVATE LIMITED | E70: BUY | F70: 262,000 | G70: 17.5 | H70: BSE
A71: 2021-03-22 | B71: 533285 | C71: RDBRIL | D71: JHILIK PROMOTERS AND FINCON PRIVATE LIMITED | E71: SELL | F71: 262,000 | G71: 17.5 | H71: BSE
A72: 2021-03-22 | B72: 539561 | C72: REMLIFE | D72: DHANSUKHBHAI CHAMPAKLAL JADAV | E72: BUY | F72: 90,000 | G72: 41.05 | H72: BSE
A73: 2021-03-22 | B73: 539561 | C73: REMLIFE | D73: SIDDHARTH CHIMANLAL SHAH . | E73: SELL | F73: 100,000 | G73: 41.05 | H73: BSE
A74: 2021-03-22 | B74: 542145 | C74: RONI | D74: HARISH MANOHAR SIRWANI | E74: SELL | F74: 174,000 | G74: 65 | H74: BSE
A75: 2021-03-22 | B75: 542145 | C75: RONI | D75: ASHWIN NITIN BIDKAR | E75: BUY | F75: 48,000 | G75: 65 | H75: BSE
A76: 2021-03-22 | B76: 542145 | C76: RONI | D76: TANISHKA ASHWIN BIDKAR | E76: BUY | F76: 126,000 | G76: 65 | H76: BSE
A77: 2021-03-22 | B77: 543274 | C77: RTL | D77: JYOTI VINODCHANDRA MEHTA | E77: BUY | F77: 43,200 | G77: 214.5 | H77: BSE
A78: 2021-03-22 | B78: 543274 | C78: RTL | D78: VINOD PRABHULAL MEHTA | E78: BUY | F78: 46,200 | G78: 212.58 | H78: BSE
A79: 2021-03-22 | B79: 523025 | C79: SAFARIND | D79: SUDHIR MOHANLAL JATIA | E79: SELL | F79: 200,000 | G79: 626.22 | H79: BSE
A80: 2021-03-22 | B80: 540259 | C80: SHANGAR | D80: OLGA TRADING PRIVATE LIMITED | E80: BUY | F80: 137,483 | G80: 17 | H80: BSE
A81: 2021-03-22 | B81: 540259 | C81: SHANGAR | D81: OLGA TRADING PRIVATE LIMITED | E81: SELL | F81: 205,653 | G81: 16.17 | H81: BSE
A82: 2021-03-22 | B82: 530907 | C82: SICAPIT | D82: DIVYA KANDA | E82: BUY | F82: 15,100 | G82: 20.45 | H82: BSE
A83: 2021-03-22 | B83: 530907 | C83: SICAPIT | D83: VRINDA S WADHWA | E83: SELL | F83: 23,100 | G83: 20.45 | H83: BSE
A84: 2021-03-22 | B84: 538402 | C84: SPS | D84: MEHTA RAMNIKLAL HARILAL | E84: BUY | F84: 24,000 | G84: 101.07 | H84: BSE
A85: 2021-03-22 | B85: 513515 | C85: SRIND | D85: HITESH HASTIMAL JAIN | E85: BUY | F85: 107,565 | G85: 3.18 | H85: BSE
A86: 2021-03-22 | B86: 539026 | C86: SSPNFIN | D86: SUMAN PARMANAND SINGH | E86: BUY | F86: 36,000 | G86: 24.77 | H86: BSE
A87: 2021-03-22 | B87: 539026 | C87: SSPNFIN | D87: SUMAN PARMANAND SINGH | E87: SELL | F87: 36,000 | G87: 24.82 | H87: BSE
A88: 2021-03-22 | B88: 539026 | C88: SSPNFIN | D88: ASHOK KUMAR SINGH | E88: BUY | F88: 52,000 | G88: 24.73 | H88: BSE
A89: 2021-03-22 | B89: 539026 | C89: SSPNFIN | D89: ESPS FINSERVE PRIVATE LIMITED | E89: SELL | F89: 52,000 | G89: 24.68 | H89: BSE
A90: 2021-03-22 | B90: 512381 | C90: STARTECK | D90: MATRABHAV TRUST | E90: BUY | F90: 635,000 | G90: 77.65 | H90: BSE
A91: 2021-03-22 | B91: 512381 | C91: STARTECK | D91: KRUPA FAMILY PRIVATE TRUST | E91: SELL | F91: 215,000 | G91: 77.65 | H91: BSE
A92: 2021-03-22 | B92: 512381 | C92: STARTECK | D92: AKRUR KAMAL KHETAN | E92: SELL | F92: 420,000 | G92: 77.65 | H92: BSE
A93: 2021-03-22 | B93: 542923 | C93: TRANWAY | D93: ANSHUGOEL | E93: SELL | F93: 60,000 | G93: 9.82 | H93: BSE
A94: 2021-03-22 | B94: 542923 | C94: TRANWAY | D94: RADAR VISION LIMITED | E94: BUY | F94: 90,000 | G94: 9.82 | H94: BSE
A95: 2021-03-22 | B95: 542923 | C95: TRANWAY | D95: FINSHORE SECURITIES PRIVATE LIMITED | E95: SELL | F95: 300,000 | G95: 9.81 | H95: BSE
A96: 2021-03-22 | B96: 541445 | C96: WAA | D96: RAM KUMAR SHEOKAND | E96: SELL | F96: 35,200 | G96: 94.72 | H96: BSE
A97: 2021-03-22 | B97: AAATECH | C97: AAA Technologies Limited | D97: SHASHANK PRAVINCHANDRA DOSHI | E97: BUY | F97: 198,000 | G97: 48.86 | H97: NSE
A98: 2021-03-22 | B98: AAATECH | C98: AAA Technologies Limited | D98: NNM SECURITIES PVT LTD | E98: BUY | F98: 3,000 | G98: 44.5 | H98: NSE
A99: 2021-03-22 | B99: ASLIND | C99: ASL Industries Limited | D99: MOHIT GOSWAMI | E99: BUY | F99: 300,000 | G99: 16 | H99: NSE
A100: 2021-03-22 | B100: BCP | C100: B.C. Power Controls Ltd | D100: CHANDRIKAJAYANTILALJAIN | E100: BUY | F100: 627,421 | G100: 3.52 | H100: NSE
A101: 2021-03-22 | B101: BCP | C101: B.C. Power Controls Ltd | D101: COMFORT COMMOTRADE PRIVATE LIMITED | E101: BUY | F101: 800,000 | G101: 3.6 | H101: NSE
A102: 2021-03-22 | B102: BCP | C102: B.C. Power Controls Ltd | D102: SHAH NIRAJ RAJNIKANT | E102: BUY | F102: 840,000 | G102: 3.57 | H102: NSE
A103: 2021-03-22 | B103: CMMIPL | C103: CMM Infraprojects Limited | D103: NAISHADH JAWAHAR PALEJA | E103: BUY | F103: 114,000 | G103: 4.6 | H103: NSE
A104: 2021-03-22 | B104: JAGSNPHARM | C104: Jagsonpal Pharma Ltd. | D104: ORION STOCKS LTD | E104: BUY | F104: 128,287 | G104: 78.94 | H104: NSE
A105: 2021-03-22 | B105: KOLTEPATIL | C105: Kolte - Patil Developers | D105: UNIFI CAPITAL PVT. LTD - ISF | E105: BUY | F105: 440,000 | G105: 230 | H105: NSE
A106: 2021-03-22 | B106: KOLTEPATIL | C106: Kolte - Patil Developers | D106: UNIFI CAPITAL PVT. LTD - BCAD | E106: BUY | F106: 849,229 | G106: 230 | H106: NSE
A107: 2021-03-22 | B107: MAJESCO | C107: Majesco Limited | D107: VINOD AGGARWAL (HUF) | E107: BUY | F107: 200,000 | G107: 66.55 | H107: NSE
A108: 2021-03-22 | B108: MAJESCO | C108: Majesco Limited | D108: SWETABEN HARDIK SHAH | E108: BUY | F108: 1,400,000 | G108: 66.55 | H108: NSE
A109: 2021-03-22 | B109: MAJESCO | C109: Majesco Limited | D109: URMILA DOSHI | E109: BUY | F109: 200,000 | G109: 66.55 | H109: NSE
A110: 2021-03-22 | B110: PAVNAIND | C110: Pavna Industries Limited | D110: PALAK JAIN | E110: BUY | F110: 43,200 | G110: 165.08 | H110: NSE
A111: 2021-03-22 | B111: PERFECT | C111: Perfect Infraengineer Ltd | D111: OLGA TRADING PRIVATE LIMITED | E111: BUY | F111: 96,000 | G111: 9.95 | H111: NSE
A112: 2021-03-22 | B112: PNC | C112: Pritish Nandy Comm. Ltd. | D112: NIMISH DEEPAK BROKER | E112: BUY | F112: 140,481 | G112: 31.35 | H112: NSE
A113: 2021-03-22 | B113: SICAL | C113: Sical Logistics Limited | D113: RAJTARU ENTERPRISES | E113: BUY | F113: 300,000 | G113: 10.5 | H113: NSE
A114: 2021-03-22 | B114: SOFTTECH | C114: Softtech Engineer Limited | D114: EAST INDIA UDYOG LTD | E114: BUY | F114: 65,600 | G114: 85.75 | H114: NSE
A115: 2021-03-22 | B115: SONAHISONA | C115: Sona Hi Sona Jewell G Ltd | D115: NNM SECURITIES PVT LTD | E115: BUY | F115: 10,000 | G115: 9.8 | H115: NSE
A116: 2021-03-22 | B116: SONAHISONA | C116: Sona Hi Sona Jewell G Ltd | D116: SHASHANK PRAVINCHANDRA DOSHI | E116: BUY | F116: 280,000 | G116: 12 | H116: NSE
A117: 2021-03-22 | B117: VERTOZ | C117: Vertoz Advertising Ltd | D117: OLGA TRADING PRIVATE LIMITED | E117: BUY | F117: 103,551 | G117: 271.05 | H117: NSE
A118: 2021-03-22 | B118: VIPCLOTHNG | C118: Vip Clothing Ltd. | D118: VT CAPITAL MARKET PVT LTD | E118: BUY | F118: 1,500,000 | G118: 14.15 | H118: NSE
A119: 2021-03-22 | B119: AAATECH | C119: AAA Technologies Limited | D119: NNM SECURITIES PVT LTD | E119: SELL | F119: 192,000 | G119: 48.87 | H119: NSE
A120: 2021-03-22 | B120: ASLIND | C120: ASL Industries Limited | D120: RAM KUMAR SHEOKAND | E120: SELL | F120: 160,000 | G120: 16 | H120: NSE
A121: 2021-03-22 | B121: BCP | C121: B.C. Power Controls Ltd | D121: CHANDRIKAJAYANTILALJAIN | E121: SELL | F121: 237,421 | G121: 3.58 | H121: NSE
A122: 2021-03-22 | B122: BCP | C122: B.C. Power Controls Ltd | D122: SALONI JAIN | E122: SELL | F122: 386,478 | G122: 3.6 | H122: NSE
A123: 2021-03-22 | B123: BCP | C123: B.C. Power Controls Ltd | D123: SHAH AMAR MUKESHKUMAR HUF | E123: SELL | F123: 300,000 | G123: 3.38 | H123: NSE
A124: 2021-03-22 | B124: BCP | C124: B.C. Power Controls Ltd | D124: COMFORT COMMOTRADE PRIVATE LIMITED | E124: SELL | F124: 63,488 | G124: 3.6 | H124: NSE
A125: 2021-03-22 | B125: CMMIPL | C125: CMM Infraprojects Limited | D125: NITIKET INVESTMENTS PRIVATE LIMITED | E125: SELL | F125: 114,000 | G125: 4.6 | H125: NSE
A126: 2021-03-22 | B126: GOKUL | C126: Gokul Refoils and Solvent | D126: KANUBHAI JIVATRAM THAKKAR | E126: SELL | F126: 500,000 | G126: 20.2 | H126: NSE
A127: 2021-03-22 | B127: JAGSNPHARM | C127: Jagsonpal Pharma Ltd. | D127: ORION STOCKS LTD | E127: SELL | F127: 165,274 | G127: 78.85 | H127: NSE
A128: 2021-03-22 | B128: KOLTEPATIL | C128: Kolte - Patil Developers | D128: GOLDMAN SACHS INDIA FUND LIMITED | E128: SELL | F128: 1,271,408 | G128: 230.01 | H128: NSE
A129: 2021-03-22 | B129: PNC | C129: Pritish Nandy Comm. Ltd. | D129: ALPHA LEON ENTERPRISES LLP | E129: SELL | F129: 79,766 | G129: 31.35 | H129: NSE
A130: 2021-03-22 | B130: SANWARIA | C130: Sanwaria Consumer Ltd. | D130: SHRINATHJI DALL MILLS | E130: SELL | F130: 3,982,012 | G130: 0.65 | H130: NSE
A131: 2021-03-22 | B131: SICAL | C131: Sical Logistics Limited | D131: MC JAIN INFOSERVICES PRIVATE LIMITED | E131: SELL | F131: 300,000 | G131: 10.5 | H131: NSE
A132: 2021-03-22 | B132: SOFTTECH | C132: Softtech Engineer Limited | D132: BHUTADA RADHA SUNIL | E132: SELL | F132: 65,600 | G132: 85.54 | H132: NSE
A133: 2021-03-22 | B133: SONAHISONA | C133: Sona Hi Sona Jewell G Ltd | D133: NNM SECURITIES PVT LTD | E133: SELL | F133: 290,000 | G133: 11.93 | H133: NSE
A134: 2021-03-22 | B134: UCL | C134: Ushanti Colour Chem Ltd | D134: SHAH PINESH VAGHJIBHAI | E134: SELL | F134: 44,000 | G134: 31 | H134: NSE
A135: 2021-03-22 | B135: VERTOZ | C135: Vertoz Advertising Ltd | D135: OLGA TRADING PRIVATE LIMITED | E135: SELL | F135: 103,551 | G135: 268.09 | H135: NSE
A136: 2021-03-22 | B136: VIPCLOTHNG | C136: Vip Clothing Ltd. | D136: SUBHKAM PROPERTIES LLP | E136: SELL | F136: 1,500,000 | G136: 14.15 | H136: NSE

Sheet Call Tracker (Equity & F&O)
M5: Back To Main Page
A6: Retail Research Technical Calls & Fundamental Performance Report for the month of March-2021
M7: =Main!B10 -> 2021-03-23
B8: Positional Call
A9: Sr.no | B9: Date | D9: Company | E9: Rec | F9: Rec Price | G9: Stop Loss*** | H9: Call Closed At | I9: Target | J9: Remark | K9: Profit / Loss per Share | L9: All charges | M9: Net Gain / Loss % | N9: Status | O9: Closed Date
A10: 1 | B10: 2021-02-02 | D10: HINDUNILVR | E10: Buy | F10: 2240 | G10: 2090 | H10: 2350 | I10: 2500-2550 | J10: Part Profit of Rs.110/- | K10: =H10-F10 -> 110 | L10: =(F10*-0.8)/100 -> -17.92 | M10: =(K10+L10)/F10 -> 4.11% | N10: Successful | O10: 2021-03-22 | R10: H
A11: 2 | B11: 2021-02-09 | D11: PIIND | E11: Buy | F11: 2205 | G11: 2070 | H11: 2305 | I11: 2400-2500 | J11: Part Profit of Rs.100/- | K11: =H11-F11 -> 100 | L11: =(F11*-0.8)/100 -> -17.64 | M11: =(K11+L11)/F11 -> 3.74% | N11: Successful | O11: 2021-03-02 | R11: H
A12: 3 | B12: 2021-02-26 | D12: IOC | E12: Buy | F12: 98.5 | G12: 91.5 | H12: 103 | I12: 110-115 | J12: Part Profit of Rs.4.50/- | K12: =H12-F12 -> 4.5 | L12: =(F12*-0.8)/100 -> -0.79 | M12: =(K12+L12)/F12 -> 3.77% | N12: Successful | O12: 2021-03-02 | R12: N
A13: 4 | B13: 2021-02-26 | D13: GMMPFAUDLR | E13: Buy | F13: 4110 | G13: 3800 | H13: 4415 | I13: 4600-4700 | J13: Profit of Rs.305/- | K13: =H13-F13 -> 305 | L13: =(F13*-0.8)/100 -> -32.88 | M13: =(K13+L13)/F13 -> 6.62% | N13: Successful | O13: 2021-03-01 | R13: N
A14: 5 | B14: 2021-03-04 | D14: CSBBANK | E14: Buy | F14: 230.5 | G14: 218 | H14: 255 | I14: 250-255 | J14: Profit of Rs.24.5/- | K14: 24.5 | L14: =(F14*-0.8)/100 -> -1.84 | M14: =(K14+L14)/F14 -> 9.83% | N14: Successful | O14: 2021-03-05 | R14: H
A15: 6 | B15: 2021-03-04 | D15: GODREJAGRO | E15: Buy | F15: 490-495 | G15: 460 | I15: 550 | J15: Open | R15: N
A16: 7 | B16: 2021-03-09 | D16: ASTERDM | E16: Buy | F16: 141-143 | G16: 134.5 | I16: 154-158 | J16: Open | R16: H
A17: 8 | B17: 2021-03-18 | D17: IRCTC | E17: Buy | F17: 1785 | G17: 1670 | H17: 1872.5 | I17: 2000 | J17: Part Profit of Rs.87.50/- | K17: =H17-F17 -> 87.5 | L17: =(F17*-0.8)/100 -> -14.28 | M17: =(K17+L17)/F17 -> 4.10% | N17: Successful | O17: 2021-03-19 | R17: H
A18: 9 | B18: 2021-03-19 | D18: SUDARSCHEM | E18: Buy | F18: 510 | G18: 477 | H18: 535.5 | I18: 570-580 | J18: Part Profit of Rs.25.50/- | K18: =H18-F18 -> 25.5 | L18: =(F18*-0.8)/100 -> -4.08 | M18: =(K18+L18)/F18 -> 4.20% | N18: Successful | O18: 2021-03-22 | R18: H
A19: 10 | B19: 2021-03-19 | D19: GODREJCP | E19: Buy | F19: 655 | G19: 615 | H19: 685 | I19: 730-750 | J19: Part Profit of Rs.30/- | K19: =H19-F19 -> 30 | L19: =(F19*-0.8)/100 -> -5.24 | M19: =(K19+L19)/F19 -> 3.78% | N19: Successful | O19: 2021-03-22 | R19: N
A20: 11 | B20: 2021-03-19 | D20: HDFCAMC | E20: Buy | F20: 2840-2860 | G20: 2650 | I20: 3050-3250 | J20: Open | R20: N
A21: 12 | B21: 2021-03-19 | D21: SRF | E21: Buy | F21: 5250-5300 | G21: 4950 | I21: 5700-5800 | J21: Open | R21: N
A22: 13 | B22: 2021-03-22 | D22: WHIRLPOOL | E22: Buy | F22: 2310-2330 | G22: 2170 | I22: 2500-2600 | J22: Open | R22: H
A23: 14 | B23: 2021-03-22 | D23: RELIANCE | E23: Buy | F23: 2040-2060 | G23: 1940 | I23: 2300-2400 | J23: Open | R23: H
A24: 14 | B24: 2021-03-22 | D24: IGL | E24: Buy | F24: 505-509 | G24: 478 | I24: 545-564 | J24: Open | R24: H
A33: CLBS = Closing Basis ***
A34: Dividend adjusted <> | F34: Reinitiated $
A35: Part book {} | F35: Revised stoploss #
B37: Momentum Call
A38: Sr.no | B38: Date | D38: Company | E38: Rec | F38: Rec Price | G38: Stop Loss | H38: Call Closed At | I38: Target | J38: Remark | K38: Profit / Loss per Share/Lot | L38: All charges | M38: Net Gain / Loss % | N38: Status | O38: Closed Date
A39: 1 | B39: 2021-02-25 | D39: CADILAHC | E39: Buy | F39: 440 | G39: 427 | H39: 452 | I39: 465 | J39: Profit of Rs.12/- | K39: =H39-F39 -> 12 | L39: =(F39*-0.7)/100 -> -3.08 | M39: =(K39+L39)/F39 -> 2.03% | N39: Successful | O39: 2021-03-04 | R39: N
A40: 2 | B40: 2021-02-26 | D40: LTI | E40: Buy | F40: 3630 | G40: 3540 | H40: 3745 | I40: 3780-3820 | J40: Profit of Rs.115/- | K40: =H40-F40 -> 115 | L40: =(F40*-0.7)/100 -> -25.41 | M40: =(K40+L40)/F40 -> 2.47% | N40: Successful | O40: 2021-03-02 | R40: H
A41: 3 | B41: 2021-02-26 | D41: BHARTIARTL | E41: Buy | F41: 567 | G41: 549 | H41: 549 | I41: 590-600 | J41: Loss of Rs.18/- | K41: =H41-F41 -> -18 | L41: =(F41*-0.7)/100 -> -3.97 | M41: =(K41+L41)/F41 -> -3.87% | N41: Unsuccessful | O41: 2021-03-01 | R41: H
A42: 4 | B42: 2021-02-01 | D42: PERSISTENT | E42: Buy | F42: 1640 | G42: 1590 | H42: 1687 | I42: 1720-1750 | J42: Profit of Rs.47/- | K42: =H42-F42 -> 47 | L42: =(F42*-0.07)/100 -> -1.15 | M42: =(K42+L42)/F42 -> 2.80% | N42: Successful | O42: 2021-03-01 | R42: N
A43: 5 | B43: 2021-02-01 | D43: ALKEM | E43: Buy | F43: 2722.5 | G43: 2640 | H43: 2775.5 | I43: 2850 | J43: Profit of Rs.53/- | K43: =H43-F43 -> 53 | L43: =(F43*-0.07)/100 -> -1.91 | M43: =(K43+L43)/F43 -> 1.88% | N43: Successful | O43: 2021-03-01 | R43: N
A44: 6 | B44: 2021-02-02 | D44: APLLTD | E44: Buy | F44: 928 | G44: 900 | H44: 900 | I44: 980 | J44: Loss of Rs.28/- | K44: -28 | L44: =(F44*-0.7)/100 -> -6.50 | M44: -3.72% | N44: Unsuccessful | O44: 2021-03-18 | R44: N
A45: 7 | B45: 2021-02-03 | D45: CHAMBLFERT | E45: Buy | F45: 249.5 | G45: 242 | H45: 255.5 | I45: 270 | J45: Profit of Rs.6/- | K45: =H45-F45 -> 6 | L45: =(F45*-0.07)/100 -> -0.17 | M45: =(K45+L45)/F45 -> 2.33% | N45: Successful | O45: 2021-03-03 | R45: N
A46: 8 | B46: 2021-02-03 | D46: GUJGASLTD | E46: Buy | F46: 539.5 | G46: 521 | H46: 553.5 | I46: 570 | J46: Profit of Rs.14/- | K46: =H46-F46 -> 14 | L46: =(F46*-0.07)/100 -> -0.38 | M46: =(K46+L46)/F46 -> 2.52% | N46: Successful | O46: 2021-03-03 | R46: N
A47: 9 | B47: 2021-02-03 | D47: JAICORPLTD | E47: Buy | F47: 102.25 | G47: 99 | H47: 104.55 | I47: 107-110 | J47: Profit of Rs.2.3/- | K47: =H47-F47 -> 2.3 | L47: =(F47*-0.07)/100 -> -0.07 | M47: =(K47+L47)/F47 -> 2.18% | N47: Successful | O47: 2021-03-03 | R47: H
A48: 10 | B48: 2021-03-04 | D48: UPL | E48: Buy | F48: 602 | G48: 584 | H48: 613.5 | I48: 625-640 | J48: Profit of Rs.11.5/- | K48: =H48-F48 -> 11.5 | L48: =(F48*-0.07)/100 -> -0.42 | M48: =(K48+L48)/F48 -> 1.84% | N48: Successful | O48: 2021-03-04 | R48: H
A49: 11 | B49: 2021-03-04 | D49: RELIANCE | E49: Buy | F49: 2162.5 | G49: 2095 | H49: 2220 | I49: 2250-2270 | J49: Profit of Rs.57.5/- | K49: 57.5 | L49: =(F49*-0.7)/100 -> -15.14 | M49: 1.96% | N49: Successful | O49: 2021-03-08 | R49: H
A50: 12 | B50: 2021-03-05 | D50: CHAMBLFERT | E50: Buy | F50: 245.5 | G50: 238 | H50: 238 | I50: 260 | J50: Loss of Rs.7.5/- | K50: =H50-F50 -> -7.5 | L50: =(F50*-0.07)/100 -> -0.17 | M50: =(K50+L50)/F50 -> -3.12% | N50: Unsuccessful | O50: 2021-03-05 | R50: N
A51: 13 | B51: 2021-03-05 | D51: AMBUJACEM | E51: Buy | F51: 295 | G51: 288 | H51: 287 | I51: 305-310 | J51: Loss of Rs.8/- | K51: =H51-F51 -> -8 | L51: =(F51*-0.07)/100 -> -0.21 | M51: =(K51+L51)/F51 -> -2.78% | N51: Unsuccessful | O51: 2021-03-05 | R51: H
A52: 14 | B52: 2021-03-05 | D52: SBIN | E52: Sell | F52: 385 | G52: 396 | H52: 379 | I52: 370-365 | J52: Profit of Rs.6/- | K52: =F52-H52 -> 6 | L52: =(F52*-0.07)/100 -> -0.27 | M52: 1.49% | N52: Successful | O52: 2021-03-05 | R52: H
A53: 15 | B53: 2021-03-08 | D53: HDFC | E53: Buy | F53: 2542.5 | G53: 2470 | H53: 2662.5 | I53: 2650-2670 | J53: Profit of Rs.120/- | K53: =H53-F53 -> 120 | L53: =(F53*-0.7)/100 -> -17.80 | M53: 4.02% | N53: Successful | O53: 2021-03-12 | R53: H
A54: 16 | B54: 2021-03-08 | D54: ALKEM | E54: Buy | F54: 2775 | G54: 2685 | H54: 2685 | I54: 2900-2930 | J54: Loss of Rs.90/- | K54: -90 | L54: -19.43 | M54: -3.94% | N54: Unsuccessful | O54: 2021-03-15 | R54: H
A55: 17 | B55: 2021-03-08 | D55: JAICORPLTD | E55: Buy | F55: 101.3 | G55: 98 | H55: 104.5 | I55: 105-107 | J55: Profit of Rs.3.2/- | K55: =H55-F55 -> 3.2 | L55: =(F55*-0.07)/100 -> -0.07 | M55: =(K55+L55)/F55 -> 3.09% | N55: Successful | O55: 2021-03-08 | R55: H
A56: 18 | B56: 2021-03-09 | D56: JAICORPLTD | E56: Buy | F56: 102.3 | G56: 98.5 | H56: 104.25 | I56: 105-107 | J56: Profit of Rs.1.95/- | K56: =H56-F56 -> 1.95 | L56: =(F56*-0.07)/100 -> -0.07 | M56: =(K56+L56)/F56 -> 1.84% | N56: Successful | O56: 2021-03-09 | R56: H
A57: 19 | B57: 2021-03-09 | D57: JAICORPLTD | E57: Buy | F57: 101.5 | G57: 98.5 | H57: 98.5 | I57: 105-107 | J57: Loss of Rs.3/- | K57: -3 | L57: =(F57*-0.7)/100 -> -0.71 | M57: -3.66% | N57: Unsuccessful | O57: 2021-03-12 | R57: H
A58: 20 | B58: 2021-03-10 | D58: NMDC | E58: Sell | F58: 132.75 | G58: 137 | H58: 130.25 | I58: 125 | J58: Profit of Rs.2.50/- | K58: =F58-H58 -> 2.5 | L58: =(F58*-0.07)/100 -> -0.09 | M58: =(K58+L58)/F58 -> 1.81% | N58: Successful | O58: 2021-03-10 | R58: H
A59: 21 | B59: 2021-03-10 | D59: SBIN | E59: Sell | F59: 388 | G59: 398 | H59: 378.5 | I59: 370-365 | J59: Profit of Rs.9.5/- | K59: =F59-H59 -> 9.5 | L59: =(F59*-0.7)/100 -> -2.72 | M59: 1.75% | N59: Successful | O59: 2021-03-12 | R59: H
A60: 22 | B60: 2021-03-12 | D60: WELCORP | E60: Buy | F60: 135.5 | G60: 131.5 | H60: 131.5 | I60: 145 | J60: Loss of Rs.4/- | K60: =H60-F60 -> -4 | L60: =(F60*-0.7)/100 -> -0.95 | M60: -3.65% | N60: Unsuccessful | O60: 2021-03-15 | R60: N
A61: 23 | B61: 2021-03-12 | D61: WELSPUNIND | E61: Buy | F61: 78.6 | G61: 75.8 | H61: 80.45 | I61: 82-83 | J61: Profit of Rs.1.85/- | K61: =H61-F61 -> 1.85 | L61: =(F61*-0.07)/100 -> -0.06 | M61: =(K61+L61)/F61 -> 2.28% | N61: Successful | O61: 2021-03-12 | R61: H
A62: 24 | B62: 2021-03-16 | D62: CIPLA | E62: Buy | F62: 800 | G62: 780 | H62: 774 | I62: 830-840 | J62: Loss of Rs.26/- | K62: -26 | L62: =(F62*-0.7)/100 -> -5.60 | M62: -3.95% | N62: Unsuccessful | O62: 2021-03-18 | R62: H
A63: 25 | B63: 2021-03-17 | D63: ICICIBANK | E63: Buy | F63: 593.5 | G63: 579 | H63: 572.5 | I63: 630-635 | J63: Loss of Rs.21/- | K63: =H63-F63 -> -21 | L63: =(F63*-0.07)/100 -> -0.42 | M63: =(K63+L63)/F63 -> -3.61% | N63: Unsuccessful | O63: 2021-03-19 | R63: H
A64: 26 | B64: 2021-03-18 | D64: PETRONET | E64: Sell | F64: 230 | G64: 236 | H64: 225.75 | I64: 220-218 | J64: Profit of Rs.4.25/- | K64: =F64-H64 -> 4.25 | L64: =(F64*-0.07)/100 -> -0.16 | M64: =(K64+L64)/F64 -> 1.78% | N64: Successful | O64: 2021-03-18 | R64: H
A65: 27 | B65: 2021-03-18 | D65: TVSMOTOR | E65: Sell | F65: 582.5 | G65: 601 | H65: 571.5 | I65: 550-545 | J65: Profit of Rs.11/- | K65: =F65-H65 -> 11 | L65: =(F65*-0.07)/100 -> -0.41 | M65: =(K65+L65)/F65 -> 1.82% | N65: Successful | O65: 2021-03-18 | R65: H
A66: 28 | B66: 2021-03-18 | D66: WELSPUNIND | E66: Buy | F66: 79.7 | G66: 77 | H66: 77 | I66: 85 | J66: Loss of Rs.2.7/- | K66: =H66-F66 -> -2.7 | L66: =(F66*-0.07)/100 -> -0.06 | M66: -3.46% | N66: Unsuccessful | O66: 2021-03-18 | R66: H
A67: 29 | B67: 2021-03-22 | D67: HDFCLIFE | E67: Buy | F67: 687-690 | G67: 668 | I67: 715-725 | J67: Open | R67: H
A68: 30 | B68: 2021-03-22 | D68: PETRONET | E68: Sell | F68: 229-231 | G68: 236 | I68: 220-218 | J68: Open | R68: H
A69: 31 | B69: 2021-03-22 | D69: ICICIBANK | E69: Buy | F69: 581-583 | G69: 567 | I69: 600-610 | J69: Open | R69: H
A70: 32 | B70: 2021-03-22 | D70: MANAPPURAM | E70: Buy | F70: 156-156.80 | G70: 152 | I70: 164-167 | J70: Open | R70: H
A76: CLBS = Closing Basis *** | H76: *
A77: Dividend adjusted <> | F77: Reinitiated $
F78: Revised stoploss #
A80: Master Trade High Risk
A81: Sr.no | B81: Date | D81: Company | E81: Rec | F81: Rec Price | G81: Stop Loss | H81: Call Closed At | I81: Target | J81: Remark | K81: Profit / Loss per share | L81: All charges | M81: Gain / Loss per Lot | N81: Lot | O81: Status | P81: Closed Date
A82: 1 | B82: 2021-02-25 | D82: DRREDDY MAR FUT | E82: Buy | F82: 4530 | G82: 4425 | H82: 4430 | I82: 4730 | J82: Loss of Rs.100/- | K82: =H82-F82 -> -100 | L82: =(H82*N82)*0.035% -> 193.81 | M82: =(K82*N82)-L82 -> -12693.8 | N82: 125 | O82: Unsuccessful | P82: 2021-03-01 | R82: N
A83: 2 | B83: 2021-02-26 | D83: ESCORTS MAR FUT | E83: Buy | F83: 1313 | G83: 1287 | H83: 1342 | I83: 1360 | J83: Profit of Rs.29/- | K83: =H83-F83 -> 29 | L83: =(H83*N83)*0.035% -> 258.34 | M83: =(K83*N83)-L83 -> 15691.7 | N83: 550 | O83: Successful | P83: 2021-03-01 | R83: N
A84: 3 | B84: 2021-03-01 | D84: NIFTY MAR FUT | E84: Sell | F84: 14705 | G84: 14900 | H84: 14900 | I84: 14500 | J84: Loss of Rs.110/- | K84: =F84-G84 -> -195.00 | L84: 391.13 | M84: -8741 | N84: 75 | O84: Unsuccessful | P84: 2021-03-02 | R84: H
D85: NIFTY 14600 PE 4-MAR | E85: Sell | F85: 112.5 | H85: 27.5 | K85: =F85-H85 -> 85.00 | L85: 100.00 | R85: H
A86: 4 | B86: 2021-03-01 | D86: AXISBANK MAR FUT | E86: Sell | F86: 736 | G86: 746 | H86: 729 | I86: 715 | J86: Profit of Rs.7/- | K86: =F86-H86 -> 7 | L86: =(H86*N86)*0.035% -> 306.18 | M86: =(K86*N86)-L86 -> 8093.8 | N86: 1200 | O86: Successful | P86: 2021-03-01 | R86: H
A87: 5 | B87: 2021-03-01 | D87: COLPAL MAR FUT | E87: Buy | F87: 1576.5 | G87: 1559 | H87: 1589 | I87: 1610 | J87: Profit of Rs.12.5/- | K87: =H87-F87 -> 12.5 | L87: 389.31 | M87: 8360.7 | N87: 700 | O87: Successful | P87: 2021-03-01 | R87: N
A88: 6 | B88: 2021-03-01 | D88: PIIND MAR FUT | E88: Buy | F88: 2190 | G88: 2140 | H88: 2224 | I88: 2290 | J88: Profit of Rs.34/- | K88: 34 | L88: 194.60 | M88: 8305.4 | N88: 250 | O88: Successful | P88: 2021-03-02 | R88: N
A89: 7 | B89: 2021-03-02 | D89: CONCOR MAR FUT | E89: Buy | F89: 577.5 | G89: 570 | H89: 585.5 | I89: 598 | J89: Profit of Rs.8/- | K89: =H89-F89 -> 8 | L89: =(H89*N89)*0.035% -> 320.30 | M89: =(K89*N89)-L89 -> 12183.7 | N89: 1563 | O89: Successful | P89: 2021-03-02 | R89: N
A90: 8 | B90: 2021-03-02 | D90: SIEMENS MAR FUT | E90: Buy | F90: 1918 | G90: 1892 | H90: 1935.5 | I90: 1960 | J90: Profit of Rs.17.5/- | K90: =H90-F90 -> 17.5 | L90: =(H90*N90)*0.035% -> 372.58 | M90: =(K90*N90)-L90 -> 9252.4 | N90: 550 | O90: Successful | P90: 2021-03-02 | R90: N
A91: 9 | B91: 2021-03-03 | D91: NIFTY MAR FUT | E91: Sell | F91: 15075 | G91: 15180 | H91: 15180 | I91: 14850 | J91: Loss of Rs. 105/- | K91: =F91-H91 -> -105 | L91: =(H91*N91)*0.035% -> 398.48 | M91: =(K91*N91)-L91 -> -8273.5 | N91: 75 | O91: Unsuccessful | P91: 2021-03-03 | R91: H
A92: 10 | B92: 2021-03-03 | D92: AXISBANK MAR FUT | E92: Sell | F92: 744 | G92: 755 | H92: 754 | I92: 725 | J92: Loss of Rs. 10/- | K92: =F92-H92 -> -10 | L92: =(H92*N92)*0.035% -> 316.68 | M92: =(K92*N92)-L92 -> -12316.7 | N92: 1200 | O92: Unsuccessful | P92: 2021-03-03 | R92: H
A93: 11 | B93: 2021-03-05 | D93: MARUTI MAR FUT | E93: Sell | F93: 7175 | G93: 7280 | H93: 7280 | I93: 6950 | J93: Loss of Rs. 105/- | K93: =F93-H93 -> -105 | L93: =(H93*N93)*0.035% -> 254.80 | M93: =(K93*N93)-L93 -> -10754.8 | N93: 100 | O93: Unsuccessful | P93: 2021-03-05 | R93: H
A94: 12 | B94: 2021-03-08 | D94: COLPAL MAR FUT | E94: Buy | F94: 1635 | G94: 1617 | H94: 1648 | I94: 1665 | J94: Profit of Rs.13/- | K94: =H94-F94 -> 13 | L94: 403.76 | M94: 8696.2 | N94: 700 | O94: Successful | P94: 2021-03-08 | R94: N
A95: 13 | B95: 2021-03-08 | D95: SIEMENS MAR FUT | E95: Buy | F95: 1905 | G95: 1883 | H95: 1926.5 | I95: 1950 | J95: Profit of Rs.21.5/- | K95: =H95-F95 -> 21.5 | L95: =(H95*N95)*0.035% -> 370.85 | M95: =(K95*N95)-L95 -> 11454.1 | N95: 550 | O95: Successful | P95: 2021-03-08 | R95: N
A96: 14 | B96: 2021-03-08 | D96: GRANULES MAR FUT | E96: Buy | F96: 348.5 | G96: 340 | H96: 353.5 | I96: 365 | J96: Profit of Rs.5/- | K96: =H96-F96 -> 5 | L96: =(H96*N96)*0.035% -> 191.77 | M96: =(K96*N96)-L96 -> 7558.2 | N96: 1550 | O96: Successful | P96: 2021-03-08 | R96: H
A97: 15 | B97: 2021-03-08 | D97: AMARAJABAT MAR FUT | E97: Buy | F97: 910 | G97: 898 | H97: 898 | I97: 930 | J97: Loss of Rs.12/- | K97: -12 | L97: 314.30 | M97: -12314.3 | N97: 1000 | O97: Unsuccessful | P97: 2021-03-09 | R97: N
A98: 16 | B98: 2021-03-09 | D98: GRANULES MAR FUT | E98: Buy | F98: 347.5 | G98: 339.5 | H98: 339.5 | I98: 365 | J98: Loss of Rs.8/- | K98: =H98-F98 -> -8 | L98: =(H98*N98)*0.035% -> 184.18 | M98: =(K98*N98)-L98 -> -12584.2 | N98: 1550 | O98: Unsuccessful | P98: 2021-03-09 | R98: H
A99: 17 | B99: 2021-03-09 | D99: COLPAL MAR FUT | E99: Buy | F99: 1631.5 | G99: 1614 | H99: 1644 | I99: 1665 | J99: Profit of Rs.12.50/- | K99: 12.5 | L99: 402.78 | M99: 8347.2 | N99: 700 | O99: Successful | P99: 2021-03-09 | R99: N
A100: 18 | B100: 2021-03-09 | D100: SIEMENS MAR FUT | E100: Buy | F100: 1902 | G100: 1877 | H100: 1922.5 | I100: 1950 | J100: Profit of Rs.20.50/- | K100: =H100-F100 -> 20.5 | L100: =(H100*N100)*0.035% -> 370.08 | M100: =(K100*N100)-L100 -> 10904.9 | N100: 550 | O100: Successful | P100: 2021-03-10 | R100: N
A101: 19 | B101: 2021-03-10 | D101: AUROPHARMA MAR FUT | E101: Buy | F101: 860 | G101: 840 | H101: 840 | I101: 900 | J101: Loss of Rs.20/- | K101: -20 | L101: 191.10 | M101: -13191.1 | N101: 650 | O101: Unsuccessful | P101: 2021-03-15 | R101: N
A102: 20 | B102: 2021-03-10 | D102: DRREDDY MAR FUT | E102: Buy | F102: 4505 | G102: 4395 | H102: 4405 | I102: 4700 | J102: Loss of Rs.100/- | K102: =H102-F102 -> -100 | L102: =(H102*N102)*0.035% -> 192.72 | M102: =(K102*N102)-L102 -> -12692.7 | N102: 125 | O102: Unsuccessful | P102: 2021-03-15 | R102: H
A103: 21 | B103: 2021-03-10 | D103: INFY MAR FUT | E103: Buy | F103: 1371 | G103: 1349 | H103: 1390.5 | I103: 1410 | J103: Profit of Rs.19.50/- | K103: =H103-F103 -> 19.5 | L103: =(H103*N103)*0.035% -> 292.01 | M103: =(K103*N103)-L103 -> 11408.0 | N103: 600 | O103: Successful | P103: 2021-03-12 | R103: H
A104: 22 | B104: 2021-03-12 | D104: COLPAL MAR FUT | E104: Buy | F104: 1633.5 | G104: 1615 | H104: 1615 | I104: 1665 | J104: Loss of Rs.18.5/- | K104: -18.5 | L104: 395.68 | M104: -13345.7 | N104: 700 | O104: Unsuccessful | P104: 2021-03-15 | R104: N
A105: 23 | B105: 2021-03-12 | D105: BRITANNIA MAR FUT | E105: Buy | F105: 3450 | G105: 3385 | H105: 3487.5 | I105: 3550-3570 | J105: Profit of Rs.37.50/- | K105: =H105-F105 -> 37.5 | L105: =(H105*N105)*0.035% -> 244.13 | M105: =(K105*N105)-L105 -> 7255.9 | N105: 200 | O105: Successful | P105: 2021-03-16 | R105: H
A106: 24 | B106: 2021-03-12 | D106: SIEMENS MAR FUT | E106: Buy | F106: 1920 | G106: 1895 | H106: 1895 | I106: 1970 | J106: Loss of Rs.25/- | K106: =H106-F106 -> -25 | L106: =(H106*N106)*0.035% -> 364.79 | M106: =(K106*N106)-L106 -> -14114.8 | N106: 550 | O106: Unsuccessful | P106: 2021-03-15 | R106: N
A107: 25 | B107: 2021-03-16 | D107: SBIN MAR FUT | E107: Buy | F107: 382.25 | G107: 377 | H107: 378 | I107: 390 | J107: Loss of Rs.4.25/- | K107: =H107-F107 -> -4.25 | L107: =(H107*N107)*0.035% -> 396.90 | M107: =(K107*N107)-L107 -> -13146.9 | N107: 3000 | O107: Unsuccessful | P107: 2021-03-16 | R107: H
A108: 26 | B108: 2021-03-16 | D108: ICICIBANK MAR FUT | E108: Buy | F108: 607 | G108: 597 | H108: 597.5 | I108: 620-625 | J108: Loss of Rs.9.5/- | K108: =H108-F108 -> -9.5 | L108: =(H108*N108)*0.035% -> 282.32 | M108: =(K108*N108)-L108 -> -13107.3 | N108: 1350 | O108: Unsuccessful | P108: 2021-03-16 | R108: H
A109: 27 | B109: 2021-03-16 | D109: SIEMENS MAR FUT | E109: Buy | F109: 1863 | G109: 1838 | H109: 1877.5 | I109: 1900-1910 | J109: Profit of Rs.14.50/- | K109: 14.5 | L109: 361.42 | M109: 7613.6 | N109: 550 | O109: Successful | P109: 2021-03-16 | R109: N
A110: 28 | B110: 2021-03-16 | D110: PIIND MAR FUT | E110: Buy | F110: 2245 | G110: 2190 | H110: 2190 | I110: 2350 | J110: Loss of Rs.55/- | K110: =H110-F110 -> -55 | L110: =(H110*N110)*0.035% -> 191.63 | M110: =(K110*N110)-L110 -> -13941.6 | N110: 250 | O110: Unsuccessful | P110: 2021-03-18 | R110: N
A111: 29 | B111: 2021-03-16 | D111: AXISBANK MAR FUT | E111: Buy | F111: 743 | G111: 732 | H111: 733 | I111: 764 | J111: Loss of Rs.10/- | K111: =H111-F111 -> -10 | L111: =(H111*N111)*0.035% -> 307.86 | M111: =(K111*N111)-L111 -> -12307.9 | N111: 1200 | O111: Unsuccessful | P111: 2021-03-17 | R111: N
A112: 30 | B112: 2021-03-17 | D112: BRITANNIA MAR FUT | E112: Buy | F112: 3452.5 | G112: 3385 | H112: 3490 | I112: 3550-3570 | J112: Profit of Rs.37.50/- | K112: 37.5 | L112: 244.30 | M112: 7255.7 | N112: 200 | O112: Successful | P112: 2021-03-17 | R112: H
A113: 31 | B113: 2021-03-17 | D113: NIFTY MAR FUT | E113: Buy | F113: 14860 | G113: 14750 | H113: 14770 | I113: 15000-15050 | J113: Loss of Rs.90/- | K113: =H113-F113 -> -90 | L113: =(H113*N113)*0.035% -> 387.71 | M113: =(K113*N113)-L113 -> -7137.7 | N113: 75 | O113: Unsuccessful | P113: 2021-03-17 | R113: H
A114: 32 | B114: 2021-03-18 | D114: NIFTY MAR FUT | E114: Sell | F114: 14890 | G114: 15030 | H114: 14835 | I114: 14700 | J114: Profit of Rs. 55/- | K114: =F114-H114 -> 55 | L114: 389.42 | M114: 3735.6 | N114: 75 | O114: Successful | P114: 2021-03-18 | R114: H
A115: 33 | B115: 2021-03-18 | D115: BRITANNIA MAR FUT | E115: Buy | F115: 3446.5 | G115: 3385 | H115: 3481.5 | I115: 3550-3570 | J115: Profit of Rs.35/- | K115: =H115-F115 -> 35 | L115: 243.71 | M115: 6756.3 | N115: 200 | O115: Successful | P115: 2021-03-19 | R115: H
A116: 34 | B116: 2021-03-18 | D116: HDFCBANK MAR FUT | E116: Sell | F116: 1517 | G116: 1538 | H116: 1503 | I116: 1470 | J116: Profit of Rs.14/- | K116: =F116-H116 -> 14 | L116: =(H116*N116)*0.035% -> 289.33 | M116: =(K116*N116)-L116 -> 7410.7 | N116: 550 | O116: Successful | P116: 2021-03-18 | R116: H
A117: 35 | B117: 2021-03-19 | D117: COLPAL APR FUT | E117: Buy | F117: 1587 | G117: 1570 | H117: 1570 | I117: 1625 | J117: Loss of Rs.17/- | K117: =H117-F117 -> -17 | L117: 384.65 | M117: -12284.7 | N117: 700 | O117: Unsuccessful | P117: 2021-03-22 | R117: N
A123: Master Trade Medium Risk
A124: Sr.no | B124: Date | D124: Company | E124: Rec | F124: Rec Price | G124: Stop Loss | H124: Call Closed At | I124: Target | J124: Remark | K124: Profit/ Loss per lot | L124: All charges | M124: Gain / Loss per Lot | N124: Lot | O124: Status | P124: Closed Date
A125: 1 | B125: 2021-03-01 | D125: BANKNIFTY 35000 PE 4-MAR | E125: Buy | F125: 350 | G125: 190 | H125: 470 | I125: 700 | J125: Profit of Rs.120/- | K125: =H125-F125 -> 120 | L125: 100 | M125: =(K125*N125)-L125 -> 2900.0 | N125: 25 | O125: Successful | P125: 2021-03-01 | R125: H
A126: 2 | B126: 2021-03-01 | D126: BANKNIFTY 35000 PE 4-MAR | E126: Buy | F126: 340 | G126: 190 | H126: 430 | I126: 700 | J126: Profit of Rs.90/- | K126: =H126-F126 -> 90 | L126: 100 | M126: =(K126*N126)-L126 -> 2150.0 | N126: 25 | O126: Successful | P126: 2021-03-01 | R126: H
A127: 3 | B127: 2021-03-02 | D127: BANKNIFTY 35400 PE 4-MAR | E127: Buy | F127: 320 | G127: 170 | H127: 405 | I127: 700 | J127: Profit of Rs.85/- | K127: =H127-F127 -> 85 | L127: 100 | M127: =(K127*N127)-L127 -> 2025.0 | N127: 25 | O127: Successful | P127: 2021-03-02 | R127: N
A128: 4 | B128: 2021-03-02 | D128: NIFTY 14800 PE 4-MAR | E128: Buy | F128: 73.5 | G128: 25 | H128: 96 | I128: 150 | J128: Profit of Rs.22.5/- | K128: =H128-F128 -> 22.5 | L128: 100 | M128: =(K128*N128)-L128 -> 1587.5 | N128: 75 | O128: Successful | P128: 2021-03-02 | R128: N
A129: 5 | B129: 2021-03-02 | D129: NIFTY 14800 PE 4-MAR | E129: Buy | F129: 73.5 | G129: 25 | H129: 25 | I129: 150 | J129: Loss of Rs.48.5/- | K129: =H129-F129 -> -48.5 | L129: 100 | M129: =(K129*N129)-L129 -> -3737.5 | N129: 75 | O129: Unsuccessful | P129: 2021-03-03 | R129: N
A130: 6 | B130: 2021-03-03 | D130: BANKNIFTY 35000 PE 10-MAR | E130: Buy | F130: 295 | G130: 145 | H130: 375 | I130: 600 | J130: Profit of Rs.80/- | K130: 80 | L130: 100 | M130: 1900.0 | N130: 25 | O130: Successful | P130: 2021-03-04 | R130: H
A131: 7 | B131: 2021-03-04 | D131: NIFTY 15150 PE 4-MAR | E131: Buy | F131: 30 | H131: 43 | I131: 80 | J131: Profit of Rs.13/- | K131: =H131-F131 -> 13 | L131: 100 | M131: =(K131*N131)-L131 -> 875.0 | N131: 75 | O131: Successful | P131: 2021-03-04 | R131: N
A132: 8 | B132: 2021-03-04 | D132: BANKNIFTY 35500 PE 10-MAR | E132: Buy | F132: 305 | G132: 145 | H132: 365 | I132: 600 | J132: Profit of Rs.60/- | K132: 60 | L132: 100 | M132: 1400.0 | N132: 25 | O132: Successful | P132: 2021-03-04 | R132: H
A133: 9 | B133: 2021-03-05 | D133: NIFTY 14500 PE 10-MAR | E133: Buy | F133: 75 | G133: 30 | H133: 30 | I133: 150 | J133: Loss of Rs.45/- | K133: -45 | L133: 100 | M133: -3475.0 | N133: 75 | O133: Unsuccessful | P133: 2021-03-08 | R133: H
A134: 10 | B134: 2021-03-05 | D134: COALINDIA 150 CE MAR | E134: Buy | F134: 5.30-5.50 | J134: Open | R134: H
D135: COALINDIA 155 CE MAR | E135: Sell | F135: 4.00-4.20 | R135: H
A136: 11 | B136: 2021-03-08 | D136: NIFTY 14900 PE 10-MAR | E136: Buy | F136: 81 | G136: 40 | H136: 97 | I136: 160 | J136: Profit of Rs.16/- | K136: =H136-F136 -> 16 | L136: 100 | M136: =(K136*N136)-L136 -> 1100.0 | N136: 75 | O136: Successful | P136: 2021-03-08 | R136: N
A137: 12 | B137: 2021-03-09 | D137: NIFTY 15000 PE 10-MAR | E137: Buy | F137: 61 | G137: 20 | H137: 73 | I137: 140 | J137: Profit of Rs.12/- | K137: =H137-F137 -> 12 | L137: 100 | M137: =(K137*N137)-L137 -> 800.0 | N137: 75 | O137: Successful | P137: 2021-03-09 | R137: N
A138: 13 | B138: 2021-03-09 | D138: BANKNIFTY 35500 PE 10-MAR | E138: Buy | F138: 200 | G138: 70 | H138: 260 | I138: 500 | J138: Profit of Rs.60/- | K138: =H138-F138 -> 60 | L138: 100 | M138: =(K138*N138)-L138 -> 1400.0 | N138: 25 | O138: Successful | P138: 2021-03-09 | R138: H
A139: 14 | B139: 2021-03-09 | D139: BANKNIFTY 35500 PE 10-MAR | E139: Buy | F139: 175 | G139: 70 | H139: 225 | I139: 500 | J139: Profit of Rs.50/- | K139: 50 | L139: 100 | M139: 1150.0 | N139: 25 | O139: Successful | P139: 2021-03-09 | R139: H
A140: 15 | B140: 2021-03-09 | D140: NIFTY 15000 PE 10-MAR | E140: Buy | F140: 61 | G140: 20 | H140: 74 | I140: 140 | J140: Profit of Rs.13/- | K140: =H140-F140 -> 13 | L140: 100 | M140: =(K140*N140)-L140 -> 875.0 | N140: 75 | O140: Successful | P140: 2021-03-09 | R140: N
A141: 16 | B141: 2021-03-09 | D141: BANKNIFTY 35600 PE 10-MAR | E141: Buy | F141: 210 | G141: 70 | H141: 275 | I141: 500 | J141: Profit of Rs.65/- | K141: 65 | L141: 100 | M141: 1525.0 | N141: 25 | O141: Successful | P141: 2021-03-09 | R141: H
A142: 17 | B142: 2021-03-10 | D142: NIFTY 15200 PE 10-MAR | E142: Buy | F142: 50 | H142: 65 | I142: 100 | J142: Profit of Rs.15/- | K142: =H142-F142 -> 15 | L142: 100 | M142: =(K142*N142)-L142 -> 1025.0 | N142: 75 | O142: Successful | P142: 2021-03-10 | R142: N
A143: 18 | B143: 2021-03-10 | D143: BANKNIFTY 35500 PE 18-MAR | E143: Buy | F143: 350 | G143: 170 | H143: 405 | I143: 600 | J143: Profit of Rs.55/- | K143: 55 | L143: 100 | M143: 1275.0 | N143: 25 | O143: Successful | P143: 2021-03-10 | R143: H
A144: 19 | B144: 2021-03-10 | D144: NIFTY 15150 PE 10-MAR | E144: Buy | F144: 21.5 | H144: 0 | I144: 50 | J144: Loss of Rs.21.5/- | K144: -21.5 | L144: 100 | M144: -1712.5 | N144: 75 | O144: Unsuccessful | P144: 2021-03-10 | R144: N
A145: 20 | B145: 2021-03-10 | D145: ZEEL 240 CE 25-MAR | E145: Buy | F145: 4.2 | G145: 2.5 | H145: 5 | I145: 7 | J145: Profit of Rs.0.80/- | K145: 0.8 | L145: 100 | M145: 2300.0 | N145: 3000 | O145: Successful | P145: 2021-03-12 | R145: H
A146: 21 | B146: 2021-03-12 | D146: BANKNIFTY 35800 PE 18-MAR | E146: Buy | F146: 335 | G146: 160 | H146: 390 | I146: 600-700 | J146: Profit of Rs.55/- | K146: =H146-F146 -> 55 | L146: 100 | M146: =(K146*N146)-L146 -> 1275.0 | N146: 25 | O146: Successful | P146: 2021-03-12 | R146: H
A147: 22 | B147: 2021-03-12 | D147: NIFTY 15000 PE 18-MAR | E147: Buy | F147: 52 | G147: 18 | H147: 65 | I147: 90-110 | J147: Profit of Rs.13/- | K147: 13 | L147: 100 | M147: 875.0 | N147: 75 | O147: Successful | P147: 2021-03-12 | R147: H
A148: 23 | B148: 2021-03-15 | D148: TVSMOTOR 570 PE 25-MAR | E148: Buy | F148: 9.6 | G148: 6.5 | H148: 6.5 | I148: 15-17 | J148: Loss of Rs.3.10/- | K148: -3.1 | L148: 100 | M148: -4440.0 | N148: 1400 | O148: Unsuccessful | P148: 2021-03-16 | R148: N
A149: 24 | B149: 2021-03-15 | D149: VOLTAS 1020 PE 25-MAR | E149: Buy | F149: 17 | G149: 12 | H149: 17.5 | I149: 28-30 | J149: Profit of Rs.0.50/- | K149: 0.5 | L149: 100 | M149: 400.0 | N149: 1000 | O149: Neutral | P149: 2021-03-16 | R149: N
A150: 25 | B150: 2021-03-15 | D150: NIFTY 14800 PE 18-MAR | E150: Buy | F150: 93.5 | G150: 55 | H150: 55 | I150: 150 | J150: Loss of Rs.38.5/- | K150: =H150-F150 -> -38.5 | L150: 100 | M150: =(K150*N150)-L150 -> -2987.5 | N150: 75 | O150: Unsuccessful | P150: 2021-03-16 | R150: N
A151: 26 | B151: 2021-03-16 | D151: HDFCBANK 1560 CE 25-MAR | E151: Buy | F151: 25.5 | G151: 17 | H151: 17 | I151: 33-35 | J151: Loss of Rs.8.5/- | K151: -8.5 | L151: 100 | M151: -4775.0 | N151: 550 | O151: Unsuccessful | P151: 2021-03-16 | R151: H
A152: 27 | B152: 2021-03-16 | D152: BANKNIFTY 35400 CE 18-MAR | E152: Buy | F152: 295 | G152: 75 | H152: 355 | I152: 500-600 | J152: Profit of Rs.60/- | K152: 60 | L152: 100 | M152: 1400.0 | N152: 25 | O152: Successful | P152: 2021-03-16 | R152: H
A153: 28 | B153: 2021-03-16 | D153: BANKNIFTY 35400 CE 18-MAR | E153: Buy | F153: 250 | G153: 75 | H153: 340 | I153: 500-600 | J153: Profit of Rs.90/- | K153: =H153-F153 -> 90 | L153: 100 | M153: =(K153*N153)-L153 -> 2150.0 | N153: 25 | O153: Successful | P153: 2021-03-16 | R153: H
A154: 29 | B154: 2021-03-16 | D154: BANKNIFTY 35400 CE 18-MAR | E154: Buy | F154: 280 | G154: 75 | H154: 60 | I154: 500-600 | J154: Loss of Rs.220/- | K154: -220 | L154: 100 | M154: -5600.0 | N154: 25 | O154: Unsuccessful | P154: 2021-03-17 | R154: H
A155: 30 | B155: 2021-03-16 | D155: SBIN 400 CE MAR | E155: Buy | F155: 4.1 | G155: 2.8 | H155: 2.7 | I155: 6 | J155: Loss of Rs.1.40/- | K155: -1.4 | L155: 100 | M155: -4300.0 | N155: 3000 | O155: Unsuccessful | P155: 2021-03-17 | R155: H
A156: 31 | B156: 2021-03-18 | D156: NIFTY 14700 PE 18-MAR | E156: Buy | F156: 22 | H156: 44 | I156: 70 | J156: Profit of Rs.22/- | K156: 22 | L156: 100 | M156: 1550.0 | N156: 75 | O156: Successful | P156: 2021-03-18 | R156: N
A157: 32 | B157: 2021-03-18 | D157: BANKNIFTY 33000 PE 25-MAR | E157: Buy | F157: 280 | G157: 80 | H157: 335 | I157: 600 | J157: Profit of Rs.60/- | K157: 55 | L157: 100 | M157: =(K157*N157)-L157 -> 1275.0 | N157: 25 | O157: Successful | P157: 2021-03-18 | R157: H
A158: 33 | B158: 2021-03-18 | D158: NIFTY 14550 PE 18-MAR | E158: Buy | F158: 20 | H158: 37.5 | I158: 50 | J158: Profit of Rs.17.5/- | K158: =H158-F158 -> 17.5 | L158: 100 | M158: 1212.5 | N158: 75 | O158: Successful | P158: 2021-03-18 | R158: N
A159: 34 | B159: 2021-03-18 | D159: BANKNIFTY 33000 PE 25-MAR | E159: Buy | F159: 280 | G159: 80 | H159: 335 | I159: 600 | J159: Profit of Rs.60/- | K159: =H159-F159 -> 55 | L159: 100 | M159: =(K159*N159)-L159 -> 1275.0 | N159: 25 | O159: Successful | P159: 2021-03-18 | R159: H
A160: 35 | B160: 2021-03-18 | D160: BANKNIFTY 33000 PE 25-MAR | E160: Buy | F160: 280 | G160: 80 | H160: 395 | I160: 600 | J160: Profit of Rs.115/- | K160: =H160-F160 -> 115 | L160: 100 | M160: =(K160*N160)-L160 -> 2775.0 | N160: 25 | O160: Successful | P160: 2021-03-19 | R160: H
A161: 36 | B161: 2021-03-19 | D161: NIFTY 14200 PE 01-APR | E161: Buy | F161: 105.5 | G161: 60 | H161: 123.5 | I161: 190 | J161: Profit of Rs.18/- | K161: 18 | L161: 100 | M161: 1250.0 | N161: 75 | O161: Successful | P161: 2021-03-19 | R161: N
A162: 37 | B162: 2021-03-19 | D162: NIFTY 14200 PE 01-APR | E162: Buy | F162: 105 | G162: 60 | H162: 60 | I162: 190 | J162: Loss of Rs.45/- | K162: -45 | L162: 100 | M162: -3475.0 | N162: 75 | O162: Unsuccessful | P162: 2021-03-22 | R162: H
A163: 38 | B163: 2021-03-19 | D163: BANKNIFTY 33000 PE 25-MAR | E163: Buy | F163: 265 | G163: 70 | H163: 325 | I163: 600 | J163: Profit of Rs.60/- | K163: =H163-F163 -> 60 | L163: 100 | M163: =(K163*N163)-L163 -> 1400.0 | N163: 25 | O163: Successful | P163: 2021-03-22 | R163: N
A164: 39 | B164: 2021-03-22 | D164: VOLTAS 1000 CE MAR | E164: Buy | F164: 11.00-12.00 | J164: Open | R164: N
D165: VOLTAS 1010 CE MAR | E165: Sell | F165: 8.00-9.00 | R165: N
A179: Techno -Funda (positional)
A180: Sr.no | B180: Date | D180: Company | E180: Rec | F180: Rec Price | G180: Stop Loss*** | H180: Call Closed At | I180: Target | J180: Remark | K180: Profit / Loss per Share/Lot | L180: All charges | M180: Net Gain / Loss % | N180: Status | O180: Closed Date
A181: 1 | B181: 2021-01-07 | D181: SIS | E181: Buy | F181: 424 | G181: 385 | H181: 455 | I181: 500-520 | J181: Part profit of Rs.31/- | K181: =H181-F181 -> 31 | L181: =(F181*-0.8)/100 -> -3.39 | M181: =(K181+L181)/F181 -> 6.51% | N181: Successful | O181: 2021-02-16 | R181: H
A182: 2 | B182: 2021-02-11 | D182: MCX | E182: Buy | F182: 1515 | G182: 1390 | H182: 1595 | I182: 1800-1850 | J182: Part profit of Rs.80/- | K182: =H182-F182 -> 80 | L182: =(F182*-0.8)/100 -> -12.12 | M182: =(K182+L182)/F182 -> 4.48% | N182: Successful | O182: 2021-03-16 | R182: H
A183: 3 | B183: 2021-03-19 | D183: GMMPFAUDLR | E183: Buy | F183: 4050-4090 | G183: 3750 | I183: 4800 | J183: Open | R183: H
A186: CLBS = Closing Basis *** | F186: Reinitiated $
A187: Dividend adjusted <> | F187: Revised stoploss #
B189: Intrday Call
A190: Sr.no | B190: Date | D190: Company | E190: Rec | F190: Rec Price | G190: Stop Loss | H190: Call Closed At | I190: Target | J190: Remark | K190: Profit / Loss per Share/Lot | L190: Gain / Loss per Lot | M190: Lot | N190: All charges | O190: Net Gain / Loss % | P190: Status | Q190: Closed Date
B203: Investment Idea
A204: Sr.no | B204: Date | D204: Company | E204: Rec | F204: Rec Price | G204: Point of Review | H204: Close Rate | I204: Target | J204: Remark | K204: Profit / Loss per Share | L204: Gain / Loss % | M204: Status | N204: Closed Date
A205: 1 | B205: 2013-11-01 | D205: L&T Finance Holding | E205: Accu | F205: 82.00 | G205: - | H205: 100 | I205: 100.00 | J205: Target Achieved | K205: =H205-F205 -> 18.00 | L205: =K205/F205 -> 21.95% | M205: Successful | N205: 2016-10-14
A206: 2 | B206: 2014-06-04 | D206: Finolex Inds | E206: Buy | F206: 257.00 | G206: - | H206: 300 | I206: 300.00 | J206: Target Achieved | K206: 43.00 | L206: 16.73% | M206: Successful | N206: 2014-07-02
A207: 3 | B207: 2014-07-08 | D207: JK Cement | E207: Buy | F207: 393.00 | G207: - | H207: 468 | I207: 468.00 | J207: Target Achieved | K207: 75.00 | L207: 19.08% | M207: Successful | N207: 2014-08-12
A208: 4 | B208: 2014-08-06 | D208: Finolex Cables | E208: Buy | F208: 205.00 | G208: - | H208: 275 | I208: 250.00 | J208: Target Achieved | K208: 70.00 | L208: 34.15% | M208: Successful | N208: 2014-11-19
A209: 5 | B209: 2014-09-04 | D209: Exide Inds | E209: Buy | F209: 162.00 | G209: - | H209: 190 | I209: 190.00 | J209: Target Achieved | K209: 28.00 | L209: 17.28% | M209: Successful | N209: 2015-01-02
A210: 6 | B210: 2014-09-04 | D210: Deepak Nitrite | E210: Buy | F210: 75.00 | G210: - | H210: 91.5 | I210: 95-100 | J210: Profit of Rs.16.50/- | K210: 16.50 | L210: 22.00% | M210: Successful | N210: 2014-11-11
A211: 7 | B211: 2014-10-01 | D211: Mercks | E211: Buy | F211: 850.00 | G211: - | H211: 982.5 | I211: 1050.00 | J211: Profit of Rs.132.50/- | K211: 132.50 | L211: 15.59% | M211: Successful | N211: 2015-02-04
A212: 8 | B212: 2014-10-01 | D212: Grindwell Norton | E212: Buy | F212: 475.00 | G212: - | H212: 515 | I212: 600.00 | J212: Profit of Rs.40/- | K212: 40.00 | L212: 8.42% | M212: Successful | N212: 2014-10-27
A213: 9 | B213: 2014-10-01 | D213: Snowman Logistics | E213: Buy | F213: 86.00 | G213: - | H213: 99 | I213: 140.00 | J213: Profit of Rs.13.00/- | K213: 13.00 | L213: 15.12% | M213: Successful | N213: 2014-10-27
A214: 10 | B214: 2014-10-14 | D214: Birla Corp | E214: Buy | F214: 496.60 | G214: - | H214: 621 | I214: 580.00 | J214: Target Achieved | K214: 124.40 | L214: 25.05% | M214: Successful | N214: 2016-08-23
A215: 11 | B215: 2014-10-14 | D215: Ultratech Cem | E215: Buy | F215: 2481.90 | G215: - | H215: 2840 | I215: 2870.00 | J215: Profit of Rs.358.10/- | K215: 358.10 | L215: 14.43% | M215: Successful | N215: 2015-01-13
A216: 12 | B216: 2014-10-16 | D216: Sintex Inds | E216: Buy | F216: 84.50 | G216: - | H216: 93 | I216: 110.00 | J216: Profit of Rs.8.50/- | K216: 8.50 | L216: 10.06% | M216: Successful | N216: 2014-10-27
A217: 13 | B217: 2014-10-16 | D217: HSIL | E217: Buy | F217: 401.00 | G217: - | H217: 428 | I217: 450.00 | J217: Profit of Rs.27.00/- | K217: 27.00 | L217: 6.73% | M217: Successful | N217: 2015-01-16
A218: 14 | B218: 2014-10-16 | D218: Eveready Inds | E218: Buy | F218: 101.00 | G218: - | H218: 112 | I218: 120.00 | J218: Profit of Rs.11.00/- | K218: 11.00 | L218: 10.89% | M218: Successful | N218: 2014-10-27
A219: 15 | B219: 2014-11-11 | D219: Pennar Inds | E219: Buy | F219: 59.00 | G219: - | H219: 76 | I219: 76.00 | J219: Target Achieved | K219: 17.00 | L219: 28.81% | M219: Successful | N219: 2017-10-24
A220: 16 | B220: 2014-11-11 | D220: Snowman Logistics | E220: Buy | F220: 99.00 | G220: - | H220: 120 | I220: 120.00 | J220: Profit of Rs.21/- | K220: 21.00 | L220: 21.21% | M220: Successful | N220: 2014-11-17
A221: 17 | B221: 2014-11-13 | D221: Dharamsi Morarji Chem | E221: Buy | F221: 22.00 | G221: - | H221: 33.55 | I221: 32.00 | J221: Profit of Rs 11.55/- | K221: 11.55 | L221: 52.50% | M221: Successful | N221: 2015-07-03
A222: 18 | B222: 2014-12-03 | D222: Tatachem | E222: Buy | F222: 440.00 | G222: - | H222: 520 | I222: 520.00 | J222: Profit of Rs 80.00/- | K222: 80.00 | L222: 18.18% | M222: Successful | N222: 2015-07-23
A223: 19 | B223: 2014-12-03 | D223: Advanta | E223: Buy | F223: 360.00 | G223: - | H223: 427 | I223: 425.00 | J223: Profit of Rs.67.00/- | K223: 67.00 | L223: 18.61% | M223: Successful | N223: 2015-02-23
A224: 20 | B224: 2015-01-08 | D224: GDL | E224: Buy | F224: 360.00 | G224: - | H224: 455 | I224: 420.00 | J224: Profit of Rs.95.00/- | K224: 95.00 | L224: 26.39% | M224: Successful | N224: 2015-01-20
A225: 21 | B225: 2015-01-08 | D225: NRB Bearing | E225: Buy | F225: 130.00 | H225: 175.5 | I225: 165.00 | J225: Profit of Rs 45.50/- | K225: 45.50 | L225: 35.00% | M225: Successful | N225: 2017-12-19
A226: 22 | B226: 2015-02-05 | D226: GSFC | E226: Accu | F226: 98.00 | H226: 120 | I226: 120.00 | J226: Target Achieved | K226: 22.00 | L226: 22.45% | M226: Successful | N226: 2017-01-18
A227: 23 | B227: 2015-02-05 | D227: Sundrmfast | E227: Accu | F227: 196.00 | H227: 262 | I227: 255.00 | J227: Target Achieved | K227: 66.00 | L227: 33.67% | M227: Successful | N227: 2016-08-17
A228: 24 | B228: 2015-03-04 | D228: GPPL | E228: Accu | F228: 235 | H228: 77.00 | I228: 280-285 | J228: Loss of Rs.158/- | K228: -158.00 | L228: -67.23% | M228: Unsuccessful | N228: 2019-02-26
A229: 25 | B229: 2015-03-04 | D229: ORIENTCEM | E229: Accu | F229: 185.00 | H229: 224 | I229: 220-225 | J229: Target Achieved | K229: 39.00 | L229: 21.08% | M229: Successful | N229: 2016-10-04
A230: 26 | B230: 2015-03-27 | D230: PFS | E230: Accu | F230: 49.5 | H230: 15.85 | I230: 67.00 | J230: Loss of Rs.33.65/- | K230: -33.65 | L230: -68% | M230: Unsuccessful | N230: 2019-06-11
A231: 27 | B231: 2015-03-30 | D231: Walchandnagar Ind Ltd | E231: Accu | F231: 183.50 | H231: 219 | I231: 218.00 | J231: Profit of Rs.35.50/- | K231: 35.50 | L231: 19.35% | M231: Successful | N231: 2015-04-09
A232: 28 | B232: 2015-04-20 | D232: Kalpataru Power Transmission Ltd | E232: Accu | F232: =(227+237)/2 -> 232.00 | H232: 298 | I232: 298.00 | J232: Target Achieved | K232: 66.00 | L232: 28.45% | M232: Successful | N232: 2017-03-29
A233: 29 | B233: 2015-05-04 | D233: Mastek Ltd | E233: Buy | F233: 385.00 | H233: =212.5+331 -> 543.5 | I233: 510.00 | J233: Profit of Rs 158.50/- | K233: 158.50 | L233: 41.17% | M233: Successful | N233: 2015-08-19
A234: 30 | B234: 2015-05-04 | D234: Suprajit Eng | E234: Buy | F234: 115.50 | H234: 146 | I234: 142.00 | J234: Profit of Rs 30.50/- | K234: 30.50 | L234: 26.41% | M234: Successful | N234: 2015-07-17
A235: 31 | B235: 2015-05-27 | D235: TCI | E235: Buy | F235: 237.50 | H235: 279.5 | I235: 278.00 | J235: Target Achieved | K235: 42.00 | L235: 17.68% | M235: Successful | N235: 2015-08-06
A236: 32 | B236: 2015-06-19 | D236: HSIL | E236: Accu | F236: 340.00 | H236: 448 | I236: 448.00 | J236: Target Achieved | K236: 108.00 | L236: 31.76% | M236: Successful | N236: 2017-10-10
A237: 33 | B237: 2015-07-06 | D237: Capital First | E237: Accu | F237: 390.00 | H237: 460 | I237: 460.00 | J237: Target Achieved | K237: =H237-F237 -> 70.00 | L237: =K237/F237 -> 17.95% | M237: Successful | N237: 2016-04-18
A238: 34 | B238: 2015-07-10 | D238: Dolphin OffShore | E238: Accu | F238: 122.5 | H238: 61.00 | I238: 172.00 | J238: Loss of Rs.61.50/- | K238: -61.50 | L238: -50.20% | M238: Unsuccessful | N238: 2018-08-21
A239: 35 | B239: 2015-08-03 | D239: Allcargo logistics | E239: Accu | F239: 297.50 | H239: 350 | I239: 360.00 | J239: Profit of Rs 52.50/- | K239: 52.50 | L239: 17.65% | M239: Successful | N239: 2015-08-16
A240: 36 | B240: 2015-08-03 | D240: Camline Fine | E240: Accu | F240: 115.50 | H240: 149 | I240: 140.00 | J240: Profit of Rs 33.50/- | K240: 33.50 | L240: 29.00% | M240: Successful | N240: 2017-01-05
A241: 37 | B241: 2015-09-04 | D241: TCI | E241: Accu | F241: 226.00 | H241: 292 | I241: 292.00 | J241: Target Achieved | K241: 66.00 | L241: 29.20% | M241: Successful | N241: 2015-10-09
A242: 38 | B242: 2015-09-07 | D242: Kalpataru Power Transmission Ltd | E242: Accu | F242: 232.50 | H242: 312.5 | I242: 310.00 | J242: Target Achieved | K242: 80.00 | L242: 34.41% | M242: Successful | N242: 2017-03-29
A243: 39 | B243: 2015-09-21 | D243: LLOYD ELECTRIC & ENG LTD | E243: Accu | F243: 196.50 | H243: 238 | I243: 238.00 | J243: Target Achieved | K243: 41.50 | L243: 21.12% | M243: Successful | N243: 2015-10-14
A244: 40 | B244: 2015-09-24 | D244: L&T Finance Holding | E244: Accu | F244: 65.00 | H244: 82 | I244: 82.00 | J244: Target Achieved | K244: 17.00 | L244: 26.15% | M244: Successful | N244: 2016-07-27
A245: 41 | B245: 2015-10-14 | D245: KEC International ltd | E245: Accu | F245: 144.00 | H245: 182.5 | I245: 181.00 | J245: Target Achieved | K245: 38.50 | L245: 26.74% | M245: Successful | N245: 2017-03-23
A246: 42 | B246: 2015-10-14 | D246: Gruh Finance | E246: Accu | F246: 264.00 | H246: 311 | I246: 311.00 | J246: Target Achieved | K246: 47.00 | L246: 17.80% | M246: Successful | N246: 2016-08-22
A247: 43 | B247: 2015-11-10 | D247: Pidilitind | E247: Buy | F247: 549.50 | H247: 630 | I247: 630.00 | J247: Target Achieved | K247: 80.50 | L247: 14.65% | M247: Successful | N247: 2016-02-19
A248: 44 | B248: 2015-12-04 | D248: Zensar Technology | E248: Accu | F248: 1027.50 | H248: 1315 | I248: 1250.00 | J248: Target Achieved | K248: 287.50 | L248: 27.98% | M248: Successful | N248: 2018-05-24
A249: 45 | B249: 2015-12-29 | D249: Vinati Organics Ltd | E249: Accu | F249: 465.00 | H249: 540 | I249: 540.00 | J249: Target Achieved | K249: 75.00 | L249: 16.13% | M249: Successful | N249: 2016-06-09
A250: 46 | B250: 2016-01-11 | D250: GSFC | E250: Buy | F250: 81.00 | H250: 110 | I250: 110.00 | J250: Target Achieved | K250: 29.00 | L250: 35.80% | M250: Successful | N250: 2017-01-10
A251: 47 | B251: 2016-01-13 | D251: SSWL | E251: Buy | F251: 417.50 | H251: 547 | I251: 535.00 | J251: Target Achieved | K251: 129.50 | L251: 31.02% | M251: Successful | N251: 2016-07-27
A252: 48 | B252: 2016-02-08 | D252: Persistent System Ltd | E252: Accu | F252: 650.00 | H252: 800 | I252: 800.00 | J252: Target Achieved | K252: 150.00 | L252: 23.08% | M252: Successful | N252: 2018-02-23
... 116 more rows
